Body Name,Date Paid,Transaction Number,Amount,Supplier Name,Supplier Type,Expense Area,Cost Centre Description,Expense Type
Cambridgeshire County Council,01-Apr-21,51301545399,"-6,986.40",ALASDAIR CANT & ASSOCIATES,TRADE SUPPLIER,Safeguarding East & South Cambs and Cambridge,Family Safeguarding,Staff Training & Development
Cambridgeshire County Council,01-Apr-21,65300016542,"-4,320.00",Cruse Bereavement Care,CHARITY,PH Adult Mental Health & Community Safety,Public Mental Health - General Preventions,Professional Fees and Hired Services
Cambridgeshire County Council,01-Apr-21,51301534301,518.40,FRESH START IN EDUCATION,CARE ESTABLISHMENT,Out of School Tuition,Out of School Provision - Education and Settings,Independent School Placements
Cambridgeshire County Council,01-Apr-21,51301549951,524.16,Redacted Personal Data ,INDIVIDUAL,Nursery Schools,Early Years - Funded 3s/4s,Care & Ed Childcare Settings
Cambridgeshire County Council,01-Apr-21,51301549734,553.41,Redacted Personal Data ,INDIVIDUAL,Nursery Schools,Early Years - Funded 3s/4s,Care & Ed Childcare Settings
Cambridgeshire County Council,01-Apr-21,51301550281,560.00,Yaxley Out of School Club,COMPANY,Early Years Service - HAF,HAF Grant,Care & Ed Childcare Settings
Cambridgeshire County Council,01-Apr-21,51301550265,560.00,Bassingbourn Out of School Club,EDUCATION,Early Years Service - HAF,HAF Grant,Care & Ed Childcare Settings
Cambridgeshire County Council,01-Apr-21,51301549992,573.30,Redacted Personal Data ,INDIVIDUAL,Nursery Schools,Early Years - Funded 3s/4s,Care & Ed Childcare Settings
Cambridgeshire County Council,01-Apr-21,51301549867,589.68,Redacted Personal Data ,INDIVIDUAL,Nursery Schools,Early Years - Funded 3s/4s,Care & Ed Childcare Settings
Cambridgeshire County Council,01-Apr-21,51301549768,589.68,Redacted Personal Data ,INDIVIDUAL,Nursery Schools,Early Years - Funded 3s/4s,Care & Ed Childcare Settings
Cambridgeshire County Council,01-Apr-21,51301549703,589.68,Redacted Personal Data ,INDIVIDUAL,Nursery Schools,Early Years - Funded 3s/4s,Care & Ed Childcare Settings
Cambridgeshire County Council,01-Apr-21,51301550046,589.68,Redacted Personal Data ,INDIVIDUAL,Nursery Schools,Early Years - Funded 3s/4s,Care & Ed Childcare Settings
Cambridgeshire County Council,01-Apr-21,51301549633,589.68,Redacted Personal Data ,INDIVIDUAL,Nursery Schools,Early Years - Funded 3s/4s,Care & Ed Childcare Settings
Cambridgeshire County Council,01-Apr-21,51301549981,589.68,Redacted Personal Data ,INDIVIDUAL,Nursery Schools,Early Years - Funded 3s/4s,Care & Ed Childcare Settings
Cambridgeshire County Council,01-Apr-21,51301549630,589.68,Redacted Personal Data ,INDIVIDUAL,Nursery Schools,Early Years - Funded 3s/4s,Care & Ed Childcare Settings
Cambridgeshire County Council,01-Apr-21,51301550038,599.76,Redacted Personal Data ,INDIVIDUAL,Nursery Schools,Early Years - Funded 3s/4s,Care & Ed Childcare Settings
Cambridgeshire County Council,01-Apr-21,51301550308,600.00,Redacted Personal Data ,INDIVIDUAL,Adoption Team,Permanance and Adoption,Professional Fees and Hired Services
Cambridgeshire County Council,01-Apr-21,51301549751,651.69,Redacted Personal Data ,PARENT/GUARDIAN,Nursery Schools,Early Years - Funded 3s/4s,Care & Ed Childcare Settings
Cambridgeshire County Council,01-Apr-21,51301549905,651.69,Redacted Personal Data ,INDIVIDUAL,Nursery Schools,Early Years - Funded 3s/4s,Care & Ed Childcare Settings
Cambridgeshire County Council,01-Apr-21,51301549957,651.69,Redacted Personal Data ,INDIVIDUAL,Nursery Schools,Early Years - Funded 3s/4s,Care & Ed Childcare Settings
Cambridgeshire County Council,01-Apr-21,51301549908,651.69,Redacted Personal Data ,INDIVIDUAL,Nursery Schools,Early Years - Funded 3s/4s,Care & Ed Childcare Settings
Cambridgeshire County Council,01-Apr-21,51301549655,651.69,Redacted Personal Data ,INDIVIDUAL,Nursery Schools,Early Years - Funded 3s/4s,Care & Ed Childcare Settings
Cambridgeshire County Council,01-Apr-21,51301550072,651.69,Redacted Personal Data ,INDIVIDUAL,Nursery Schools,Early Years - Funded 3s/4s,Care & Ed Childcare Settings
Cambridgeshire County Council,01-Apr-21,51301549916,655.20,Redacted Personal Data ,INDIVIDUAL,Nursery Schools,Early Years - Funded 3s/4s,Care & Ed Childcare Settings
Cambridgeshire County Council,01-Apr-21,51301550272,672.00,BRAMPTON KIDS CLUB LIMITED,NURSERY,Early Years Service - HAF,HAF Grant,Care & Ed Childcare Settings
Cambridgeshire County Council,01-Apr-21,51301550057,678.99,Redacted Personal Data ,INDIVIDUAL,Nursery Schools,Early Years - Funded 3s/4s,Care & Ed Childcare Settings
Cambridgeshire County Council,01-Apr-21,51301549775,687.96,Redacted Personal Data ,INDIVIDUAL,Nursery Schools,Early Years - Funded 3s/4s,Care & Ed Childcare Settings
Cambridgeshire County Council,01-Apr-21,51301549874,687.96,Redacted Personal Data ,INDIVIDUAL,Nursery Schools,Early Years - Funded 3s/4s,Care & Ed Childcare Settings
Cambridgeshire County Council,01-Apr-21,51301549629,687.96,Redacted Personal Data ,INDIVIDUAL,Nursery Schools,Early Years - Funded 3s/4s,Care & Ed Childcare Settings
Cambridgeshire County Council,01-Apr-21,51301549820,687.96,Redacted Personal Data ,INDIVIDUAL,Nursery Schools,Early Years - Funded 3s/4s,Care & Ed Childcare Settings
Cambridgeshire County Council,01-Apr-21,51301550145,687.96,Redacted Personal Data ,INDIVIDUAL,Nursery Schools,Early Years - Funded 3s/4s,Care & Ed Childcare Settings
Cambridgeshire County Council,01-Apr-21,51301550310,700.00,Redacted Personal Data ,INDIVIDUAL,Adoption Team,Permanance and Adoption,Professional Fees and Hired Services
Cambridgeshire County Council,01-Apr-21,51301549813,700.36,Redacted Personal Data ,INDIVIDUAL,Nursery Schools,Early Years - Funded 3s/4s,Care & Ed Childcare Settings
Cambridgeshire County Council,01-Apr-21,51301549842,704.34,Redacted Personal Data ,INDIVIDUAL,Nursery Schools,Early Years - Funded 3s/4s,Care & Ed Childcare Settings
Cambridgeshire County Council,01-Apr-21,51301549887,720.72,Redacted Personal Data ,INDIVIDUAL,Nursery Schools,Early Years - Funded 3s/4s,Care & Ed Childcare Settings
Cambridgeshire County Council,01-Apr-21,51301549793,746.92,Redacted Personal Data ,INDIVIDUAL,Nursery Schools,Early Years - Funded 3s/4s,Care & Ed Childcare Settings
Cambridgeshire County Council,01-Apr-21,51301549955,746.92,Redacted Personal Data ,INDIVIDUAL,Nursery Schools,Early Years - Funded 3s/4s,Care & Ed Childcare Settings
Cambridgeshire County Council,01-Apr-21,51301550062,753.48,Redacted Personal Data ,INDIVIDUAL,Nursery Schools,Early Years - Funded 3s/4s,Care & Ed Childcare Settings
Cambridgeshire County Council,01-Apr-21,51301550051,753.48,Redacted Personal Data ,INDIVIDUAL,Nursery Schools,Early Years - Funded 3s/4s,Care & Ed Childcare Settings
Cambridgeshire County Council,01-Apr-21,51301549728,753.48,Redacted Personal Data ,INDIVIDUAL,Nursery Schools,Early Years - Funded 3s/4s,Care & Ed Childcare Settings
Cambridgeshire County Council,01-Apr-21,51301549710,753.48,Redacted Personal Data ,INDIVIDUAL,Nursery Schools,Early Years - Funded 3s/4s,Care & Ed Childcare Settings
Cambridgeshire County Council,01-Apr-21,51301550158,768.30,Redacted Personal Data ,INDIVIDUAL,Nursery Schools,Early Years - Funded 3s/4s,Care & Ed Childcare Settings
Cambridgeshire County Council,01-Apr-21,51301549586,785.82,CROSS KEYS HOMES LIMITED,CARE ESTABLISHMENT,"Telephony, CPSN & MFD",Corporate Telephony,Mobile Phones
Cambridgeshire County Council,01-Apr-21,51301549615,786.00,Redacted Personal Data ,INDIVIDUAL,Nursery Schools,Early Years - Funded 3s/4s,Care & Ed Childcare Settings
Cambridgeshire County Council,01-Apr-21,51301549855,786.24,Redacted Personal Data ,INDIVIDUAL,Nursery Schools,Early Years - Funded 3s/4s,Care & Ed Childcare Settings
Cambridgeshire County Council,01-Apr-21,51301549628,786.24,Redacted Personal Data ,INDIVIDUAL,Nursery Schools,Early Years - Funded 3s/4s,Care & Ed Childcare Settings
Cambridgeshire County Council,01-Apr-21,51301549634,786.24,Redacted Personal Data ,INDIVIDUAL,Nursery Schools,Early Years - Funded 3s/4s,Care & Ed Childcare Settings
Cambridgeshire County Council,01-Apr-21,51301549588,790.70,CROSS KEYS HOMES LIMITED,CARE ESTABLISHMENT,"Telephony, CPSN & MFD",Corporate Telephony,Telephone costs
Cambridgeshire County Council,01-Apr-21,51301550103,800.07,Redacted Personal Data ,INDIVIDUAL,Nursery Schools,Early Years - Funded 3s/4s,Care & Ed Childcare Settings
Cambridgeshire County Council,01-Apr-21,51301550214,828.55,LGSS LAW LTD,TRADE SUPPLIER,Capital Receipts Expenses,Capital Receipts Expenses,External Legal Fees
Cambridgeshire County Council,01-Apr-21,51301549589,831.50,CROSS KEYS HOMES LIMITED,CARE ESTABLISHMENT,"Telephony, CPSN & MFD",Corporate Telephony,Mobile Phones
Cambridgeshire County Council,01-Apr-21,51301549519,836.40,PETERBOROUGH CITY COUNCIL,OTHER PUBLIC BODIES,Strategic Management - Children & Safeguarding,Director of Children & Safeguarding,Recruitment Advertising
Cambridgeshire County Council,01-Apr-21,51301550276,840.00,Football Fun Factory St Ives,COMPANY,Early Years Service - HAF,HAF Grant,Care & Ed Childcare Settings
Cambridgeshire County Council,01-Apr-21,51301550275,840.00,Football Fun Factory Sawston Sports Centre,COMPANY,Early Years Service - HAF,HAF Grant,Care & Ed Childcare Settings
Cambridgeshire County Council,01-Apr-21,51301550268,840.00,Kids R Us @ Fulbourn,NURSERY,Early Years Service - HAF,HAF Grant,Care & Ed Childcare Settings
Cambridgeshire County Council,01-Apr-21,51301550279,840.00,Multi Active Huntingdon,COMPANY,Early Years Service - HAF,HAF Grant,Care & Ed Childcare Settings
Cambridgeshire County Council,01-Apr-21,51301550274,840.00,Football Fun Factory Alconbury Primary School,COMPANY,Early Years Service - HAF,HAF Grant,Care & Ed Childcare Settings
Cambridgeshire County Council,01-Apr-21,51301550269,840.00,Kids R Us @ Milton,NURSERY,Early Years Service - HAF,HAF Grant,Care & Ed Childcare Settings
Cambridgeshire County Council,01-Apr-21,51301550280,840.00,Multi Active St Neots,COMPANY,Early Years Service - HAF,HAF Grant,Care & Ed Childcare Settings
Cambridgeshire County Council,01-Apr-21,51301550278,840.00,Football Fun Factory Trumpington,COMPANY,Early Years Service - HAF,HAF Grant,Care & Ed Childcare Settings
Cambridgeshire County Council,01-Apr-21,51301550277,840.00,Football Fun Factory St Neots,COMPANY,Early Years Service - HAF,HAF Grant,Care & Ed Childcare Settings
Cambridgeshire County Council,01-Apr-21,51301549591,847.00,CROSS KEYS HOMES LIMITED,CARE ESTABLISHMENT,"Telephony, CPSN & MFD",Corporate Telephony,Mobile Phones
Cambridgeshire County Council,01-Apr-21,51301549993,851.76,Redacted Personal Data ,INDIVIDUAL,Nursery Schools,Early Years - Funded 3s/4s,Care & Ed Childcare Settings
Cambridgeshire County Council,01-Apr-21,51301549848,851.76,Redacted Personal Data ,INDIVIDUAL,Nursery Schools,Early Years - Funded 3s/4s,Care & Ed Childcare Settings
Cambridgeshire County Council,01-Apr-21,51301549590,855.98,CROSS KEYS HOMES LIMITED,CARE ESTABLISHMENT,"Telephony, CPSN & MFD",Corporate Telephony,Mobile Phones
Cambridgeshire County Council,01-Apr-21,51301549587,864.14,CROSS KEYS HOMES LIMITED,CARE ESTABLISHMENT,"Telephony, CPSN & MFD",Corporate Telephony,Mobile Phones
Cambridgeshire County Council,01-Apr-21,51301549995,864.86,Redacted Personal Data ,INDIVIDUAL,Nursery Schools,Early Years - Funded 3s/4s,Care & Ed Childcare Settings
Cambridgeshire County Council,01-Apr-21,51301550112,879.81,The Anchor Nursery and Preschool,NURSERY,Nursery Schools,Early Years - Funded 3s/4s,Care & Ed Childcare Settings
Cambridgeshire County Council,01-Apr-21,51301549948,884.52,Redacted Personal Data ,INDIVIDUAL,Nursery Schools,Early Years - Funded 3s/4s,Care & Ed Childcare Settings
Cambridgeshire County Council,01-Apr-21,51301549688,899.64,Redacted Personal Data ,INDIVIDUAL,Nursery Schools,Early Years - Funded 3s/4s,Care & Ed Childcare Settings
Cambridgeshire County Council,01-Apr-21,51301549818,901.66,Redacted Personal Data ,INDIVIDUAL,Nursery Schools,Early Years - Funded 3s/4s,Care & Ed Childcare Settings
Cambridgeshire County Council,01-Apr-21,51301549690,917.28,Redacted Personal Data ,INDIVIDUAL,Nursery Schools,Early Years - Funded 3s/4s,Care & Ed Childcare Settings
Cambridgeshire County Council,01-Apr-21,51301549695,919.30,Redacted Personal Data ,INDIVIDUAL,Nursery Schools,Early Years - Funded 3s/4s,Care & Ed Childcare Settings
Cambridgeshire County Council,01-Apr-21,51301550170,932.34,WHIPPET COACHES LIMITED,TRADE SUPPLIER,Passenger Transport other,Cambridgeshire Future Transport,Support - subsidised bus routes
Cambridgeshire County Council,01-Apr-21,51301550234,939.49,Redacted Personal Data ,INDIVIDUAL,Adoption Allowances,Adoption Allowances,Childcare Costs
Cambridgeshire County Council,01-Apr-21,51301550164,955.71,Redacted Personal Data ,INDIVIDUAL,Fostering,FCP allowances,Adoption Allowances
Cambridgeshire County Council,01-Apr-21,51301549861,973.53,Redacted Personal Data ,INDIVIDUAL,Nursery Schools,Early Years - Funded 3s/4s,Care & Ed Childcare Settings
Cambridgeshire County Council,01-Apr-21,51301549795,982.80,Redacted Personal Data ,INDIVIDUAL,Nursery Schools,Early Years - Funded 3s/4s,Care & Ed Childcare Settings
Cambridgeshire County Council,01-Apr-21,51301549686,982.80,Redacted Personal Data ,INDIVIDUAL,Nursery Schools,Early Years - Funded 3s/4s,Care & Ed Childcare Settings
Cambridgeshire County Council,01-Apr-21,51301549771,982.80,Redacted Personal Data ,INDIVIDUAL,Nursery Schools,Early Years - Funded 3s/4s,Care & Ed Childcare Settings
Cambridgeshire County Council,01-Apr-21,51301550035,982.80,Redacted Personal Data ,INDIVIDUAL,Nursery Schools,Early Years - Funded 3s/4s,Care & Ed Childcare Settings
Cambridgeshire County Council,01-Apr-21,51301549742,982.80,Redacted Personal Data ,INDIVIDUAL,Nursery Schools,Early Years - Funded 3s/4s,Care & Ed Childcare Settings
Cambridgeshire County Council,01-Apr-21,51301549969,982.80,Redacted Personal Data ,INDIVIDUAL,Nursery Schools,Early Years - Funded 3s/4s,Care & Ed Childcare Settings
Cambridgeshire County Council,01-Apr-21,51301549711,982.80,Redacted Personal Data ,INDIVIDUAL,Nursery Schools,Early Years - Funded 3s/4s,Care & Ed Childcare Settings
Cambridgeshire County Council,01-Apr-21,51301549853,982.80,Redacted Personal Data ,INDIVIDUAL,Nursery Schools,Early Years - Funded 3s/4s,Care & Ed Childcare Settings
Cambridgeshire County Council,01-Apr-21,51301549694,982.80,Redacted Personal Data ,INDIVIDUAL,Nursery Schools,Early Years - Funded 3s/4s,Care & Ed Childcare Settings
Cambridgeshire County Council,01-Apr-21,51301549843,982.80,Redacted Personal Data ,INDIVIDUAL,Nursery Schools,Early Years - Funded 3s/4s,Care & Ed Childcare Settings
Cambridgeshire County Council,01-Apr-21,51301549858,982.80,Redacted Personal Data ,INDIVIDUAL,Nursery Schools,Early Years - Funded 3s/4s,Care & Ed Childcare Settings
Cambridgeshire County Council,01-Apr-21,51301550105,982.80,Redacted Personal Data ,INDIVIDUAL,Nursery Schools,Early Years - Funded 3s/4s,Care & Ed Childcare Settings
Cambridgeshire County Council,01-Apr-21,51301550109,982.80,Redacted Personal Data ,INDIVIDUAL,Nursery Schools,Early Years - Funded 3s/4s,Care & Ed Childcare Settings
Cambridgeshire County Council,01-Apr-21,51301549876,982.80,Redacted Personal Data ,INDIVIDUAL,Nursery Schools,Early Years - Funded 3s/4s,Care & Ed Childcare Settings
Cambridgeshire County Council,01-Apr-21,51301549964,982.80,MARIANNE BENNETT CHILDCARE,NURSERY,Nursery Schools,Early Years - Funded 3s/4s,Care & Ed Childcare Settings
Cambridgeshire County Council,01-Apr-21,51301549826,982.80,Redacted Personal Data ,INDIVIDUAL,Nursery Schools,Early Years - Funded 3s/4s,Care & Ed Childcare Settings
Cambridgeshire County Council,01-Apr-21,51301549705,995.20,Redacted Personal Data ,INDIVIDUAL,Nursery Schools,Early Years - Funded 3s/4s,Care & Ed Childcare Settings
Cambridgeshire County Council,01-Apr-21,51301549729,"1,013.92",Redacted Personal Data ,INDIVIDUAL,Nursery Schools,Early Years - Funded 3s/4s,Care & Ed Childcare Settings
Cambridgeshire County Council,01-Apr-21,51301549891,"1,015.56",Redacted Personal Data ,INDIVIDUAL,Nursery Schools,Early Years - Funded 3s/4s,Care & Ed Childcare Settings
Cambridgeshire County Council,01-Apr-21,51301549794,"1,020.01",Redacted Personal Data ,INDIVIDUAL,Nursery Schools,Early Years - Funded 3s/4s,Care & Ed Childcare Settings
Cambridgeshire County Council,01-Apr-21,51301549976,"1,058.40",Redacted Personal Data ,INDIVIDUAL,Nursery Schools,Early Years - Funded 3s/4s,Care & Ed Childcare Settings
Cambridgeshire County Council,01-Apr-21,51301549846,"1,058.40",Redacted Personal Data ,INDIVIDUAL,Nursery Schools,Early Years - Funded 3s/4s,Care & Ed Childcare Settings
Cambridgeshire County Council,01-Apr-21,51301549856,"1,081.08",Redacted Personal Data ,INDIVIDUAL,Nursery Schools,Early Years - Funded 3s/4s,Care & Ed Childcare Settings
Cambridgeshire County Council,01-Apr-21,51301549851,"1,084.96",Redacted Personal Data ,INDIVIDUAL,Nursery Schools,Early Years - Funded 3s/4s,Care & Ed Childcare Settings
Cambridgeshire County Council,01-Apr-21,51301549949,"1,094.22",Redacted Personal Data ,INDIVIDUAL,Nursery Schools,Early Years - Funded 3s/4s,Care & Ed Childcare Settings
Cambridgeshire County Council,01-Apr-21,51301549956,"1,096.32",Redacted Personal Data ,INDIVIDUAL,Nursery Schools,Early Years - Funded 3s/4s,Care & Ed Childcare Settings
Cambridgeshire County Council,01-Apr-21,51301550183,"1,110.00",DCC Interactive,TRADE SUPPLIER,L&D Grants,ASYE,Professional Fees and Hired Services
Cambridgeshire County Council,01-Apr-21,51301550185,"1,110.00",DCC Interactive,TRADE SUPPLIER,L&D Grants,ASYE,Professional Fees and Hired Services
Cambridgeshire County Council,01-Apr-21,51301549805,"1,113.84",Redacted Personal Data ,INDIVIDUAL,Nursery Schools,Early Years - Funded 3s/4s,Care & Ed Childcare Settings
Cambridgeshire County Council,01-Apr-21,51301549746,"1,117.66",Redacted Personal Data ,INDIVIDUAL,Nursery Schools,Early Years - Funded 3s/4s,Care & Ed Childcare Settings
Cambridgeshire County Council,01-Apr-21,51301550270,"1,120.00",KIDS R US @ ST MATTHEWS,LOCAL CLUBS & GROUPS,Early Years Service - HAF,HAF Grant,Care & Ed Childcare Settings
Cambridgeshire County Council,01-Apr-21,51301549866,"1,122.52",Redacted Personal Data ,INDIVIDUAL,Nursery Schools,Early Years - Funded 3s/4s,Care & Ed Childcare Settings
Cambridgeshire County Council,01-Apr-21,51301549854,"1,143.09",Redacted Personal Data ,INDIVIDUAL,Nursery Schools,Early Years - Funded 3s/4s,Care & Ed Childcare Settings
Cambridgeshire County Council,01-Apr-21,51301549622,"1,143.09",Redacted Personal Data ,INDIVIDUAL,Nursery Schools,Early Years - Funded 3s/4s,Care & Ed Childcare Settings
Cambridgeshire County Council,01-Apr-21,51301550007,"1,144.20",Redacted Personal Data ,INDIVIDUAL,Nursery Schools,Early Years - Funded 3s/4s,Care & Ed Childcare Settings
Cambridgeshire County Council,01-Apr-21,51301550101,"1,146.60",Redacted Personal Data ,INDIVIDUAL,Nursery Schools,Early Years - Funded 3s/4s,Care & Ed Childcare Settings
Cambridgeshire County Council,01-Apr-21,51301550047,"1,152.45",Redacted Personal Data ,INDIVIDUAL,Nursery Schools,Early Years - Funded 3s/4s,Care & Ed Childcare Settings
Cambridgeshire County Council,01-Apr-21,51301549883,"1,165.12",Redacted Personal Data ,INDIVIDUAL,Nursery Schools,Early Years - Funded 3s/4s,Care & Ed Childcare Settings
Cambridgeshire County Council,01-Apr-21,51301549709,"1,173.38",Redacted Personal Data ,INDIVIDUAL,Nursery Schools,Early Years - Funded 3s/4s,Care & Ed Childcare Settings
Cambridgeshire County Council,01-Apr-21,51301549966,"1,179.36",Redacted Personal Data ,INDIVIDUAL,Nursery Schools,Early Years - Funded 3s/4s,Care & Ed Childcare Settings
Cambridgeshire County Council,01-Apr-21,51301549850,"1,206.58",Redacted Personal Data ,INDIVIDUAL,Nursery Schools,Early Years - Funded 3s/4s,Care & Ed Childcare Settings
Cambridgeshire County Council,01-Apr-21,51301550005,"1,206.58",Redacted Personal Data ,INDIVIDUAL,Nursery Schools,Early Years - Funded 3s/4s,Care & Ed Childcare Settings
Cambridgeshire County Council,01-Apr-21,51301549745,"1,206.58",Redacted Personal Data ,INDIVIDUAL,Nursery Schools,Early Years - Funded 3s/4s,Care & Ed Childcare Settings
Cambridgeshire County Council,01-Apr-21,51301550132,"1,206.58",Redacted Personal Data ,INDIVIDUAL,Nursery Schools,Early Years - Funded 3s/4s,Care & Ed Childcare Settings
Cambridgeshire County Council,01-Apr-21,51301550028,"1,206.58",Redacted Personal Data ,INDIVIDUAL,Nursery Schools,Early Years - Funded 3s/4s,Care & Ed Childcare Settings
Cambridgeshire County Council,01-Apr-21,51301549792,"1,206.58",Redacted Personal Data ,INDIVIDUAL,Nursery Schools,Early Years - Funded 3s/4s,Care & Ed Childcare Settings
Cambridgeshire County Council,01-Apr-21,51301549773,"1,206.58",Redacted Personal Data ,INDIVIDUAL,Nursery Schools,Early Years - Funded 3s/4s,Care & Ed Childcare Settings
Cambridgeshire County Council,01-Apr-21,51301549890,"1,206.58",Redacted Personal Data ,INDIVIDUAL,Nursery Schools,Early Years - Funded 3s/4s,Care & Ed Childcare Settings
Cambridgeshire County Council,01-Apr-21,51301549733,"1,212.12",Redacted Personal Data ,INDIVIDUAL,Nursery Schools,Early Years - Funded 3s/4s,Care & Ed Childcare Settings
Cambridgeshire County Council,01-Apr-21,51301549954,"1,244.88",Redacted Personal Data ,INDIVIDUAL,Nursery Schools,Early Years - Funded 3s/4s,Care & Ed Childcare Settings
Cambridgeshire County Council,01-Apr-21,51301549888,"1,244.88",Redacted Personal Data ,INDIVIDUAL,Nursery Schools,Early Years - Funded 3s/4s,Care & Ed Childcare Settings
Cambridgeshire County Council,01-Apr-21,51301549952,"1,254.98",Redacted Personal Data ,INDIVIDUAL,Nursery Schools,Early Years - Funded 3s/4s,Care & Ed Childcare Settings
Cambridgeshire County Council,01-Apr-21,51301549625,"1,255.54",Redacted Personal Data ,INDIVIDUAL,Nursery Schools,Early Years - Funded 3s/4s,Care & Ed Childcare Settings
Cambridgeshire County Council,01-Apr-21,51301549860,"1,264.15",Redacted Personal Data ,INDIVIDUAL,Nursery Schools,Early Years - Funded 3s/4s,Care & Ed Childcare Settings
Cambridgeshire County Council,01-Apr-21,51301549774,"1,277.64",Redacted Personal Data ,INDIVIDUAL,Nursery Schools,Early Years - Funded 3s/4s,Care & Ed Childcare Settings
Cambridgeshire County Council,01-Apr-21,51301549627,"1,291.47",Redacted Personal Data ,INDIVIDUAL,Nursery Schools,Early Years - Funded 3s/4s,Care & Ed Childcare Settings
Cambridgeshire County Council,01-Apr-21,51301549871,"1,303.38",Redacted Personal Data ,INDIVIDUAL,Nursery Schools,Early Years - Funded 3s/4s,Care & Ed Childcare Settings
Cambridgeshire County Council,01-Apr-21,51301550290,"1,364.09",Redacted Personal Data ,PARENT/GUARDIAN,Children's Disability Direct Payments,CSC Direct Payments,Direct Payments
Cambridgeshire County Council,01-Apr-21,51301549812,"1,375.92",Redacted Personal Data ,INDIVIDUAL,Nursery Schools,Early Years - Funded 3s/4s,Care & Ed Childcare Settings
Cambridgeshire County Council,01-Apr-21,51301549865,"1,375.92",Redacted Personal Data ,INDIVIDUAL,Nursery Schools,Early Years - Funded 3s/4s,Care & Ed Childcare Settings
Cambridgeshire County Council,01-Apr-21,51301549769,"1,425.06",Redacted Personal Data ,INDIVIDUAL,Nursery Schools,Early Years - Funded 3s/4s,Care & Ed Childcare Settings
Cambridgeshire County Council,01-Apr-21,51301549715,"1,451.76",CLARENCE HOUSE DAY NURSERY,NURSERY,Nursery Schools,Early Years - Funded 3s/4s,Care & Ed Childcare Settings
Cambridgeshire County Council,01-Apr-21,51301549816,"1,474.20",Redacted Personal Data ,INDIVIDUAL,Nursery Schools,Early Years - Funded 3s/4s,Care & Ed Childcare Settings
Cambridgeshire County Council,01-Apr-21,51301549754,"1,474.20",Redacted Personal Data ,INDIVIDUAL,Nursery Schools,Early Years - Funded 3s/4s,Care & Ed Childcare Settings
Cambridgeshire County Council,01-Apr-21,51301549755,"1,474.20",Redacted Personal Data ,INDIVIDUAL,Nursery Schools,Early Years - Funded 3s/4s,Care & Ed Childcare Settings
Cambridgeshire County Council,01-Apr-21,51301549963,"1,474.20",Redacted Personal Data ,INDIVIDUAL,Nursery Schools,Early Years - Funded 3s/4s,Care & Ed Childcare Settings
Cambridgeshire County Council,01-Apr-21,51301549621,"1,489.76",Redacted Personal Data ,INDIVIDUAL,Nursery Schools,Early Years - Funded 3s/4s,Care & Ed Childcare Settings
Cambridgeshire County Council,01-Apr-21,51301549570,"1,507.50",SWITCH NOW CIC,TRADE SUPPLIER,SEND High Needs Top Up,SEND Specialist Services-High needs top-up-Post 16,Independent School Placements
Cambridgeshire County Council,01-Apr-21,51301549975,"1,512.00",Redacted Personal Data ,INDIVIDUAL,Nursery Schools,Early Years - Funded 3s/4s,Care & Ed Childcare Settings
Cambridgeshire County Council,01-Apr-21,51301549829,"1,524.10",Redacted Personal Data ,INDIVIDUAL,Nursery Schools,Early Years - Funded 3s/4s,Care & Ed Childcare Settings
Cambridgeshire County Council,01-Apr-21,51301549872,"1,536.21",Redacted Personal Data ,INDIVIDUAL,Nursery Schools,Early Years - Funded 3s/4s,Care & Ed Childcare Settings
Cambridgeshire County Council,01-Apr-21,51301549750,"1,538.76",Redacted Personal Data ,INDIVIDUAL,Nursery Schools,Early Years - Funded 3s/4s,Care & Ed Childcare Settings
Cambridgeshire County Council,01-Apr-21,51301549600,"1,538.90",SWITCH NOW CIC,TRADE SUPPLIER,SEND High Needs Top Up,SEND Specialist Services-High needs top-up-Post 16,Independent School Placements
Cambridgeshire County Council,01-Apr-21,51301550053,"1,539.72",Redacted Personal Data ,INDIVIDUAL,Nursery Schools,Early Years - Funded 3s/4s,Care & Ed Childcare Settings
Cambridgeshire County Council,01-Apr-21,51301550013,"1,546.02",Redacted Personal Data ,INDIVIDUAL,Nursery Schools,Early Years - Funded 3s/4s,Care & Ed Childcare Settings
Cambridgeshire County Council,01-Apr-21,51301549568,"1,552.10",SWITCH NOW CIC,TRADE SUPPLIER,SEND High Needs Top Up,SEND Specialist Services-High needs top-up-Post 16,Independent School Placements
Cambridgeshire County Council,01-Apr-21,51301549602,"1,552.10",SWITCH NOW CIC,TRADE SUPPLIER,SEND High Needs Top Up,SEND Specialist Services-High needs top-up-Post 16,Independent School Placements
Cambridgeshire County Council,01-Apr-21,51301549912,"1,569.48",Redacted Personal Data ,INDIVIDUAL,Nursery Schools,Early Years - Funded 3s/4s,Care & Ed Childcare Settings
Cambridgeshire County Council,01-Apr-21,51301549950,"1,572.48",Redacted Personal Data ,INDIVIDUAL,Nursery Schools,Early Years - Funded 3s/4s,Care & Ed Childcare Settings
Cambridgeshire County Council,01-Apr-21,51301549613,"1,572.48",Redacted Personal Data ,INDIVIDUAL,Nursery Schools,Early Years - Funded 3s/4s,Care & Ed Childcare Settings
Cambridgeshire County Council,01-Apr-21,51301550017,"1,586.09",Redacted Personal Data ,INDIVIDUAL,Nursery Schools,Early Years - Funded 3s/4s,Care & Ed Childcare Settings
Cambridgeshire County Council,01-Apr-21,51301549732,"1,609.69",Redacted Personal Data ,INDIVIDUAL,Nursery Schools,Early Years - Funded 3s/4s,Care & Ed Childcare Settings
Cambridgeshire County Council,01-Apr-21,51301549904,"1,634.49",Redacted Personal Data ,INDIVIDUAL,Nursery Schools,Early Years - Funded 3s/4s,Care & Ed Childcare Settings
Cambridgeshire County Council,01-Apr-21,51301550108,"1,634.49",Redacted Personal Data ,INDIVIDUAL,Nursery Schools,Early Years - Funded 3s/4s,Care & Ed Childcare Settings
Cambridgeshire County Council,01-Apr-21,51301550142,"1,634.49",Redacted Personal Data ,INDIVIDUAL,Nursery Schools,Early Years - Funded 3s/4s,Care & Ed Childcare Settings
Cambridgeshire County Council,01-Apr-21,51301550104,"1,638.00",Redacted Personal Data ,INDIVIDUAL,Nursery Schools,Early Years - Funded 3s/4s,Care & Ed Childcare Settings
Cambridgeshire County Council,01-Apr-21,51301549569,"1,638.45",SWITCH NOW CIC,TRADE SUPPLIER,SEND High Needs Top Up,SEND Specialist Services-High needs top-up-Post 16,Independent School Placements
Cambridgeshire County Council,01-Apr-21,51301549603,"1,656.60",SWITCH NOW CIC,TRADE SUPPLIER,SEND High Needs Top Up,SEND Specialist Services-High needs top-up-Post 16,Independent School Placements
Cambridgeshire County Council,01-Apr-21,51301549841,"1,667.25",Redacted Personal Data ,INDIVIDUAL,Nursery Schools,Early Years - Funded 3s/4s,Care & Ed Childcare Settings
Cambridgeshire County Council,01-Apr-21,51301550266,"1,680.00",Cambridge Kids Clubs,EDUCATION,Early Years Service - HAF,HAF Grant,Care & Ed Childcare Settings
Cambridgeshire County Council,01-Apr-21,51301549913,"1,697.98",Redacted Personal Data ,INDIVIDUAL,Nursery Schools,Early Years - Funded 3s/4s,Care & Ed Childcare Settings
Cambridgeshire County Council,01-Apr-21,51301550133,"1,703.48",Redacted Personal Data ,INDIVIDUAL,Nursery Schools,Early Years - Funded 3s/4s,Care & Ed Childcare Settings
Cambridgeshire County Council,01-Apr-21,51301549838,"1,703.52",Redacted Personal Data ,INDIVIDUAL,Nursery Schools,Early Years - Funded 3s/4s,Care & Ed Childcare Settings
Cambridgeshire County Council,01-Apr-21,51301549782,"1,733.16",GREAT CHISHILL NURSERY SCHOOL,NURSERY,Nursery Schools,Early Years - Funded 3s/4s,Care & Ed Childcare Settings
Cambridgeshire County Council,01-Apr-21,51301550006,"1,752.66",Redacted Personal Data ,INDIVIDUAL,Nursery Schools,Early Years - Funded 3s/4s,Care & Ed Childcare Settings
Cambridgeshire County Council,01-Apr-21,51301549832,"1,772.82",Redacted Personal Data ,INDIVIDUAL,Nursery Schools,Early Years - Funded 3s/4s,Care & Ed Childcare Settings
Cambridgeshire County Council,01-Apr-21,51301549601,"1,782.00",SWITCH NOW CIC,TRADE SUPPLIER,SEND High Needs Top Up,SEND Specialist Services-High needs top-up-Post 16,Independent School Placements
Cambridgeshire County Council,01-Apr-21,51301549720,"1,794.78",EASTFIELD PLAYGROUP (CLUB 4 U),NURSERY,Nursery Schools,Early Years - Funded 3s/4s,Care & Ed Childcare Settings
Cambridgeshire County Council,01-Apr-21,51301550063,"1,796.26",Redacted Personal Data ,INDIVIDUAL,Nursery Schools,Early Years - Funded 3s/4s,Care & Ed Childcare Settings
Cambridgeshire County Council,01-Apr-21,51301549903,"1,796.26",Redacted Personal Data ,INDIVIDUAL,Nursery Schools,Early Years - Funded 3s/4s,Care & Ed Childcare Settings
Cambridgeshire County Council,01-Apr-21,51301550110,"1,797.08",Redacted Personal Data ,INDIVIDUAL,Nursery Schools,Early Years - Funded 3s/4s,Care & Ed Childcare Settings
Cambridgeshire County Council,01-Apr-21,51301549706,"1,813.11",Redacted Personal Data ,INDIVIDUAL,Nursery Schools,Early Years - Funded 3s/4s,Care & Ed Childcare Settings
Cambridgeshire County Council,01-Apr-21,51301549897,"1,827.43",LADYBIRD PLAY & TODDLER GROUP,NURSERY,Nursery Schools,Early Years - Funded 3s/4s,Care & Ed Childcare Settings
Cambridgeshire County Council,01-Apr-21,51301549698,"1,829.52",Redacted Personal Data ,INDIVIDUAL,Nursery Schools,Early Years - Funded 3s/4s,Care & Ed Childcare Settings
Cambridgeshire County Council,01-Apr-21,51301549902,"1,852.83",Redacted Personal Data ,INDIVIDUAL,Nursery Schools,Early Years - Funded 3s/4s,Care & Ed Childcare Settings
Cambridgeshire County Council,01-Apr-21,51301549817,"1,869.84",Redacted Personal Data ,INDIVIDUAL,Nursery Schools,Early Years - Funded 3s/4s,Care & Ed Childcare Settings
Cambridgeshire County Council,01-Apr-21,51301550060,"1,893.06",Redacted Personal Data ,INDIVIDUAL,Nursery Schools,Early Years - Funded 3s/4s,Care & Ed Childcare Settings
Cambridgeshire County Council,01-Apr-21,51301549811,"1,900.08",Redacted Personal Data ,INDIVIDUAL,Nursery Schools,Early Years - Funded 3s/4s,Care & Ed Childcare Settings
Cambridgeshire County Council,01-Apr-21,51301549691,"1,916.46",Redacted Personal Data ,INDIVIDUAL,Nursery Schools,Early Years - Funded 3s/4s,Care & Ed Childcare Settings
Cambridgeshire County Council,01-Apr-21,51301549977,"1,925.96",Redacted Personal Data ,INDIVIDUAL,Nursery Schools,Early Years - Funded 3s/4s,Care & Ed Childcare Settings
Cambridgeshire County Council,01-Apr-21,51301550030,"1,929.33",Redacted Personal Data ,INDIVIDUAL,Nursery Schools,Early Years - Funded 3s/4s,Care & Ed Childcare Settings
Cambridgeshire County Council,01-Apr-21,51301550048,"1,937.13",Redacted Personal Data ,INDIVIDUAL,Nursery Schools,Early Years - Funded 3s/4s,Care & Ed Childcare Settings
Cambridgeshire County Council,01-Apr-21,51301549635,"1,962.20",Redacted Personal Data ,INDIVIDUAL,Nursery Schools,Early Years - Funded 3s/4s,Care & Ed Childcare Settings
Cambridgeshire County Council,01-Apr-21,51301549631,"1,963.84",Redacted Personal Data ,INDIVIDUAL,Nursery Schools,Early Years - Funded 3s/4s,Care & Ed Childcare Settings
Cambridgeshire County Council,01-Apr-21,51301549753,"1,965.60",Redacted Personal Data ,INDIVIDUAL,Nursery Schools,Early Years - Funded 3s/4s,Care & Ed Childcare Settings
Cambridgeshire County Council,01-Apr-21,51301549864,"1,965.60",Redacted Personal Data ,INDIVIDUAL,Nursery Schools,Early Years - Funded 3s/4s,Care & Ed Childcare Settings
Cambridgeshire County Council,01-Apr-21,51301549626,"1,965.60",Redacted Personal Data ,INDIVIDUAL,Nursery Schools,Early Years - Funded 3s/4s,Care & Ed Childcare Settings
Cambridgeshire County Council,01-Apr-21,51301549618,"1,965.60",Redacted Personal Data ,INDIVIDUAL,Nursery Schools,Early Years - Funded 3s/4s,Care & Ed Childcare Settings
Cambridgeshire County Council,01-Apr-21,51301549696,"1,965.60",Redacted Personal Data ,INDIVIDUAL,Nursery Schools,Early Years - Funded 3s/4s,Care & Ed Childcare Settings
Cambridgeshire County Council,01-Apr-21,51301549909,"1,965.60",Redacted Personal Data ,INDIVIDUAL,Nursery Schools,Early Years - Funded 3s/4s,Care & Ed Childcare Settings
Cambridgeshire County Council,01-Apr-21,51301550090,"1,965.60",Redacted Personal Data ,INDIVIDUAL,Nursery Schools,Early Years - Funded 3s/4s,Care & Ed Childcare Settings
Cambridgeshire County Council,01-Apr-21,51301549743,"1,965.60",Redacted Personal Data ,INDIVIDUAL,Nursery Schools,Early Years - Funded 3s/4s,Care & Ed Childcare Settings
Cambridgeshire County Council,01-Apr-21,51301549994,"2,027.61",Redacted Personal Data ,INDIVIDUAL,Nursery Schools,Early Years - Funded 3s/4s,Care & Ed Childcare Settings
Cambridgeshire County Council,01-Apr-21,51301550073,"2,036.66",Redacted Personal Data ,INDIVIDUAL,Nursery Schools,Early Years - Funded 3s/4s,Care & Ed Childcare Settings
Cambridgeshire County Council,01-Apr-21,51301549863,"2,047.50",Redacted Personal Data ,INDIVIDUAL,Nursery Schools,Early Years - Funded 3s/4s,Care & Ed Childcare Settings
Cambridgeshire County Council,01-Apr-21,51301550059,"2,048.76",Redacted Personal Data ,INDIVIDUAL,Nursery Schools,Early Years - Funded 3s/4s,Care & Ed Childcare Settings
Cambridgeshire County Council,01-Apr-21,51301549578,"2,050.00",Middleton School,EDUCATION,Recoupment,Procurement - Out-County Special Schools & ER,Independent School Placements
Cambridgeshire County Council,01-Apr-21,51301549636,"2,061.07",Redacted Personal Data ,INDIVIDUAL,Nursery Schools,Early Years - Funded 3s/4s,Care & Ed Childcare Settings
Cambridgeshire County Council,01-Apr-21,51301550029,"2,063.88",Redacted Personal Data ,INDIVIDUAL,Nursery Schools,Early Years - Funded 3s/4s,Care & Ed Childcare Settings
Cambridgeshire County Council,01-Apr-21,51301549814,"2,108.61",Redacted Personal Data ,INDIVIDUAL,Nursery Schools,Early Years - Funded 3s/4s,Care & Ed Childcare Settings
Cambridgeshire County Council,01-Apr-21,51301549914,"2,121.21",Redacted Personal Data ,INDIVIDUAL,Nursery Schools,Early Years - Funded 3s/4s,Care & Ed Childcare Settings
Cambridgeshire County Council,01-Apr-21,51301549907,"2,162.16",Redacted Personal Data ,INDIVIDUAL,Nursery Schools,Early Years - Funded 3s/4s,Care & Ed Childcare Settings
Cambridgeshire County Council,01-Apr-21,51301550130,"2,189.38",Redacted Personal Data ,INDIVIDUAL,Nursery Schools,Early Years - Funded 3s/4s,Care & Ed Childcare Settings
Cambridgeshire County Council,01-Apr-21,51301549877,"2,189.38",Redacted Personal Data ,INDIVIDUAL,Nursery Schools,Early Years - Funded 3s/4s,Care & Ed Childcare Settings
Cambridgeshire County Council,01-Apr-21,51301549693,"2,211.30",Redacted Personal Data ,INDIVIDUAL,Nursery Schools,Early Years - Funded 3s/4s,Care & Ed Childcare Settings
Cambridgeshire County Council,01-Apr-21,51301550096,"2,248.74",Redacted Personal Data ,INDIVIDUAL,Nursery Schools,Early Years - Funded 3s/4s,Care & Ed Childcare Settings
Cambridgeshire County Council,01-Apr-21,51301550227,"2,259.00",Creative Care Ltd,COMPANY,Disability Units,DCSWT Hunts,Specialist Equipment For Service Delivery
Cambridgeshire County Council,01-Apr-21,51301550003,"2,260.44",Redacted Personal Data ,INDIVIDUAL,Nursery Schools,Early Years - Funded 3s/4s,Care & Ed Childcare Settings
Cambridgeshire County Council,01-Apr-21,51301550071,"2,272.84",Redacted Personal Data ,INDIVIDUAL,Nursery Schools,Early Years - Funded 3s/4s,Care & Ed Childcare Settings
Cambridgeshire County Council,01-Apr-21,51301509927,"2,281.42",MARSHFIELDS SCHOOL,EDUCATION,Recoupment,Procurement - Out-County Special Schools & ER,Independent School Placements
Cambridgeshire County Council,01-Apr-21,51301549761,"2,295.46",Redacted Personal Data ,INDIVIDUAL,Nursery Schools,Early Years - Funded 3s/4s,Care & Ed Childcare Settings
Cambridgeshire County Council,01-Apr-21,51301549973,"2,301.29",Redacted Personal Data ,INDIVIDUAL,Nursery Schools,Early Years - Funded 3s/4s,Care & Ed Childcare Settings
Cambridgeshire County Council,01-Apr-21,51301549958,"2,306.70",Redacted Personal Data ,INDIVIDUAL,Nursery Schools,Early Years - Funded 3s/4s,Care & Ed Childcare Settings
Cambridgeshire County Council,01-Apr-21,51301549766,"2,309.91",FOWLMERE PLAYGROUP,NURSERY,Nursery Schools,Early Years - Funded 3s/4s,Care & Ed Childcare Settings
Cambridgeshire County Council,01-Apr-21,51301550099,"2,312.61",Redacted Personal Data ,INDIVIDUAL,Nursery Schools,Early Years - Funded 3s/4s,Care & Ed Childcare Settings
Cambridgeshire County Council,01-Apr-21,51301549868,"2,348.19",Redacted Personal Data ,INDIVIDUAL,Nursery Schools,Early Years - Funded 3s/4s,Care & Ed Childcare Settings
Cambridgeshire County Council,01-Apr-21,51301549689,"2,358.00",Redacted Personal Data ,INDIVIDUAL,Nursery Schools,Early Years - Funded 3s/4s,Care & Ed Childcare Settings
Cambridgeshire County Council,01-Apr-21,51301550049,"2,358.72",Redacted Personal Data ,INDIVIDUAL,Nursery Schools,Early Years - Funded 3s/4s,Care & Ed Childcare Settings
Cambridgeshire County Council,01-Apr-21,51301549920,"2,396.86",Redacted Personal Data ,INDIVIDUAL,Nursery Schools,Early Years - Funded 3s/4s,Care & Ed Childcare Settings
Cambridgeshire County Council,01-Apr-21,51301550058,"2,439.57",Redacted Personal Data ,INDIVIDUAL,Nursery Schools,Early Years - Funded 3s/4s,Care & Ed Childcare Settings
Cambridgeshire County Council,01-Apr-21,51301550131,"2,457.00",Redacted Personal Data ,INDIVIDUAL,Nursery Schools,Early Years - Funded 3s/4s,Care & Ed Childcare Settings
Cambridgeshire County Council,01-Apr-21,51301549632,"2,470.34",Redacted Personal Data ,INDIVIDUAL,Nursery Schools,Early Years - Funded 3s/4s,Care & Ed Childcare Settings
Cambridgeshire County Council,01-Apr-21,51301549921,"2,555.28",Redacted Personal Data ,INDIVIDUAL,Nursery Schools,Early Years - Funded 3s/4s,Care & Ed Childcare Settings
Cambridgeshire County Council,01-Apr-21,51301549844,"2,617.29",Redacted Personal Data ,INDIVIDUAL,Nursery Schools,Early Years - Funded 3s/4s,Care & Ed Childcare Settings
Cambridgeshire County Council,01-Apr-21,51301549879,"2,653.56",Redacted Personal Data ,INDIVIDUAL,Nursery Schools,Early Years - Funded 3s/4s,Care & Ed Childcare Settings
Cambridgeshire County Council,01-Apr-21,51301550004,"2,717.40",Redacted Personal Data ,INDIVIDUAL,Nursery Schools,Early Years - Funded 3s/4s,Care & Ed Childcare Settings
Cambridgeshire County Council,01-Apr-21,51301549875,"2,718.58",Redacted Personal Data ,INDIVIDUAL,Nursery Schools,Early Years - Funded 3s/4s,Care & Ed Childcare Settings
Cambridgeshire County Council,01-Apr-21,51301550054,"2,740.76",Redacted Personal Data ,INDIVIDUAL,Nursery Schools,Early Years - Funded 3s/4s,Care & Ed Childcare Settings
Cambridgeshire County Council,01-Apr-21,51301549708,"2,799.22",Redacted Personal Data ,INDIVIDUAL,Nursery Schools,Early Years - Funded 3s/4s,Care & Ed Childcare Settings
Cambridgeshire County Council,01-Apr-21,51301549649,"2,849.40",Redacted Personal Data ,INDIVIDUAL,Nursery Schools,Early Years - Funded 3s/4s,Care & Ed Childcare Settings
Cambridgeshire County Council,01-Apr-21,51301549815,"2,849.40",Redacted Personal Data ,INDIVIDUAL,Nursery Schools,Early Years - Funded 3s/4s,Care & Ed Childcare Settings
Cambridgeshire County Council,01-Apr-21,51301549959,"2,882.88",Redacted Personal Data ,INDIVIDUAL,Nursery Schools,Early Years - Funded 3s/4s,Care & Ed Childcare Settings
Cambridgeshire County Council,01-Apr-21,51301549644,"2,922.00",BARTON PLAYGROUP,NURSERY,Nursery Schools,Early Years - Funded 3s/4s,Care & Ed Childcare Settings
Cambridgeshire County Council,01-Apr-21,51301550100,"2,948.40",Redacted Personal Data ,INDIVIDUAL,Nursery Schools,Early Years - Funded 3s/4s,Care & Ed Childcare Settings
Cambridgeshire County Council,01-Apr-21,51301549873,"2,979.29",KENNETT FOUNDATION STAGE UNIT,NURSERY,Nursery Schools,Early Years - Funded 3s/4s,Care & Ed Childcare Settings
Cambridgeshire County Council,01-Apr-21,51301549837,"3,021.20",Redacted Personal Data ,INDIVIDUAL,Nursery Schools,Early Years - Funded 3s/4s,Care & Ed Childcare Settings
Cambridgeshire County Council,01-Apr-21,51301549781,"3,041.58",Redacted Personal Data ,INDIVIDUAL,Nursery Schools,Early Years - Funded 3s/4s,Care & Ed Childcare Settings
Cambridgeshire County Council,01-Apr-21,51301549685,"3,073.14",Redacted Personal Data ,INDIVIDUAL,Nursery Schools,Early Years - Funded 3s/4s,Care & Ed Childcare Settings
Cambridgeshire County Council,01-Apr-21,51301550165,"3,089.70",CROSS KEYS HOMES LIMITED,CARE ESTABLISHMENT,Emergency Duty Team,Emergency Duty  Team,Telephone costs
Cambridgeshire County Council,01-Apr-21,51301550168,"3,089.70",CROSS KEYS HOMES LIMITED,CARE ESTABLISHMENT,Emergency Duty Team,Emergency Duty  Team,Mobile Phones
Cambridgeshire County Council,01-Apr-21,51301549915,"3,101.12",Redacted Personal Data ,INDIVIDUAL,Nursery Schools,Early Years - Funded 3s/4s,Care & Ed Childcare Settings
Cambridgeshire County Council,01-Apr-21,51301550286,"3,120.00",Redacted Personal Data ,PARENT/GUARDIAN,Children's Disability Direct Payments,CSC Direct Payments,Direct Payments
Cambridgeshire County Council,01-Apr-21,51301550136,"3,232.71",Twizzle Tops Day Nursery,NURSERY,Nursery Schools,Early Years - Funded 3s/4s,Care & Ed Childcare Settings
Cambridgeshire County Council,01-Apr-21,51301549970,"3,240.89",Redacted Personal Data ,INDIVIDUAL,Nursery Schools,Early Years - Funded 3s/4s,Care & Ed Childcare Settings
Cambridgeshire County Council,01-Apr-21,51301549744,"3,319.60",Redacted Personal Data ,INDIVIDUAL,Nursery Schools,Early Years - Funded 3s/4s,Care & Ed Childcare Settings
Cambridgeshire County Council,01-Apr-21,51301550020,"3,333.97",Redacted Personal Data ,INDIVIDUAL,Nursery Schools,Early Years - Funded 3s/4s,Care & Ed Childcare Settings
Cambridgeshire County Council,01-Apr-21,51301549606,"3,390.40",RUSHMOOR SCHOOL LTD,EDUCATION,SEND High Needs Top Up,"SEND Specialist Services,High Needs Top Up,Other institutions",Independent School Placements
Cambridgeshire County Council,01-Apr-21,51301549723,"3,397.64",Redacted Personal Data ,INDIVIDUAL,Nursery Schools,Early Years - Funded 3s/4s,Care & Ed Childcare Settings
Cambridgeshire County Council,01-Apr-21,51301549918,"3,417.83",Redacted Personal Data ,INDIVIDUAL,Nursery Schools,Early Years - Funded 3s/4s,Care & Ed Childcare Settings
Cambridgeshire County Council,01-Apr-21,51301550009,"3,439.80",THE OLD BUTTERY NURSERY,NURSERY,Nursery Schools,Early Years - Funded 3s/4s,Care & Ed Childcare Settings
Cambridgeshire County Council,01-Apr-21,51301550284,"3,473.55",THE FOSTER CARE CO-OPERATIVE LIMITED,TRADE SUPPLIER,LAC Placements,Placements - independent fostering,Agency Placements - Out of  County
Cambridgeshire County Council,01-Apr-21,51301549806,"3,513.90",Redacted Personal Data ,INDIVIDUAL,Nursery Schools,Early Years - Funded 3s/4s,Care & Ed Childcare Settings
Cambridgeshire County Council,01-Apr-21,51301550285,"3,562.52",THE FOSTER CARE CO-OPERATIVE LIMITED,TRADE SUPPLIER,LAC Placements,Placements - independent fostering,Agency Placements - Out of  County
Cambridgeshire County Council,01-Apr-21,51301550088,"3,600.09",STANTON FARM DAY NURSERY,NURSERY,Nursery Schools,Early Years - Funded 3s/4s,Care & Ed Childcare Settings
Cambridgeshire County Council,01-Apr-21,51301549857,"3,619.74",Redacted Personal Data ,INDIVIDUAL,Nursery Schools,Early Years - Funded 3s/4s,Care & Ed Childcare Settings
Cambridgeshire County Council,01-Apr-21,51301550288,"3,640.00",Redacted Personal Data ,PARENT/GUARDIAN,Children's Disability Direct Payments,CSC Direct Payments,Direct Payments
Cambridgeshire County Council,01-Apr-21,51301549870,"3,663.21",Redacted Personal Data ,INDIVIDUAL,Nursery Schools,Early Years - Funded 3s/4s,Care & Ed Childcare Settings
Cambridgeshire County Council,01-Apr-21,51301550075,"3,704.94",Redacted Personal Data ,INDIVIDUAL,Nursery Schools,Early Years - Funded 3s/4s,Care & Ed Childcare Settings
Cambridgeshire County Council,01-Apr-21,51301549609,"3,729.44",ST ANDREW'S SCHOOL,EDUCATION,SEND High Needs Top Up,"SEND Specialist Services,High Needs Top Up,Other institutions",Educational Materials
Cambridgeshire County Council,01-Apr-21,51301549719,"3,779.28",Redacted Personal Data ,INDIVIDUAL,Nursery Schools,Early Years - Funded 3s/4s,Care & Ed Childcare Settings
Cambridgeshire County Council,01-Apr-21,51301549730,"3,849.59",Redacted Personal Data ,INDIVIDUAL,Nursery Schools,Early Years - Funded 3s/4s,Care & Ed Childcare Settings
Cambridgeshire County Council,01-Apr-21,51301549612,"3,861.12",Redacted Personal Data ,INDIVIDUAL,Nursery Schools,Early Years - Funded 3s/4s,Care & Ed Childcare Settings
Cambridgeshire County Council,01-Apr-21,51301550282,"3,963.35",THE FOSTER CARE CO-OPERATIVE LIMITED,TRADE SUPPLIER,LAC Placements,Placements - independent fostering,Agency Placements - Out of  County
Cambridgeshire County Council,01-Apr-21,51301549849,"3,970.43",Redacted Personal Data ,INDIVIDUAL,Nursery Schools,Early Years - Funded 3s/4s,Care & Ed Childcare Settings
Cambridgeshire County Council,01-Apr-21,51301549697,"4,074.85",Redacted Personal Data ,INDIVIDUAL,Nursery Schools,Early Years - Funded 3s/4s,Care & Ed Childcare Settings
Cambridgeshire County Council,01-Apr-21,51301549808,"4,120.74",Redacted Personal Data ,INDIVIDUAL,Nursery Schools,Early Years - Funded 3s/4s,Care & Ed Childcare Settings
Cambridgeshire County Council,01-Apr-21,51301549550,"4,189.00",FENLAND ASSOCIATION FOR COMMUNITY TRANSPORT LTD (FACT),LOCAL CLUBS & GROUPS,Passenger Transport other,Community Transport,Grants to Voluntary Bodies
Cambridgeshire County Council,01-Apr-21,51301550167,"4,320.00",Cruse Bereavement Care,CHARITY,PH Adult Mental Health & Community Safety,Public Mental Health - General Preventions,Professional Fees and Hired Services
Cambridgeshire County Council,01-Apr-21,65300016541,"4,320.00",Cruse Bereavement Care,CHARITY,Control Accounts,Bank Account - Payables,Bank Account - Payables
Cambridgeshire County Council,01-Apr-21,51301549809,"4,464.34",Redacted Personal Data ,INDIVIDUAL,Nursery Schools,Early Years - Funded 3s/4s,Care & Ed Childcare Settings
Cambridgeshire County Council,01-Apr-21,51301549845,"4,466.67",Redacted Personal Data ,INDIVIDUAL,Nursery Schools,Early Years - Funded 3s/4s,Care & Ed Childcare Settings
Cambridgeshire County Council,01-Apr-21,51301550026,"4,484.61",PUDDLEDUCKS UNDER FIVES,NURSERY,Nursery Schools,Early Years - Funded 3s/4s,Care & Ed Childcare Settings
Cambridgeshire County Council,01-Apr-21,51301549807,"4,503.11",Redacted Personal Data ,INDIVIDUAL,Nursery Schools,Early Years - Funded 3s/4s,Care & Ed Childcare Settings
Cambridgeshire County Council,01-Apr-21,51301550043,"4,591.87",Redacted Personal Data ,INDIVIDUAL,Nursery Schools,Early Years - Funded 3s/4s,Care & Ed Childcare Settings
Cambridgeshire County Council,01-Apr-21,51301550129,"4,681.89",Redacted Personal Data ,INDIVIDUAL,Nursery Schools,Early Years - Funded 3s/4s,Care & Ed Childcare Settings
Cambridgeshire County Council,01-Apr-21,51301549784,"4,779.45",GREAT PAXTON PRE-SCHOOL,NURSERY,Nursery Schools,Early Years - Funded 3s/4s,Care & Ed Childcare Settings
Cambridgeshire County Council,01-Apr-21,51301549847,"5,023.10",Redacted Personal Data ,INDIVIDUAL,Nursery Schools,Early Years - Funded 3s/4s,Care & Ed Childcare Settings
Cambridgeshire County Council,01-Apr-21,51301549859,"5,039.86",Redacted Personal Data ,INDIVIDUAL,Nursery Schools,Early Years - Funded 3s/4s,Care & Ed Childcare Settings
Cambridgeshire County Council,01-Apr-21,51301549735,"5,369.13",Redacted Personal Data ,INDIVIDUAL,Nursery Schools,Early Years - Funded 3s/4s,Care & Ed Childcare Settings
Cambridgeshire County Council,01-Apr-21,51301549707,"5,438.16",Redacted Personal Data ,INDIVIDUAL,Nursery Schools,Early Years - Funded 3s/4s,Care & Ed Childcare Settings
Cambridgeshire County Council,01-Apr-21,51301550144,"5,444.79",Redacted Personal Data ,INDIVIDUAL,Nursery Schools,Early Years - Funded 3s/4s,Care & Ed Childcare Settings
Cambridgeshire County Council,01-Apr-21,51301550081,"5,518.89",SOHAM PLAYGROUP@WETHERHALLS,NURSERY,Nursery Schools,Early Years - Funded 3s/4s,Care & Ed Childcare Settings
Cambridgeshire County Council,01-Apr-21,51301550041,"5,585.34",Redacted Personal Data ,INDIVIDUAL,Nursery Schools,Early Years - Funded 3s/4s,Care & Ed Childcare Settings
Cambridgeshire County Council,01-Apr-21,51301549831,"5,621.11",JACK & JILL PLAYGROUP,NURSERY,Nursery Schools,Early Years - Funded 3s/4s,Care & Ed Childcare Settings
Cambridgeshire County Council,01-Apr-21,51301550056,"6,010.29",SAPLINGS PRE SCHOOL PLAYGROUP,NURSERY,Nursery Schools,Early Years - Funded 3s/4s,Care & Ed Childcare Settings
Cambridgeshire County Council,01-Apr-21,51301549910,"6,032.90",Redacted Personal Data ,NURSERY,Nursery Schools,Early Years - Funded 3s/4s,Care & Ed Childcare Settings
Cambridgeshire County Council,01-Apr-21,51301550228,"6,048.00",SANCTUARY HOME CARE LTD,CARE ESTABLISHMENT,OP - Fenland Locality - Cost of Care,Older People - Fenland - Care,Supported Living
Cambridgeshire County Council,01-Apr-21,51301549934,"6,123.36",LITTLE LAMBS PRE SCHOOL,NURSERY,Nursery Schools,Early Years - Funded 3s/4s,Care & Ed Childcare Settings
Cambridgeshire County Council,01-Apr-21,51301549767,"6,223.68",FOXTON PRE-SCHOOL,NURSERY,Nursery Schools,Early Years - Funded 3s/4s,Care & Ed Childcare Settings
Cambridgeshire County Council,01-Apr-21,51301550127,"6,267.78",Redacted Personal Data ,INDIVIDUAL,Nursery Schools,Early Years - Funded 3s/4s,Care & Ed Childcare Settings
Cambridgeshire County Council,01-Apr-21,51301549901,"6,453.72",Redacted Personal Data ,INDIVIDUAL,Nursery Schools,Early Years - Funded 3s/4s,Care & Ed Childcare Settings
Cambridgeshire County Council,01-Apr-21,51301549935,"6,459.57",Little Legs Montessori,NURSERY,Nursery Schools,Early Years - Funded 3s/4s,Care & Ed Childcare Settings
Cambridgeshire County Council,01-Apr-21,51301549269,"6,516.00",PETERBOROUGH CITY COUNCIL,OTHER PUBLIC BODIES,Data Centre Relocation,Data Centre Relocation,IT Hardware
Cambridgeshire County Council,01-Apr-21,51301550023,"6,533.20",PLAYLANDERS PLAYGROUP,NURSERY,Nursery Schools,Early Years - Funded 3s/4s,Care & Ed Childcare Settings
Cambridgeshire County Council,01-Apr-21,51301549885,"6,758.99",KING STREET PRESCHOOL,NURSERY,Nursery Schools,Early Years - Funded 3s/4s,Care & Ed Childcare Settings
Cambridgeshire County Council,01-Apr-21,51301549724,"6,797.70",COTON PRE-SCHOOL,EDUCATION,Nursery Schools,Early Years - Funded 3s/4s,Care & Ed Childcare Settings
Cambridgeshire County Council,01-Apr-21,51301550149,"6,874.56",WHITEHALL SCHOOL,NURSERY,Nursery Schools,Early Years - Funded 3s/4s,Care & Ed Childcare Settings
Cambridgeshire County Council,01-Apr-21,51301546096,"6,885.48",CAMBRIDGESHIRE AND PETERBOROUGH NHS FOUNDATION TRUST,TRUST (OTHER),LD - Head of Service,Head of LDP,Staffing Recharges - External
Cambridgeshire County Council,01-Apr-21,51301549990,"6,895.98",MULBERRY MONTESSORI SCHOOL,NURSERY,Nursery Schools,Early Years - Funded 3s/4s,Care & Ed Childcare Settings
Cambridgeshire County Council,01-Apr-21,51301549763,"6,956.52",Flying Start Montessori,NURSERY,Nursery Schools,Early Years - Funded 3s/4s,Care & Ed Childcare Settings
Cambridgeshire County Council,01-Apr-21,51301550126,"6,967.35",Redacted Personal Data ,INDIVIDUAL,Nursery Schools,Early Years - Funded 3s/4s,Care & Ed Childcare Settings
Cambridgeshire County Council,01-Apr-21,51301550079,"6,985.23",SNAP! 4 KIDS HAUXTON,NURSERY,Nursery Schools,Early Years - Funded 3s/4s,Care & Ed Childcare Settings
Cambridgeshire County Council,01-Apr-21,51301550040,"7,048.78",ROMSEY MILL PLAYGROUP,NURSERY,Nursery Schools,Early Years - Funded 3s/4s,Care & Ed Childcare Settings
Cambridgeshire County Council,01-Apr-21,51301549922,"7,176.78",LITLINGTON PRESCHOOL,NURSERY,Nursery Schools,Early Years - Funded 3s/4s,Care & Ed Childcare Settings
Cambridgeshire County Council,01-Apr-21,51301550024,"7,458.75",PLAYTIMES,NURSERY,Nursery Schools,Early Years - Funded 3s/4s,Care & Ed Childcare Settings
Cambridgeshire County Council,01-Apr-21,51301550076,"7,495.02",SMARTIES PRE SCHOOL AND OUT OF SCHOOL CLUB,NURSERY,Nursery Schools,Early Years - Funded 3s/4s,Care & Ed Childcare Settings
Cambridgeshire County Council,01-Apr-21,51301549669,"7,654.12",BUCKDEN PRE-SCHOOL PLAYGROUP,NURSERY,Nursery Schools,Early Years - Funded 3s/4s,Care & Ed Childcare Settings
Cambridgeshire County Council,01-Apr-21,51301549988,"7,773.48",MOTHER GOOSE PRE-SCHOOL,NURSERY,Nursery Schools,Early Years - Funded 3s/4s,Care & Ed Childcare Settings
Cambridgeshire County Council,01-Apr-21,51301549800,"7,779.33",KIDDIWINKS PLAYGROUP,NURSERY,Nursery Schools,Early Years - Funded 3s/4s,Care & Ed Childcare Settings
Cambridgeshire County Council,01-Apr-21,51301550008,"7,945.48",OFFORD PRE-SCHOOL,NURSERY,Nursery Schools,Early Years - Funded 3s/4s,Care & Ed Childcare Settings
Cambridgeshire County Council,01-Apr-21,51301549672,"7,960.68",BURY PLAYGROUP,NURSERY,Nursery Schools,Early Years - Funded 3s/4s,Care & Ed Childcare Settings
Cambridgeshire County Council,01-Apr-21,51301550198,"8,000.00",LONG ROAD SIXTH FORM COLLEGE,EDUCATION,SEND High Needs Top Up,SEND Specialist Services-High needs top-up-Post 16,Independent School Placements
Cambridgeshire County Council,01-Apr-21,51301550111,"8,041.41",TEVERSHAM PLAYGROUP,NURSERY,Nursery Schools,Early Years - Funded 3s/4s,Care & Ed Childcare Settings
Cambridgeshire County Council,01-Apr-21,51301549803,"8,103.42",HASLINGFIELD LITTLE OWLS COMMITTEE,NURSERY,Nursery Schools,Early Years - Funded 3s/4s,Care & Ed Childcare Settings
Cambridgeshire County Council,01-Apr-21,51301550128,"8,130.80",TIDDLYWINKS PRE-SCHOOL,NURSERY,Nursery Schools,Early Years - Funded 3s/4s,Care & Ed Childcare Settings
Cambridgeshire County Council,01-Apr-21,51301499452,"8,340.00",CARTER JONAS LLP,TRADE SUPPLIER,County Farms,County Farms,Professional Fees and Hired Services
Cambridgeshire County Council,01-Apr-21,51301550083,"8,345.17",WYTON CHILDREN AND FAMILY SERVICES,NURSERY,Nursery Schools,Early Years - Funded 3s/4s,Care & Ed Childcare Settings
Cambridgeshire County Council,01-Apr-21,51301549937,"8,415.81",LITTLE OWL PRE-SCHOOL,NURSERY,Nursery Schools,Early Years - Funded 3s/4s,Care & Ed Childcare Settings
Cambridgeshire County Council,01-Apr-21,51301549982,"8,424.58",Monkey Puzzle Day Nursery and Pre-School Grange Road,NURSERY,Nursery Schools,Early Years - Funded 3s/4s,Care & Ed Childcare Settings
Cambridgeshire County Council,01-Apr-21,51301549785,"8,461.00",GREAT STAUGHTON PRE-SCHOOL (PIGLETS),NURSERY,Nursery Schools,Early Years - Funded 3s/4s,Care & Ed Childcare Settings
Cambridgeshire County Council,01-Apr-21,51301550087,"8,477.82",St Philip's Nursery Class,NURSERY,Nursery Schools,Early Years - Funded 3s/4s,Care & Ed Childcare Settings
Cambridgeshire County Council,01-Apr-21,51301549660,"8,675.63",CROCUS EARLY YEARS CENTRE,NURSERY,Nursery Schools,Early Years - Funded 3s/4s,Care & Ed Childcare Settings
Cambridgeshire County Council,01-Apr-21,51301549748,"8,819.64",ELSWORTH PRE-SCHOOL,NURSERY,Nursery Schools,Early Years - Funded 3s/4s,Care & Ed Childcare Settings
Cambridgeshire County Council,01-Apr-21,51301550080,"8,866.73",SOHAM PLAYGROUP@ST ANDREWS,NURSERY,Nursery Schools,Early Years - Funded 3s/4s,Care & Ed Childcare Settings
Cambridgeshire County Council,01-Apr-21,51301549666,"8,904.08",BRIGHT HORIZONS @ WOLFSON COURT,NURSERY,Nursery Schools,Early Years - Funded 3s/4s,Care & Ed Childcare Settings
Cambridgeshire County Council,01-Apr-21,51301550000,"8,907.21",NEWNHAM NURSERY,NURSERY,Nursery Schools,Early Years - Funded 3s/4s,Care & Ed Childcare Settings
Cambridgeshire County Council,01-Apr-21,51301550011,"9,030.32",OVER PUDDLEDUCKS PRE-SCHOOL,NURSERY,Nursery Schools,Early Years - Funded 3s/4s,Care & Ed Childcare Settings
Cambridgeshire County Council,01-Apr-21,51301550027,"9,049.35",QUEENS COLLEGE NURSERY,NURSERY,Nursery Schools,Early Years - Funded 3s/4s,Care & Ed Childcare Settings
Cambridgeshire County Council,01-Apr-21,51301549989,"9,049.35",MRS CAMERON DAY NURSERY,NURSERY,Nursery Schools,Early Years - Funded 3s/4s,Care & Ed Childcare Settings
Cambridgeshire County Council,01-Apr-21,51301549640,"9,056.04",THE ASHBEACH LADYBIRDS PRE-SCHOOL,NURSERY,Nursery Schools,Early Years - Funded 3s/4s,Care & Ed Childcare Settings
Cambridgeshire County Council,01-Apr-21,51301550150,"9,150.18",WHITSERS PRE-SCHOOL PLAYGROUP,NURSERY,Nursery Schools,Early Years - Funded 3s/4s,Care & Ed Childcare Settings
Cambridgeshire County Council,01-Apr-21,51301549683,"9,336.60",CAMBRIDGE MONTESSORI,NURSERY,Nursery Schools,Early Years - Funded 3s/4s,Care & Ed Childcare Settings
Cambridgeshire County Council,01-Apr-21,51301549911,"9,371.23",LILLIPUT PRE SCHOOL,NURSERY,Nursery Schools,Early Years - Funded 3s/4s,Care & Ed Childcare Settings
Cambridgeshire County Council,01-Apr-21,51301549827,"9,496.89",HOLME VILLAGE PRESCHOOL,NURSERY,Nursery Schools,Early Years - Funded 3s/4s,Care & Ed Childcare Settings
Cambridgeshire County Council,01-Apr-21,51301549953,"9,554.12",Redacted Personal Data ,INDIVIDUAL,Nursery Schools,Early Years - Funded 3s/4s,Care & Ed Childcare Settings
Cambridgeshire County Council,01-Apr-21,51301549791,"9,604.53",HAIL WESTON PRE-SCHOOL ACTIVITY GROUP,NURSERY,Nursery Schools,Early Years - Funded 3s/4s,Care & Ed Childcare Settings
Cambridgeshire County Council,01-Apr-21,51301550033,"9,711.71",RAINBOW PRE SCHOOL,NURSERY,Nursery Schools,Early Years - Funded 3s/4s,Care & Ed Childcare Settings
Cambridgeshire County Council,01-Apr-21,51301549822,"9,755.46",Herons' Preschool,NURSERY,Nursery Schools,Early Years - Funded 3s/4s,Care & Ed Childcare Settings
Cambridgeshire County Council,01-Apr-21,51301549788,"9,765.29",GUILDEN MORDEN COMMUNITY PRE-SCHOOL,NURSERY,Nursery Schools,Early Years - Funded 3s/4s,Care & Ed Childcare Settings
Cambridgeshire County Council,01-Apr-21,51301550077,"9,828.00",SMITHS CHILDREN MONTESSORI ST LUKES CHURCH,NURSERY,Nursery Schools,Early Years - Funded 3s/4s,Care & Ed Childcare Settings
Cambridgeshire County Council,01-Apr-21,51301549869,"9,836.03",Redacted Personal Data ,INDIVIDUAL,Nursery Schools,Early Years - Funded 3s/4s,Care & Ed Childcare Settings
Cambridgeshire County Council,01-Apr-21,51301549789,"9,923.79",Gymfinity Kids,NURSERY,Nursery Schools,Early Years - Funded 3s/4s,Care & Ed Childcare Settings
Cambridgeshire County Council,01-Apr-21,51301549974,"10,107.86",Mepal & Witcham Primary School Foundation Stage Unit,NURSERY,Nursery Schools,Early Years - Funded 3s/4s,Care & Ed Childcare Settings
Cambridgeshire County Council,01-Apr-21,51301549824,"10,279.98",Hilton Day Nursery,NURSERY,Nursery Schools,Early Years - Funded 3s/4s,Care & Ed Childcare Settings
Cambridgeshire County Council,01-Apr-21,51301549804,"10,299.04",HAUXTON PRE SCHOOL,NURSERY,Nursery Schools,Early Years - Funded 3s/4s,Care & Ed Childcare Settings
Cambridgeshire County Council,01-Apr-21,51301549758,"10,577.22",FENSTANTON PRE-SCHOOL,NURSERY,Nursery Schools,Early Years - Funded 3s/4s,Care & Ed Childcare Settings
Cambridgeshire County Council,01-Apr-21,51301550010,"10,631.71",OVER NEW ROAD PRESCHOOL CIC,NURSERY,Nursery Schools,Early Years - Funded 3s/4s,Care & Ed Childcare Settings
Cambridgeshire County Council,01-Apr-21,51301550039,"10,658.00",ROMSEY MILL PLAYGROUP @ ROSS STREET,NURSERY,Nursery Schools,Early Years - Funded 3s/4s,Care & Ed Childcare Settings
Cambridgeshire County Council,01-Apr-21,51301550153,"10,693.01",THE WILLOWS DAY CARE NURSERY,NURSERY,Nursery Schools,Early Years - Funded 3s/4s,Care & Ed Childcare Settings
Cambridgeshire County Council,01-Apr-21,51301549933,"10,814.05",LITTLE INCREDIBLES,NURSERY,Nursery Schools,Early Years - Funded 3s/4s,Care & Ed Childcare Settings
Cambridgeshire County Council,01-Apr-21,51301549810,"10,851.75",HEAD START NURSERY SCHOOL LIMITED,NURSERY,Nursery Schools,Early Years - Funded 3s/4s,Care & Ed Childcare Settings
Cambridgeshire County Council,01-Apr-21,51301549747,"10,891.65",ELM SCHOOL NURSERY,NURSERY,Nursery Schools,Early Years - Funded 3s/4s,Care & Ed Childcare Settings
Cambridgeshire County Council,01-Apr-21,51301549797,"11,058.84",HAPPY BUNNIES,NURSERY,Nursery Schools,Early Years - Funded 3s/4s,Care & Ed Childcare Settings
Cambridgeshire County Council,01-Apr-21,51301549661,"11,252.32",BRIGHT HORIZONS @ CAMBRIDGE SCIENCE PARK,NURSERY,Nursery Schools,Early Years - Funded 3s/4s,Care & Ed Childcare Settings
Cambridgeshire County Council,01-Apr-21,51301550015,"11,262.60",PARSON DROVE PRE SCHOOL,NURSERY,Nursery Schools,Early Years - Funded 3s/4s,Care & Ed Childcare Settings
Cambridgeshire County Council,01-Apr-21,51301549727,"11,448.12",DAISIES MONTESSORI NURSERY SCHOOL,NURSERY,Nursery Schools,Early Years - Funded 3s/4s,Care & Ed Childcare Settings
Cambridgeshire County Council,01-Apr-21,51301549802,"11,462.51",HARVEY ROAD DAY NURSERY,NURSERY,Nursery Schools,Early Years - Funded 3s/4s,Care & Ed Childcare Settings
Cambridgeshire County Council,01-Apr-21,51301549986,"11,615.40",MOONBEAMS PRE SCHOOL,NURSERY,Nursery Schools,Early Years - Funded 3s/4s,Care & Ed Childcare Settings
Cambridgeshire County Council,01-Apr-21,51301550050,"11,814.66",Redacted Personal Data ,INDIVIDUAL,Nursery Schools,Early Years - Funded 3s/4s,Care & Ed Childcare Settings
Cambridgeshire County Council,01-Apr-21,51301549917,"11,820.84",LIONEL WALDEN SCHOOL PLAYGROUP,NURSERY,Nursery Schools,Early Years - Funded 3s/4s,Care & Ed Childcare Settings
Cambridgeshire County Council,01-Apr-21,51301550140,"11,944.92",UPWOOD SMALL TO TALL,NURSERY,Nursery Schools,Early Years - Funded 3s/4s,Care & Ed Childcare Settings
Cambridgeshire County Council,01-Apr-21,51301550240,"12,000.00",iMPOWER Consulting Ltd,COMPANY,Policy Design and Delivery,Policy Design and Delivery,Consultancy
Cambridgeshire County Council,01-Apr-21,51301550089,"12,084.21",Stapleford Nursery Class,NURSERY,Nursery Schools,Early Years - Funded 3s/4s,Care & Ed Childcare Settings
Cambridgeshire County Council,01-Apr-21,51301549676,"12,286.74",BUSY FINGERS PRE-SCHOOL,NURSERY,Nursery Schools,Early Years - Funded 3s/4s,Care & Ed Childcare Settings
Cambridgeshire County Council,01-Apr-21,51301550135,"12,290.22",TRUMPINGTON MEADOWS NURSERY,NURSERY,Nursery Schools,Early Years - Funded 3s/4s,Care & Ed Childcare Settings
Cambridgeshire County Council,01-Apr-21,51301549786,"12,347.01",THE GREEN ROOM NURSERY LTD,NURSERY,Nursery Schools,Early Years - Funded 3s/4s,Care & Ed Childcare Settings
Cambridgeshire County Council,01-Apr-21,51301549925,"12,419.13",LITTLE ACORNS PRESCHOOL PLAYGROUP (STUKELEY MEADOWS),NURSERY,Nursery Schools,Early Years - Funded 3s/4s,Care & Ed Childcare Settings
Cambridgeshire County Council,01-Apr-21,51301549654,"12,524.77",BLUEBELL DAY NURSERY (ELTISELEY),NURSERY,Nursery Schools,Early Years - Funded 3s/4s,Care & Ed Childcare Settings
Cambridgeshire County Council,01-Apr-21,51301550157,"12,531.51",YMCA Childcare Blinco Grove,NURSERY,Nursery Schools,Early Years - Funded 3s/4s,Care & Ed Childcare Settings
Cambridgeshire County Council,01-Apr-21,51301549718,"12,596.57",Clarence House Papworth,NURSERY,Nursery Schools,Early Years - Funded 3s/4s,Care & Ed Childcare Settings
Cambridgeshire County Council,01-Apr-21,51301549659,"12,802.81",BUNNYBROOKES @ BRIGHT HORIZONS,NURSERY,Nursery Schools,Early Years - Funded 3s/4s,Care & Ed Childcare Settings
Cambridgeshire County Council,01-Apr-21,51301550092,"12,865.78",STEPPING STONES PRE-SCHOOL (LEVERINGTON),NURSERY,Nursery Schools,Early Years - Funded 3s/4s,Care & Ed Childcare Settings
Cambridgeshire County Council,01-Apr-21,51301549721,"12,908.40",COATES GOSLINGS,NURSERY,Nursery Schools,Early Years - Funded 3s/4s,Care & Ed Childcare Settings
Cambridgeshire County Council,01-Apr-21,51301549790,"13,025.41",HADDENHAM PRE-SCHOOL,NURSERY,Nursery Schools,Early Years - Funded 3s/4s,Care & Ed Childcare Settings
Cambridgeshire County Council,01-Apr-21,51301549894,"13,148.91",LADYBIRD PLAYGROUP (THRIPLOW),NURSERY,Nursery Schools,Early Years - Funded 3s/4s,Care & Ed Childcare Settings
Cambridgeshire County Council,01-Apr-21,51301549673,"13,357.27",BUSY BEE DAY NURSERY,NURSERY,Nursery Schools,Early Years - Funded 3s/4s,Care & Ed Childcare Settings
Cambridgeshire County Council,01-Apr-21,51301549664,"13,444.56",BRIGHT HORIZONS @ FULBOURN,NURSERY,Nursery Schools,Early Years - Funded 3s/4s,Care & Ed Childcare Settings
Cambridgeshire County Council,01-Apr-21,51301549639,"13,472.09",ARBURY PRE-SCHOOL,NURSERY,Nursery Schools,Early Years - Funded 3s/4s,Care & Ed Childcare Settings
Cambridgeshire County Council,01-Apr-21,51301549830,"13,473.72",ISLEHAM PRE-SCHOOL,NURSERY,Nursery Schools,Early Years - Funded 3s/4s,Care & Ed Childcare Settings
Cambridgeshire County Council,01-Apr-21,51301549680,"13,717.71",CALDECOTE PLAYGROUP,NURSERY,Nursery Schools,Early Years - Funded 3s/4s,Care & Ed Childcare Settings
Cambridgeshire County Council,01-Apr-21,51301549764,"13,833.72",FOLKSWORTH PRE-SCHOOL,NURSERY,Nursery Schools,Early Years - Funded 3s/4s,Care & Ed Childcare Settings
Cambridgeshire County Council,01-Apr-21,51301550032,"13,851.63",RAINBOW PLAYGROUP,NURSERY,Nursery Schools,Early Years - Funded 3s/4s,Care & Ed Childcare Settings
Cambridgeshire County Council,01-Apr-21,51301549667,"13,894.22",BRIGHTFIELDS PRE SCHOOL,NURSERY,Nursery Schools,Early Years - Funded 3s/4s,Care & Ed Childcare Settings
Cambridgeshire County Council,01-Apr-21,51301550107,"13,964.49",SWEET PEA NURSERY,NURSERY,Nursery Schools,Early Years - Funded 3s/4s,Care & Ed Childcare Settings
Cambridgeshire County Council,01-Apr-21,51301550091,"14,004.20",STEPPING STONES DAY NURSERY ST IVES,NURSERY,Nursery Schools,Early Years - Funded 3s/4s,Care & Ed Childcare Settings
Cambridgeshire County Council,01-Apr-21,51301550155,"14,043.51",WITCHFORD RACKHAM PRE-SCHOOL,NURSERY,Nursery Schools,Early Years - Funded 3s/4s,Care & Ed Childcare Settings
Cambridgeshire County Council,01-Apr-21,51301549980,"14,137.20",MILLINGTON ROAD NURSERY SCHOOL,NURSERY,Nursery Schools,Early Years - Funded 3s/4s,Care & Ed Childcare Settings
Cambridgeshire County Council,01-Apr-21,51301549779,"14,185.84",GOREFIELD PRE-SCHOOL,NURSERY,Nursery Schools,Early Years - Funded 3s/4s,Care & Ed Childcare Settings
Cambridgeshire County Council,01-Apr-21,51301549614,"14,229.07",ABINGTON PRESCHOOL,NURSERY,Nursery Schools,Early Years - Funded 3s/4s,Care & Ed Childcare Settings
Cambridgeshire County Council,01-Apr-21,51301550034,"14,309.10",RAINBOW PRE-SCHOOL,NURSERY,Nursery Schools,Early Years - Funded 3s/4s,Care & Ed Childcare Settings
Cambridgeshire County Council,01-Apr-21,51301549677,"14,387.41",BUTTERCUPS COMMUNITY PRE-SCHOOL,NURSERY,Nursery Schools,Early Years - Funded 3s/4s,Care & Ed Childcare Settings
Cambridgeshire County Council,01-Apr-21,51301549616,"14,435.23",ALCONBURY COMMUNITY PRESCHOOL,NURSERY,Nursery Schools,Early Years - Funded 3s/4s,Care & Ed Childcare Settings
Cambridgeshire County Council,01-Apr-21,51301549737,"14,695.20",DOMINO NURSERY,NURSERY,Nursery Schools,Early Years - Funded 3s/4s,Care & Ed Childcare Settings
Cambridgeshire County Council,01-Apr-21,51301550119,"14,819.22",THE SPRING MONTESSORI,NURSERY,Nursery Schools,Early Years - Funded 3s/4s,Care & Ed Childcare Settings
Cambridgeshire County Council,01-Apr-21,51301549772,"14,953.77",GAMLINGAY RAINBOW PRE-SCHOOL,NURSERY,Nursery Schools,Early Years - Funded 3s/4s,Care & Ed Childcare Settings
Cambridgeshire County Council,01-Apr-21,51301549652,"15,065.13",BLACKBERRY HOUSE DAY NURSERY,NURSERY,Nursery Schools,Early Years - Funded 3s/4s,Care & Ed Childcare Settings
Cambridgeshire County Council,01-Apr-21,51301549787,"15,180.15",GREENFIELDS DAY NURSERY,NURSERY,Nursery Schools,Early Years - Funded 3s/4s,Care & Ed Childcare Settings
Cambridgeshire County Council,01-Apr-21,51301549722,"15,218.19",COMBERTON PLAYGROUP,NURSERY,Nursery Schools,Early Years - Funded 3s/4s,Care & Ed Childcare Settings
Cambridgeshire County Council,01-Apr-21,51301549960,"15,374.51",MANEA PRE SCHOOL,NURSERY,Nursery Schools,Early Years - Funded 3s/4s,Care & Ed Childcare Settings
Cambridgeshire County Council,01-Apr-21,51301549740,"15,507.18",EARITH PRESCHOOL 7,NURSERY,Nursery Schools,Early Years - Funded 3s/4s,Care & Ed Childcare Settings
Cambridgeshire County Council,01-Apr-21,51301550086,"15,522.27",ST LEONARDS PRE-SCHOOL,NURSERY,Nursery Schools,Early Years - Funded 3s/4s,Care & Ed Childcare Settings
Cambridgeshire County Council,01-Apr-21,51301549839,"15,609.72",JIGSAW NURSERY,NURSERY,Nursery Schools,Early Years - Funded 3s/4s,Care & Ed Childcare Settings
Cambridgeshire County Council,01-Apr-21,51301549643,"15,714.27",BAR HILL PRESCHOOL,NURSERY,Nursery Schools,Early Years - Funded 3s/4s,Care & Ed Childcare Settings
Cambridgeshire County Council,01-Apr-21,51301549823,"15,717.81",HILL ROW DAY NURSERY,NURSERY,Nursery Schools,Early Years - Funded 3s/4s,Care & Ed Childcare Settings
Cambridgeshire County Council,01-Apr-21,51301549665,"15,763.94",BRIGHT HORIZONS @ LONG ROAD,NURSERY,Nursery Schools,Early Years - Funded 3s/4s,Care & Ed Childcare Settings
Cambridgeshire County Council,01-Apr-21,51301549675,"15,817.23",BUSY BEES PRE-SCHOOL PLAYGROUP,NURSERY,Nursery Schools,Early Years - Funded 3s/4s,Care & Ed Childcare Settings
Cambridgeshire County Council,01-Apr-21,51301549678,"15,901.86",BUTTERFLY DAY NURSERY,NURSERY,Nursery Schools,Early Years - Funded 3s/4s,Care & Ed Childcare Settings
Cambridgeshire County Council,01-Apr-21,51301549798,"15,934.32",HARDWICK PRE-SCHOOL,NURSERY,Nursery Schools,Early Years - Funded 3s/4s,Care & Ed Childcare Settings
Cambridgeshire County Council,01-Apr-21,51301550095,"16,037.66",STRETTON PRE-SCHOOL,NURSERY,Nursery Schools,Early Years - Funded 3s/4s,Care & Ed Childcare Settings
Cambridgeshire County Council,01-Apr-21,51301549998,"16,086.25",NEEDINGWORTH COMMUNITY PRE-SCHOOL,NURSERY,Nursery Schools,Early Years - Funded 3s/4s,Care & Ed Childcare Settings
Cambridgeshire County Council,01-Apr-21,51301549736,"16,125.96",DITTON LODGE COMMUNITY NURSERY,EDUCATION,Nursery Schools,Early Years - Funded 3s/4s,Care & Ed Childcare Settings
Cambridgeshire County Council,01-Apr-21,51301549717,"16,232.48",CLARENCE HOUSE MARCH,NURSERY,Nursery Schools,Early Years - Funded 3s/4s,Care & Ed Childcare Settings
Cambridgeshire County Council,01-Apr-21,51301550021,"16,302.31",PETER PAN PRE-SCHOOL,NURSERY,Nursery Schools,Early Years - Funded 3s/4s,Care & Ed Childcare Settings
Cambridgeshire County Council,01-Apr-21,51301550154,"16,344.90",WISBECH ST MARY PRE SCHOOL,NURSERY,Nursery Schools,Early Years - Funded 3s/4s,Care & Ed Childcare Settings
Cambridgeshire County Council,01-Apr-21,51301549942,"16,356.57",LITTLE THETFORD ACORNS,NURSERY,Nursery Schools,Early Years - Funded 3s/4s,Care & Ed Childcare Settings
Cambridgeshire County Council,01-Apr-21,51301549884,"16,420.74",KIMBLE'S CHILDCARE,NURSERY,Nursery Schools,Early Years - Funded 3s/4s,Care & Ed Childcare Settings
Cambridgeshire County Council,01-Apr-21,51301549776,"16,465.18",Girton Cottontails Preschool,NURSERY,Nursery Schools,Early Years - Funded 3s/4s,Care & Ed Childcare Settings
Cambridgeshire County Council,01-Apr-21,51301550066,"16,560.99",SCALLYWAGS DAY NURSERY,NURSERY,Nursery Schools,Early Years - Funded 3s/4s,Care & Ed Childcare Settings
Cambridgeshire County Council,01-Apr-21,51301549983,"16,561.74",MONKEY PUZZLE DAY NURSERY CAMBRIDGE,NURSERY,Nursery Schools,Early Years - Funded 3s/4s,Care & Ed Childcare Settings
Cambridgeshire County Council,01-Apr-21,51301549941,"16,653.65",LITTLE TEDS DAY NURSERY,NURSERY,Nursery Schools,Early Years - Funded 3s/4s,Care & Ed Childcare Settings
Cambridgeshire County Council,01-Apr-21,51301549939,"16,659.27",LITTLE PAXTON PRE-SCHOOL,NURSERY,Nursery Schools,Early Years - Funded 3s/4s,Care & Ed Childcare Settings
Cambridgeshire County Council,01-Apr-21,51301550117,"16,707.60",THE RED HOUSE DAY NURSERY,NURSERY,Nursery Schools,Early Years - Funded 3s/4s,Care & Ed Childcare Settings
Cambridgeshire County Council,01-Apr-21,51301549662,"16,729.67",Bright Horizons Eddington Nursery,NURSERY,Nursery Schools,Early Years - Funded 3s/4s,Care & Ed Childcare Settings
Cambridgeshire County Council,01-Apr-21,51301549999,"16,807.05",NEW ROAD PLAYGROUP (WHITTLESEY),NURSERY,Nursery Schools,Early Years - Funded 3s/4s,Care & Ed Childcare Settings
Cambridgeshire County Council,01-Apr-21,51301549739,"16,863.57",Duxford Preschool,NURSERY,Nursery Schools,Early Years - Funded 3s/4s,Care & Ed Childcare Settings
Cambridgeshire County Council,01-Apr-21,51301549880,"16,968.45",ELY ST JOHNS PRESCHOOL,NURSERY,Nursery Schools,Early Years - Funded 3s/4s,Care & Ed Childcare Settings
Cambridgeshire County Council,01-Apr-21,51301549828,"17,045.64",HOUGHTON & WYTON PRE-SCHOOL PLAYGROUP,NURSERY,Nursery Schools,Early Years - Funded 3s/4s,Care & Ed Childcare Settings
Cambridgeshire County Council,01-Apr-21,51301550078,"17,062.43",SNAP! 4 KIDS LTD (CAMBRIDGE),NURSERY,Nursery Schools,Early Years - Funded 3s/4s,Care & Ed Childcare Settings
Cambridgeshire County Council,01-Apr-21,51301549663,"17,093.84",BRIGHT HORIZONS @ ELY,NURSERY,Nursery Schools,Early Years - Funded 3s/4s,Care & Ed Childcare Settings
Cambridgeshire County Council,01-Apr-21,51301550068,"17,107.97",SEE SAW PLAYGROUP,NURSERY,Nursery Schools,Early Years - Funded 3s/4s,Care & Ed Childcare Settings
Cambridgeshire County Council,01-Apr-21,51301549770,"17,154.36",FULBOURN PRE-SCHOOL,NURSERY,Nursery Schools,Early Years - Funded 3s/4s,Care & Ed Childcare Settings
Cambridgeshire County Council,01-Apr-21,51301549757,"17,530.50",FEN DRAYTON MONTESSORI NURSERY,NURSERY,Nursery Schools,Early Years - Funded 3s/4s,Care & Ed Childcare Settings
Cambridgeshire County Council,01-Apr-21,51301549783,"17,617.14",GREAT GRANSDEN PRE-SCHOOL PLAYGROUP,NURSERY,Nursery Schools,Early Years - Funded 3s/4s,Care & Ed Childcare Settings
Cambridgeshire County Council,01-Apr-21,51301549931,"17,637.81",LITTLE HANDS NURSERY SCHOOL (MELBOURN),NURSERY,Nursery Schools,Early Years - Funded 3s/4s,Care & Ed Childcare Settings
Cambridgeshire County Council,01-Apr-21,51301549972,"17,650.62",Meldreth Primary Pre-school,NURSERY,Nursery Schools,Early Years - Funded 3s/4s,Care & Ed Childcare Settings
Cambridgeshire County Council,01-Apr-21,51301550148,"17,734.86",WHEATFIELDS NURSERY ASSOCIATION,NURSERY,Nursery Schools,Early Years - Funded 3s/4s,Care & Ed Childcare Settings
Cambridgeshire County Council,01-Apr-21,51301550019,"17,814.42",PENDRAGON PRE SCHOOL,NURSERY,Nursery Schools,Early Years - Funded 3s/4s,Care & Ed Childcare Settings
Cambridgeshire County Council,01-Apr-21,51301549760,"17,985.24",FIRST STEPS DAY NURSERY,NURSERY,Nursery Schools,Early Years - Funded 3s/4s,Care & Ed Childcare Settings
Cambridgeshire County Council,01-Apr-21,51301550305,"18,000.00",iMPOWER Consulting Ltd,COMPANY,Policy Design and Delivery,Policy Design and Delivery,Consultancy
Cambridgeshire County Council,01-Apr-21,51301549852,"18,098.70",JOINT COLLEGES NURSERY,NURSERY,Nursery Schools,Early Years - Funded 3s/4s,Care & Ed Childcare Settings
Cambridgeshire County Council,01-Apr-21,51301550118,"18,109.37",THE SHADE NURSERY CLASS,NURSERY,Nursery Schools,Early Years - Funded 3s/4s,Care & Ed Childcare Settings
Cambridgeshire County Council,01-Apr-21,51301550147,"18,175.01",WATERBEACH COMMUNITY PLAYGROUP,NURSERY,Nursery Schools,Early Years - Funded 3s/4s,Care & Ed Childcare Settings
Cambridgeshire County Council,01-Apr-21,51301549825,"18,310.50",Hinchingbrooke Park Pre-School,NURSERY,Nursery Schools,Early Years - Funded 3s/4s,Care & Ed Childcare Settings
Cambridgeshire County Council,01-Apr-21,51301550093,"18,411.59",Redacted Personal Data ,INDIVIDUAL,Nursery Schools,Early Years - Funded 3s/4s,Care & Ed Childcare Settings
Cambridgeshire County Council,01-Apr-21,51301549656,"18,659.16",BRAMBLES PLAYGROUP,NURSERY,Nursery Schools,Early Years - Funded 3s/4s,Care & Ed Childcare Settings
Cambridgeshire County Council,01-Apr-21,51301549700,"18,730.04",CHESTNUT PLAYGROUP,NURSERY,Nursery Schools,Early Years - Funded 3s/4s,Care & Ed Childcare Settings
Cambridgeshire County Council,01-Apr-21,51301549930,"19,008.94",LITTLE HANDS NURSERY SCHOOL (LINTON & BARTLOW),NURSERY,Nursery Schools,Early Years - Funded 3s/4s,Care & Ed Childcare Settings
Cambridgeshire County Council,01-Apr-21,51301550156,"19,131.87",Wyton On The Hill Primary,EDUCATION,Nursery Schools,Early Years - Funded 3s/4s,Care & Ed Childcare Settings
Cambridgeshire County Council,01-Apr-21,51301549932,"19,141.68",LITTLE HANDS NURSERY SCHOOLS LIMITED,NURSERY,Nursery Schools,Early Years - Funded 3s/4s,Care & Ed Childcare Settings
Cambridgeshire County Council,01-Apr-21,51301549714,"19,269.89",CLARENCE HOUSE DAY NURSERY CHATTERIS,NURSERY,Nursery Schools,Early Years - Funded 3s/4s,Care & Ed Childcare Settings
Cambridgeshire County Council,01-Apr-21,51301549923,"19,394.50",LITTLE ACORNS (ST NEOTS),NURSERY,Nursery Schools,Early Years - Funded 3s/4s,Care & Ed Childcare Settings
Cambridgeshire County Council,01-Apr-21,51301549878,"19,770.43",KESTER PRE-SCHOOL,NURSERY,Nursery Schools,Early Years - Funded 3s/4s,Care & Ed Childcare Settings
Cambridgeshire County Council,01-Apr-21,51301550134,"20,076.39",TREETOPS DAY NURSERY,NURSERY,Nursery Schools,Early Years - Funded 3s/4s,Care & Ed Childcare Settings
Cambridgeshire County Council,01-Apr-21,51301549945,"20,235.15",LONGSTANTON PRE-SCHOOL & OUT OF SCHOOL CLUBS,EDUCATION,Nursery Schools,Early Years - Funded 3s/4s,Care & Ed Childcare Settings
Cambridgeshire County Council,01-Apr-21,51301550146,"20,511.04",WARBOYS UNDER FIVES PLAY GROUP,NURSERY,Nursery Schools,Early Years - Funded 3s/4s,Care & Ed Childcare Settings
Cambridgeshire County Council,01-Apr-21,51301550124,"20,525.95",The Woodland Rose Day Nursery,NURSERY,Nursery Schools,Early Years - Funded 3s/4s,Care & Ed Childcare Settings
Cambridgeshire County Council,01-Apr-21,51301549979,"21,101.22",MILLFIELD NURSERY CLASS,NURSERY,Nursery Schools,Early Years - Funded 3s/4s,Care & Ed Childcare Settings
Cambridgeshire County Council,01-Apr-21,51301550022,"21,385.50",PIPPINS PRESCHOOL,NURSERY,Nursery Schools,Early Years - Funded 3s/4s,Care & Ed Childcare Settings
Cambridgeshire County Council,01-Apr-21,51301549968,"21,847.66",THE MEADOWS NURSERY & DAY CARE CENTRE,NURSERY,Nursery Schools,Early Years - Funded 3s/4s,Care & Ed Childcare Settings
Cambridgeshire County Council,01-Apr-21,51301549801,"21,884.85",Hartford Nursery,NURSERY,Nursery Schools,Early Years - Funded 3s/4s,Care & Ed Childcare Settings
Cambridgeshire County Council,01-Apr-21,51301549895,"22,026.20",LADYBIRD PRE-SCHOOL,NURSERY,Nursery Schools,Early Years - Funded 3s/4s,Care & Ed Childcare Settings
Cambridgeshire County Council,01-Apr-21,51301549713,"22,252.25",CLARENCE HOUSE CAMBRIDGE,NURSERY,Nursery Schools,Early Years - Funded 3s/4s,Care & Ed Childcare Settings
Cambridgeshire County Council,01-Apr-21,51301550014,"22,380.46",First Step Playgroup's Community Space (Parkhall Playgroup NEGS),NURSERY,Nursery Schools,Early Years - Funded 3s/4s,Care & Ed Childcare Settings
Cambridgeshire County Council,01-Apr-21,51301550085,"22,705.49",ST JOHNS LITTLE LEARNERS,NURSERY,Nursery Schools,Early Years - Funded 3s/4s,Care & Ed Childcare Settings
Cambridgeshire County Council,01-Apr-21,51301549681,"22,772.18",CAMBOURNE PRESCHOOL,EDUCATION,Nursery Schools,Early Years - Funded 3s/4s,Care & Ed Childcare Settings
Cambridgeshire County Council,01-Apr-21,51301550106,"22,826.93",SWAVESEY PRE-SCHOOL,NURSERY,Nursery Schools,Early Years - Funded 3s/4s,Care & Ed Childcare Settings
Cambridgeshire County Council,01-Apr-21,51301549928,"22,870.10",Little Flames Childcare,NURSERY,Nursery Schools,Early Years - Funded 3s/4s,Care & Ed Childcare Settings
Cambridgeshire County Council,01-Apr-21,51301549926,"23,263.37",LITTLE CATERPILLARS,NURSERY,Nursery Schools,Early Years - Funded 3s/4s,Care & Ed Childcare Settings
Cambridgeshire County Council,01-Apr-21,51301549944,"23,504.13",LITTLEPORT COMMUNITY PRESCHOOL,NURSERY,Nursery Schools,Early Years - Funded 3s/4s,Care & Ed Childcare Settings
Cambridgeshire County Council,01-Apr-21,51301549892,"23,508.15",KRAZYDAYZ PRIVATE DAY NURSERY,NURSERY,Nursery Schools,Early Years - Funded 3s/4s,Care & Ed Childcare Settings
Cambridgeshire County Council,01-Apr-21,51301549943,"23,530.37",LITTLE WOMBATZ,NURSERY,Nursery Schools,Early Years - Funded 3s/4s,Care & Ed Childcare Settings
Cambridgeshire County Council,01-Apr-21,51301550037,"23,715.90",RAMSEY PLAYGROUP,NURSERY,Nursery Schools,Early Years - Funded 3s/4s,Care & Ed Childcare Settings
Cambridgeshire County Council,01-Apr-21,51301549765,"23,726.43",FORDHAM PRE-SCHOOL,NURSERY,Nursery Schools,Early Years - Funded 3s/4s,Care & Ed Childcare Settings
Cambridgeshire County Council,01-Apr-21,51301549967,"23,893.84",MEADOW LANE CHILDREN'S NURSEY,NURSERY,Nursery Schools,Early Years - Funded 3s/4s,Care & Ed Childcare Settings
Cambridgeshire County Council,01-Apr-21,51301549657,"23,903.41",BRAMBLES PRE SCHOOL,NURSERY,Nursery Schools,Early Years - Funded 3s/4s,Care & Ed Childcare Settings
Cambridgeshire County Council,01-Apr-21,51301549991,"24,246.94",MURROW PRESCHOOL,NURSERY,Nursery Schools,Early Years - Funded 3s/4s,Care & Ed Childcare Settings
Cambridgeshire County Council,01-Apr-21,51301549611,"24,296.23",ACE NURSERY SCHOOL,NURSERY,Nursery Schools,Early Years - Funded 3s/4s,Care & Ed Childcare Settings
Cambridgeshire County Council,01-Apr-21,51301549684,"24,307.81",CARING KINDERGARTENS,NURSERY,Nursery Schools,Early Years - Funded 3s/4s,Care & Ed Childcare Settings
Cambridgeshire County Council,01-Apr-21,51301549985,"24,394.20",MONTAGU SQUARE DAY NURSERY,NURSERY,Nursery Schools,Early Years - Funded 3s/4s,Care & Ed Childcare Settings
Cambridgeshire County Council,01-Apr-21,51301549899,"24,527.91",THE LANTERN GOSLINGS PRE SCHOOL,NURSERY,Nursery Schools,Early Years - Funded 3s/4s,Care & Ed Childcare Settings
Cambridgeshire County Council,01-Apr-21,51301549821,"24,716.58",HEMINGFORD GREY PLAYGROUP,NURSERY,Nursery Schools,Early Years - Funded 3s/4s,Care & Ed Childcare Settings
Cambridgeshire County Council,01-Apr-21,51301550012,"24,746.60",PAINTBOX PLAYGROUP,NURSERY,Nursery Schools,Early Years - Funded 3s/4s,Care & Ed Childcare Settings
Cambridgeshire County Council,01-Apr-21,51301549648,"24,980.80",BELLACLAIRE CHILDCARE LTD,NURSERY,Nursery Schools,Early Years - Funded 3s/4s,Care & Ed Childcare Settings
Cambridgeshire County Council,01-Apr-21,51301550044,"25,006.87",ROUND HOUSE PRE SCHOOL,NURSERY,Nursery Schools,Early Years - Funded 3s/4s,Care & Ed Childcare Settings
Cambridgeshire County Council,01-Apr-21,51301550064,"25,045.91",SAWSTON DAY NURSERY,NURSERY,Nursery Schools,Early Years - Funded 3s/4s,Care & Ed Childcare Settings
Cambridgeshire County Council,01-Apr-21,51301549671,"25,181.52",BURWELL EARLY LEARNERS,NURSERY,Nursery Schools,Early Years - Funded 3s/4s,Care & Ed Childcare Settings
Cambridgeshire County Council,01-Apr-21,51301549642,"25,273.17",Buttercups Childcare Ltd,NURSERY,Nursery Schools,Early Years - Funded 3s/4s,Care & Ed Childcare Settings
Cambridgeshire County Council,01-Apr-21,51301549725,"25,306.92",CRACKER JACKS DAY NURSERY,NURSERY,Nursery Schools,Early Years - Funded 3s/4s,Care & Ed Childcare Settings
Cambridgeshire County Council,01-Apr-21,51301550151,"26,221.94",WILDAWOOD FOREST SCHOOL,EDUCATION,Nursery Schools,Early Years - Funded 3s/4s,Care & Ed Childcare Settings
Cambridgeshire County Council,01-Apr-21,51301549762,"26,628.05",FLUTTERBIES CHILDCARE,NURSERY,Nursery Schools,Early Years - Funded 3s/4s,Care & Ed Childcare Settings
Cambridgeshire County Council,01-Apr-21,51301549679,"26,755.56",BUTTONS & BOWS PRE-SCHOOL,NURSERY,Nursery Schools,Early Years - Funded 3s/4s,Care & Ed Childcare Settings
Cambridgeshire County Council,01-Apr-21,51301549840,"27,131.77",JIGSAW PLAYGROUP,NURSERY,Nursery Schools,Early Years - Funded 3s/4s,Care & Ed Childcare Settings
Cambridgeshire County Council,01-Apr-21,51301549617,"27,462.01",Alderman Jacobs Pre-School,NURSERY,Nursery Schools,Early Years - Funded 3s/4s,Care & Ed Childcare Settings
Cambridgeshire County Council,01-Apr-21,51301550120,"27,538.92",VINE PRE-SCHOOL,NURSERY,Nursery Schools,Early Years - Funded 3s/4s,Care & Ed Childcare Settings
Cambridgeshire County Council,01-Apr-21,51301549927,"28,014.48",LITTLE CHERRIES,NURSERY,Nursery Schools,Early Years - Funded 3s/4s,Care & Ed Childcare Settings
Cambridgeshire County Council,01-Apr-21,51301549929,"28,508.82",LITTLE HANDS NURSERY SCHOOL (BOURN),NURSERY,Nursery Schools,Early Years - Funded 3s/4s,Care & Ed Childcare Settings
Cambridgeshire County Council,01-Apr-21,51301550143,"28,513.38",VANTAGE PARK DAY NURSERY,EDUCATION,Nursery Schools,Early Years - Funded 3s/4s,Care & Ed Childcare Settings
Cambridgeshire County Council,01-Apr-21,51301550084,"28,811.37",ST IVES NURSERY ICP,NURSERY,Nursery Schools,Early Years - Funded 3s/4s,Care & Ed Childcare Settings
Cambridgeshire County Council,01-Apr-21,51301550098,"29,209.37",CHS GROUP,CARE ESTABLISHMENT,Nursery Schools,Early Years - Funded 3s/4s,Care & Ed Childcare Settings
Cambridgeshire County Council,01-Apr-21,51301549646,"29,300.60",BEACH BABIES LIMITED (LANDBEACH),NURSERY,Nursery Schools,Early Years - Funded 3s/4s,Care & Ed Childcare Settings
Cambridgeshire County Council,01-Apr-21,51301549647,"29,541.80",BEACH BABIES LIMITED (WILBURTON),NURSERY,Nursery Schools,Early Years - Funded 3s/4s,Care & Ed Childcare Settings
Cambridgeshire County Council,01-Apr-21,51301550152,"29,839.92",WILLINGHAM PRIMARY SCHOOL,EDUCATION,Nursery Schools,Early Years - Funded 3s/4s,Care & Ed Childcare Settings
Cambridgeshire County Council,01-Apr-21,51301549936,"29,882.31",LITTLE MUNCHKINS LTD,NURSERY,Nursery Schools,Early Years - Funded 3s/4s,Care & Ed Childcare Settings
Cambridgeshire County Council,01-Apr-21,51301549527,"30,000.00",PINSENT MASONS LLP,TRADE SUPPLIER,GCP - Operations,GCP - Energy,External Legal Fees
Cambridgeshire County Council,01-Apr-21,51301550137,"30,586.14",UNDER FIVES ROUNDABOUT,NURSERY,Nursery Schools,Early Years - Funded 3s/4s,Care & Ed Childcare Settings
Cambridgeshire County Council,01-Apr-21,51301549658,"30,593.07",BRAMPTON DAY NURSERY,NURSERY,Nursery Schools,Early Years - Funded 3s/4s,Care & Ed Childcare Settings
Cambridgeshire County Council,01-Apr-21,51301549619,"30,758.12",ALL SAINTS PRE SCHOOL ACADEMY,NURSERY,Nursery Schools,Early Years - Funded 3s/4s,Care & Ed Childcare Settings
Cambridgeshire County Council,01-Apr-21,51301550065,"30,817.42",SAWTRY DAY NURSERY,NURSERY,Nursery Schools,Early Years - Funded 3s/4s,Care & Ed Childcare Settings
Cambridgeshire County Council,01-Apr-21,51301549778,"31,050.63",Godmanchester Pre-School,NURSERY,Nursery Schools,Early Years - Funded 3s/4s,Care & Ed Childcare Settings
Cambridgeshire County Council,01-Apr-21,51301550114,"31,274.66",MALTINGS DAY NURSERY,NURSERY,Nursery Schools,Early Years - Funded 3s/4s,Care & Ed Childcare Settings
Cambridgeshire County Council,01-Apr-21,51301549896,"31,437.90",LADYBIRDS DAY NURSERY,NURSERY,Nursery Schools,Early Years - Funded 3s/4s,Care & Ed Childcare Settings
Cambridgeshire County Council,01-Apr-21,51301549641,"31,864.19",THE NURSERY BABRAHAM,NURSERY,Nursery Schools,Early Years - Funded 3s/4s,Care & Ed Childcare Settings
Cambridgeshire County Council,01-Apr-21,51301549674,"32,092.59",BUSY BEES DAY NURSERY AT HUNTINGDON,NURSERY,Nursery Schools,Early Years - Funded 3s/4s,Care & Ed Childcare Settings
Cambridgeshire County Council,01-Apr-21,51301549886,"32,182.81",KINGSFIELD PRE-SCHOOL,NURSERY,Nursery Schools,Early Years - Funded 3s/4s,Care & Ed Childcare Settings
Cambridgeshire County Council,01-Apr-21,51301549898,"32,209.45",LANCASTER LODGE CHILDCARE LTD,NURSERY,Nursery Schools,Early Years - Funded 3s/4s,Care & Ed Childcare Settings
Cambridgeshire County Council,01-Apr-21,51301549726,"32,438.12",CYGNETS MILTON PRE SCHOOL,NURSERY,Nursery Schools,Early Years - Funded 3s/4s,Care & Ed Childcare Settings
Cambridgeshire County Council,01-Apr-21,51301550138,"32,482.92",UNIVERSITY NURSERY,NURSERY,Nursery Schools,Early Years - Funded 3s/4s,Care & Ed Childcare Settings
Cambridgeshire County Council,01-Apr-21,51301549623,"33,077.09",ALPHABET DAY NURSERY SCHOOLS LTD,NURSERY,Nursery Schools,Early Years - Funded 3s/4s,Care & Ed Childcare Settings
Cambridgeshire County Council,01-Apr-21,51301549645,"33,242.58",BASSINGBOURN PRE-SCHOOL,NURSERY,Nursery Schools,Early Years - Funded 3s/4s,Care & Ed Childcare Settings
Cambridgeshire County Council,01-Apr-21,51301550031,"33,280.10",RAINBOW DAY NURSERY,NURSERY,Nursery Schools,Early Years - Funded 3s/4s,Care & Ed Childcare Settings
Cambridgeshire County Council,01-Apr-21,51301549712,"34,740.85",CLARENCE HOUSE BARNS,NURSERY,Nursery Schools,Early Years - Funded 3s/4s,Care & Ed Childcare Settings
Cambridgeshire County Council,01-Apr-21,51301549701,"34,784.29",CHILDREN'S MONTESSORI NURSERY,NURSERY,Nursery Schools,Early Years - Funded 3s/4s,Care & Ed Childcare Settings
Cambridgeshire County Council,01-Apr-21,51301550121,"34,839.90",WENDY HOUSE DAY NURSERY IMPINGTON,NURSERY,Nursery Schools,Early Years - Funded 3s/4s,Care & Ed Childcare Settings
Cambridgeshire County Council,01-Apr-21,51301550116,"35,021.12",The Pathfinder Preschool,NURSERY,Nursery Schools,Early Years - Funded 3s/4s,Care & Ed Childcare Settings
Cambridgeshire County Council,01-Apr-21,51301550123,"35,819.22",THE WILLOWS DAY NURSERY - MARCH,NURSERY,Nursery Schools,Early Years - Funded 3s/4s,Care & Ed Childcare Settings
Cambridgeshire County Council,01-Apr-21,51301549738,"36,258.60",DUCKLINGS CHILDCARE (GODMANCHESTER) LTD,NURSERY,Nursery Schools,Early Years - Funded 3s/4s,Care & Ed Childcare Settings
Cambridgeshire County Council,01-Apr-21,51301549716,"36,321.45",CLARENCE HOUSE PRE-SCHOOL,NURSERY,Nursery Schools,Early Years - Funded 3s/4s,Care & Ed Childcare Settings
Cambridgeshire County Council,01-Apr-21,51301549699,"36,784.78",CHESTNUT NURSERY SCHOOLS LIMITED,NURSERY,Nursery Schools,Early Years - Funded 3s/4s,Care & Ed Childcare Settings
Cambridgeshire County Council,01-Apr-21,51301549780,"36,858.91",GRANTA PARK MONTESSORI NURSERY,NURSERY,Nursery Schools,Early Years - Funded 3s/4s,Care & Ed Childcare Settings
Cambridgeshire County Council,01-Apr-21,51301549692,"38,260.41",CAVALRY SCHOOL NURSERY,NURSERY,Nursery Schools,Early Years - Funded 3s/4s,Care & Ed Childcare Settings
Cambridgeshire County Council,01-Apr-21,51301550018,"38,457.90",Peckover Nursery,NURSERY,Nursery Schools,Early Years - Funded 3s/4s,Care & Ed Childcare Settings
Cambridgeshire County Council,01-Apr-21,51301549984,"38,837.72",MONKFIELD PARK CARE & LEARNING CENTRE,NURSERY,Nursery Schools,Early Years - Funded 3s/4s,Care & Ed Childcare Settings
Cambridgeshire County Council,01-Apr-21,51301549682,"39,239.18",CAMBRIDGE DAY NURSERY,NURSERY,Nursery Schools,Early Years - Funded 3s/4s,Care & Ed Childcare Settings
Cambridgeshire County Council,01-Apr-21,51301550097,"39,674.02",SUNFLOWER@CAMBOURNE,NURSERY,Nursery Schools,Early Years - Funded 3s/4s,Care & Ed Childcare Settings
Cambridgeshire County Council,01-Apr-21,51301550139,"43,509.30",WEST CAMBRIDGE DAY NURSERY,NURSERY,Nursery Schools,Early Years - Funded 3s/4s,Care & Ed Childcare Settings
Cambridgeshire County Council,01-Apr-21,51301550074,"43,704.44",SILKS FARM DAY NURSERY,NURSERY,Nursery Schools,Early Years - Funded 3s/4s,Care & Ed Childcare Settings
Cambridgeshire County Council,01-Apr-21,51301549893,"44,740.99",LADYBIRD DAY NURSERY ICP,NURSERY,Nursery Schools,Early Years - Funded 3s/4s,Care & Ed Childcare Settings
Cambridgeshire County Council,01-Apr-21,51301550094,"46,237.23",STRETTON PRE SCHOOL AT FOURFIELDS,NURSERY,Nursery Schools,Early Years - Funded 3s/4s,Care & Ed Childcare Settings
Cambridgeshire County Council,01-Apr-21,51301545398,"46,800.00",ALASDAIR CANT & ASSOCIATES,TRADE SUPPLIER,Safeguarding East & South Cambs and Cambridge,Family Safeguarding,Staff Training & Development
Cambridgeshire County Council,01-Apr-21,51301550025,"47,544.12",PRIORY PARK PLAYGROUP,NURSERY,Nursery Schools,Early Years - Funded 3s/4s,Care & Ed Childcare Settings
Cambridgeshire County Council,01-Apr-21,51301550036,"47,977.11",RAMSEY DAY NURSERY,NURSERY,Nursery Schools,Early Years - Funded 3s/4s,Care & Ed Childcare Settings
Cambridgeshire County Council,01-Apr-21,51301549592,"48,111.43",Greater Peterborough University Technical College,EDUCATION,Recoupment,Procurement - Out-County Mainstream,Independent School Placements
Cambridgeshire County Council,01-Apr-21,51301550016,"48,732.89",PATACAKE DAY NURSERY ICP,NURSERY,Nursery Schools,Early Years - Funded 3s/4s,Care & Ed Childcare Settings
Cambridgeshire County Council,01-Apr-21,51301550045,"49,811.38",ROUNDABOUT NURSERY,NURSERY,Nursery Schools,Early Years - Funded 3s/4s,Care & Ed Childcare Settings
Cambridgeshire County Council,01-Apr-21,51301549835,"49,891.56",JEMIMA HOUSE DAY NURSERY,NURSERY,Nursery Schools,Early Years - Funded 3s/4s,Care & Ed Childcare Settings
Cambridgeshire County Council,01-Apr-21,51301549668,"49,980.00",BUCKDEN DAY NURSERY,NURSERY,Nursery Schools,Early Years - Funded 3s/4s,Care & Ed Childcare Settings
Cambridgeshire County Council,01-Apr-21,51301550209,"50,000.00",LONG ROAD SIXTH FORM COLLEGE,EDUCATION,SEND High Needs Top Up,SEND Specialist Services-High needs top-up-Post 16,Independent School Placements
Cambridgeshire County Council,01-Apr-21,51301549799,"50,121.66",HARLEQUIN CHILDCARE LTD,NURSERY,Nursery Schools,Early Years - Funded 3s/4s,Care & Ed Childcare Settings
Cambridgeshire County Council,01-Apr-21,51301549653,"50,289.20",BLACKBERRY HOUSE DAY NURSERY (WISBECH),NURSERY,Nursery Schools,Early Years - Funded 3s/4s,Care & Ed Childcare Settings
Cambridgeshire County Council,01-Apr-21,51301550113,"51,062.13",THE BARN DAY NURSERY,NURSERY,Nursery Schools,Early Years - Funded 3s/4s,Care & Ed Childcare Settings
Cambridgeshire County Council,01-Apr-21,51301549777,"51,488.41",GIRTON NURSERY,NURSERY,Nursery Schools,Early Years - Funded 3s/4s,Care & Ed Childcare Settings
Cambridgeshire County Council,01-Apr-21,51301550067,"52,460.03",SCALLYWAGS DAY NURSERY,NURSERY,Nursery Schools,Early Years - Funded 3s/4s,Care & Ed Childcare Settings
Cambridgeshire County Council,01-Apr-21,51301549638,"52,957.59",APRICOT DAY NURSERY ST NEOTS,NURSERY,Nursery Schools,Early Years - Funded 3s/4s,Care & Ed Childcare Settings
Cambridgeshire County Council,01-Apr-21,51301549759,"53,628.66",FIRST STEPS CHILDCARE (CAMBS) LTD,NURSERY,Nursery Schools,Early Years - Funded 3s/4s,Care & Ed Childcare Settings
Cambridgeshire County Council,01-Apr-21,51301550178,"54,755.29",PETERBOROUGH CITY COUNCIL,OTHER PUBLIC BODIES,PH COMF,PH - Contain Outbreak Management Fund,Payments to Other Local Authorities
Cambridgeshire County Council,01-Apr-21,51301549670,"55,775.25",BUMPKINS PRE SCHOOL,NURSERY,Nursery Schools,Early Years - Funded 3s/4s,Care & Ed Childcare Settings
Cambridgeshire County Council,01-Apr-21,51301549940,"56,212.92",LITTLE STARS DAY NURSERY INC LTD,NURSERY,Nursery Schools,Early Years - Funded 3s/4s,Care & Ed Childcare Settings
Cambridgeshire County Council,01-Apr-21,51301550122,"64,011.49",THE WILLOWS DAY NURSERY (CHATTERIS),NURSERY,Nursery Schools,Early Years - Funded 3s/4s,Care & Ed Childcare Settings
Cambridgeshire County Council,01-Apr-21,51301549961,"65,242.45",MAPLE GROVE COMMUNITY PRE-SCHOOL,NURSERY,Nursery Schools,Early Years - Funded 3s/4s,Care & Ed Childcare Settings
Cambridgeshire County Council,01-Apr-21,51301549987,"65,736.51",MOTHER GOOSE CORNER NURSERY,NURSERY,Nursery Schools,Early Years - Funded 3s/4s,Care & Ed Childcare Settings
Cambridgeshire County Council,01-Apr-21,51301549924,"69,324.55",LITTLE ACORNS DAY NURSERY,NURSERY,Nursery Schools,Early Years - Funded 3s/4s,Care & Ed Childcare Settings
Cambridgeshire County Council,01-Apr-21,51301549741,"70,327.62",EATON SOCON PRESCHOOL,NURSERY,Nursery Schools,Early Years - Funded 3s/4s,Care & Ed Childcare Settings
Cambridgeshire County Council,01-Apr-21,51301549938,"72,851.99",LITTLE OWLS NENE,NURSERY,Nursery Schools,Early Years - Funded 3s/4s,Care & Ed Childcare Settings
Cambridgeshire County Council,01-Apr-21,51301550115,"73,006.23",OLD SCHOOL HOUSE DAY NURSERY,NURSERY,Nursery Schools,Early Years - Funded 3s/4s,Care & Ed Childcare Settings
Cambridgeshire County Council,06-Apr-21,51301550539,"-7,971.43",Total Care Matters Ltd,CARE ESTABLISHMENT,LAC Placements,Placements - residential homes,Agency Placements - Out of  County
Cambridgeshire County Council,06-Apr-21,51301550400,524.40,Redacted Personal Data ,INDIVIDUAL,Children's Disability Direct Payments,CSC Direct Payments,Direct Payments
Cambridgeshire County Council,06-Apr-21,51301549583,528.00,Arjo Uk Ltd,COMPANY,Corporate Offices,County Offices General,Building Repair and Maintenance
Cambridgeshire County Council,06-Apr-21,51301550541,531.00,Redacted Personal Data ,INDIVIDUAL,Registrars,Registrars General,Non Staff expenses
Cambridgeshire County Council,06-Apr-21,51301550544,540.00,Redacted Personal Data ,INDIVIDUAL,Registrars,Registrars General,Non Staff expenses
Cambridgeshire County Council,06-Apr-21,51301550542,553.00,Redacted Personal Data ,INDIVIDUAL,Registrars,Registrars General,Non Staff expenses
Cambridgeshire County Council,06-Apr-21,51301550574,631.20,ESPO,TRADE SUPPLIER,EY - Oasis,Trumpington Park Early Years,Furniture
Cambridgeshire County Council,06-Apr-21,51301550547,635.00,Redacted Personal Data ,INDIVIDUAL,Registrars,Registrars General,Non Staff expenses
Cambridgeshire County Council,06-Apr-21,51301550510,689.63,OverDrive Global Limited,COMPANY,Libraries - Stock & Distribution,Support - Stock & Distribution,Books and Multimedia Supplies
Cambridgeshire County Council,06-Apr-21,51301546006,700.00,ROMSEY MILL TRUST LTD,TRUST (OTHER),Youth and Community Services,YS - National Citizen Service,Grants to Voluntary Bodies
Cambridgeshire County Council,06-Apr-21,51301550520,814.59,BANYA FAMILY PLACEMENT AGENCY,CARE ESTABLISHMENT,LAC Placements,Placements - independent fostering,Agency Placements - Out of  County
Cambridgeshire County Council,06-Apr-21,51301550451,841.37,BALFOUR BEATTY LIVING PLACES LIMITED,COMPANY,Street Lighting,Street Lighting PFI,Specialist Equipment For Service Delivery
Cambridgeshire County Council,06-Apr-21,51301549241,850.00,Dr Craig Allen,SOLETRADER,SEND Specialist Services - Education Psychology,SEND Specialist Services - Education Psychology,Professional Fees and Hired Services
Cambridgeshire County Council,06-Apr-21,51301549242,850.00,Dr Craig Allen,SOLETRADER,SEND Specialist Services - Education Psychology,SEND Specialist Services - Education Psychology,Professional Fees and Hired Services
Cambridgeshire County Council,06-Apr-21,51301537118,"1,050.00",IMPINGTON VILLAGE COLLEGE,EDUCATION,Opportunity Area,Opportunity Area,Professional Fees and Hired Services
Cambridgeshire County Council,06-Apr-21,51301550554,"1,172.30",Family Action,CHARITY,Adoption Team,Permanance and Adoption,Professional Fees and Hired Services
Cambridgeshire County Council,06-Apr-21,51301550386,"1,200.00",CARTER JONAS LLP,TRADE SUPPLIER,Capital Receipts Expenses,Capital Receipts Expenses,Consultancy
Cambridgeshire County Council,06-Apr-21,51301550483,"1,200.00",TRUMPINGTON PARK PRIMARY SCHOOL,EDUCATION,EY - Oasis,Trumpington Park Early Years,Electricity
Cambridgeshire County Council,06-Apr-21,51301536602,"1,228.50",THE WILDLIFE TRUST BCN,CHARITY,Greenspaces,Greenspaces,Professional Fees and Hired Services
Cambridgeshire County Council,06-Apr-21,51301534337,"1,437.85",COMPASS MINERALS UK LIMITED,TRADE SUPPLIER,Winter Maintenance,North Winter,Salt for Highways
Cambridgeshire County Council,06-Apr-21,51301534921,"1,467.26",COMPASS MINERALS UK LIMITED,TRADE SUPPLIER,Winter Maintenance,North Winter,Salt for Highways
Cambridgeshire County Council,06-Apr-21,51301550230,"1,715.55",LITTLEPORT TOWN LANDS CHARITY,CHARITY,Corporate Offices,Littleport Library,Service Charges
Cambridgeshire County Council,06-Apr-21,51301550399,"1,783.75",Redacted Personal Data ,INDIVIDUAL,Children's Disability Direct Payments,CSC Direct Payments,Direct Payments
Cambridgeshire County Council,06-Apr-21,51301549085,"1,981.07",BALFOUR BEATTY CIVIL ENGINEERING LIMITED,COMPANY,GCP - City Centre Access Project,GCP - City Centre Access Project,Construction - External Professional Fees
Cambridgeshire County Council,06-Apr-21,51301550379,"2,174.22",CARTER JONAS LLP,TRADE SUPPLIER,Housing Schemes,Housing Schemes,Construction - External Professional Fees
Cambridgeshire County Council,06-Apr-21,51301550246,"2,273.00",CAMBRIDGE DIAL-A-RIDE LTD,VOLUNTEER SERVICES,Passenger Transport other,Community Transport,Grants to Voluntary Bodies
Cambridgeshire County Council,06-Apr-21,51301549584,"2,433.20",Clacton County High School,EDUCATION,Recoupment,Procurement - Out-County Mainstream,Independent School Placements
Cambridgeshire County Council,06-Apr-21,51301550441,"2,560.58",Redacted Personal Data ,INDIVIDUAL,Children's Disability Direct Payments,CSC Direct Payments,Direct Payments
Cambridgeshire County Council,06-Apr-21,51301537119,"2,750.00",IMPINGTON VILLAGE COLLEGE,EDUCATION,Opportunity Area,Opportunity Area,Professional Fees and Hired Services
Cambridgeshire County Council,06-Apr-21,51301549230,"2,750.40",Tutor Doctor,EDUCATION,Out of School Tuition,Out of School Provision - Education and Settings,Independent School Placements
Cambridgeshire County Council,06-Apr-21,51301550535,"2,890.76",QUALITY FOSTER CARE LTD,CARE ESTABLISHMENT,LAC Placements,Placements - independent fostering,Agency Placements - Out of  County
Cambridgeshire County Council,06-Apr-21,51301535801,"3,040.00",Futurebright Solutions Limited,COMPANY,Future Parks Accelerator,Future Parks Accelerator,Professional Fees and Hired Services
Cambridgeshire County Council,06-Apr-21,51301550534,"3,219.24",QUALITY FOSTER CARE LTD,CARE ESTABLISHMENT,LAC Placements,Placements - independent fostering,Agency Placements - Out of  County
Cambridgeshire County Council,06-Apr-21,51301550526,"3,454.29",FosteringUK Ltd,CARE ESTABLISHMENT,LAC Placements,Placements - independent fostering,Agency Placements - Out of  County
Cambridgeshire County Council,06-Apr-21,51301550530,"3,454.29",FosteringUK Ltd,CARE ESTABLISHMENT,LAC Placements,Placements - independent fostering,Agency Placements - Out of  County
Cambridgeshire County Council,06-Apr-21,51301537129,"4,369.34",COMPASS MINERALS UK LIMITED,TRADE SUPPLIER,Winter Maintenance,East Winter,Salt for Highways
Cambridgeshire County Council,06-Apr-21,51301550519,"4,509.30",BANYA FAMILY PLACEMENT AGENCY,CARE ESTABLISHMENT,LAC Placements,Placements - independent fostering,Agency Placements - Out of  County
Cambridgeshire County Council,06-Apr-21,51301550524,"4,509.30",BANYA FAMILY PLACEMENT AGENCY,CARE ESTABLISHMENT,LAC Placements,Placements - independent fostering,Agency Placements - In County
Cambridgeshire County Council,06-Apr-21,51301550581,"4,905.71",Redacted Personal Data ,FOSTER PARENT,Adoption Allowances,Adoption Allowances,Childcare Costs
Cambridgeshire County Council,06-Apr-21,51301550533,"5,092.99",FosteringUK Ltd,CARE ESTABLISHMENT,LAC Placements,Placements - independent fostering,Agency Placements - Out of  County
Cambridgeshire County Council,06-Apr-21,51301550521,"5,410.74",BANYA FAMILY PLACEMENT AGENCY,CARE ESTABLISHMENT,LAC Placements,Placements - independent fostering,Agency Placements - Out of  County
Cambridgeshire County Council,06-Apr-21,51301534949,"5,726.16",AXIELL ALM LTD,TRADE SUPPLIER,Archives,Archives - Cambridge Record Office,Computer software - annual licence agreement
Cambridgeshire County Council,06-Apr-21,51301534795,"6,065.00",KIMBOLTON SCHOOL,EDUCATION,SEND Specialist Services,Equipment (mainstream),Independent School Placements
Cambridgeshire County Council,06-Apr-21,51301550395,"6,885.97",Futures Homescape,CHARITY,Housing Related Support Contracts � Adults & Children,Mental Health Homelessness,Supporting People
Cambridgeshire County Council,06-Apr-21,51301546859,"7,342.50",Team Q Maintenance Ltd,COMPANY,BM - Corporate Offices,Building Maintenance,Building Repair and Maintenance
Cambridgeshire County Council,06-Apr-21,51301550205,"7,720.50",Team Q Maintenance Ltd,COMPANY,Building Maintenance,Building Maintenance,"New Construction, Conversion and Renovation"
Cambridgeshire County Council,06-Apr-21,51301550317,"7,876.76",BOUYGUES EES FM UK LTD,COMPANY,Special Projects Manager (Energy),Woodston Closed Landfill Site,Consultancy
Cambridgeshire County Council,06-Apr-21,51301550538,"8,635.71",Total Care Matters Ltd,CARE ESTABLISHMENT,LAC Placements,Placements - residential homes,Agency Placements - Out of  County
Cambridgeshire County Council,06-Apr-21,51301535851,"11,160.00",Cambridgeshire Publishers Ltd,COMPANY,Communication and Information,Communication and Information,Advertising / Publicity (non Recruitment)
Cambridgeshire County Council,06-Apr-21,51301535943,"11,459.34",JUST CHECKING LTD,TRADE SUPPLIER,Assistive Telecare & Technology,Technology Enabled Care (TEC),Specialist Equipment For Service Delivery
Cambridgeshire County Council,06-Apr-21,51301550585,"12,270.00",Flash After School Club,EDUCATION,Nursery Schools,Early Years - Funded 3s/4s,Grants
Cambridgeshire County Council,06-Apr-21,51301550540,"20,592.86",Total Care Matters Ltd,CARE ESTABLISHMENT,LAC Placements,Placements - residential homes,Agency Placements - Out of  County
Cambridgeshire County Council,06-Apr-21,51301548770,"30,033.87",Lime Academy Orton - Lime Trust,EDUCATION,Recoupment,Procurement - Out-County Special Schools & ER,Independent School Placements
Cambridgeshire County Council,06-Apr-21,51301549520,"41,765.41",JIMMY'S CAMBRIDGE,CHARITY,Drug & Alcohol Misuse,Housing Related Support Contract,Joint Partnership Funding
Cambridgeshire County Council,06-Apr-21,51301550300,"56,114.40",Roadworks Information Ltd t/a one.network,TRADE SUPPLIER,IHMC and Events,IHMC and Events,Computer software - purchase
Cambridgeshire County Council,06-Apr-21,51301550504,"80,000.00",ZURICH INSURANCE CO,TRADE SUPPLIER,Insurance Fund,Liability,Insurance Claims Paid
Cambridgeshire County Council,07-Apr-21,51301550967,576.00,CENTRAL BEDFORDSHIRE COUNCIL,OTHER PUBLIC BODIES,Cambridgeshire Alternative Education Service (SchFin),CAES - Salaries,Professional Fees and Hired Services
Cambridgeshire County Council,07-Apr-21,51301550614,636.00,Cygnet Health Care,EDUCATION,Recoupment,Procurement - Out-County Hospitals,Independent School Placements
Cambridgeshire County Council,07-Apr-21,51301550660,669.00,Redacted Personal Data ,INDIVIDUAL,South Care Leaving,South Care Leaving,Specialist Equipment For Service Delivery
Cambridgeshire County Council,07-Apr-21,51301550964,672.00,CENTRAL BEDFORDSHIRE COUNCIL,OTHER PUBLIC BODIES,Cambridgeshire Alternative Education Service (SchFin),CAES - Salaries,Professional Fees and Hired Services
Cambridgeshire County Council,07-Apr-21,51301537524,763.19,HIRE OR BUY GROUP LTD,TRADE SUPPLIER,Grafham Water,Grafham Water Centre,Educational equipment
Cambridgeshire County Council,07-Apr-21,51301550965,768.00,CENTRAL BEDFORDSHIRE COUNCIL,OTHER PUBLIC BODIES,Cambridgeshire Alternative Education Service (SchFin),CAES - Salaries,Professional Fees and Hired Services
Cambridgeshire County Council,07-Apr-21,51301550983,884.52,Redacted Personal Data ,INDIVIDUAL,Nursery Schools,Early Years - Funded 3s/4s,Care & Ed Childcare Settings
Cambridgeshire County Council,07-Apr-21,51301545415,957.82,TOTAL GAS AND POWER,TRADE SUPPLIER,Street Lighting,Parish & District Council costs,Street Light Energy
Cambridgeshire County Council,07-Apr-21,51301537364,960.00,Speed Design & Print Ltd t/a Speed Agency,COMPANY,SIS Head of Service,NQT funding,Professional Fees and Hired Services
Cambridgeshire County Council,07-Apr-21,51301550984,982.80,Redacted Personal Data ,INDIVIDUAL,Nursery Schools,Early Years - Funded 3s/4s,Care & Ed Childcare Settings
Cambridgeshire County Council,07-Apr-21,51301550631,991.94,ELM CHURCH  OF E PRIMARY SCHOOL,EDUCATION,Early Years,Opportunity Area,Grants
Cambridgeshire County Council,07-Apr-21,51301550630,"1,000.00",RAINBOW PRE SCHOOL,NURSERY,Early Years,Opportunity Area,Grants
Cambridgeshire County Council,07-Apr-21,51301550629,"1,000.00",BUSY FINGERS PRE-SCHOOL,NURSERY,Early Years,Opportunity Area,Grants
Cambridgeshire County Council,07-Apr-21,51301501605,"1,100.49",WCL UK LTD,TRADE SUPPLIER,ICT Service,ICT Service Sales,Materials for resale
Cambridgeshire County Council,07-Apr-21,51301550949,"1,110.00",DCC Interactive,TRADE SUPPLIER,L&D Grants,ASYE,Professional Fees and Hired Services
Cambridgeshire County Council,07-Apr-21,51301537501,"1,116.00",HIRE OR BUY GROUP LTD,TRADE SUPPLIER,Grafham Water,Grafham Water Centre,Educational equipment
Cambridgeshire County Council,07-Apr-21,51301549142,"1,350.00",CAMBOURNE PARISH COUNCIL,OTHER PUBLIC BODIES,Lateral Flow Testing Grant,Lateral Flow Testing Grant,Casual hire of facilities
Cambridgeshire County Council,07-Apr-21,51301378336,"1,990.58",CCS MEDIA LIMITED,TRADE SUPPLIER,ICT Service,ICT Service Sales,Materials for resale
Cambridgeshire County Council,07-Apr-21,51301550615,"2,703.00",Cygnet Health Care,EDUCATION,Recoupment,Procurement - Out-County Hospitals,Independent School Placements
Cambridgeshire County Council,07-Apr-21,51301527560,"3,134.40",CCS MEDIA LIMITED,TRADE SUPPLIER,ICT Service,ICT Service Sales,Materials for resale
Cambridgeshire County Council,07-Apr-21,51301550977,"6,019.29",Childrens Ark Day Nursery -  Monarchs Childcare Ltd,NURSERY,Nursery Schools,Early Years - Funded 3s/4s,Care & Ed Childcare Settings
Cambridgeshire County Council,07-Apr-21,51301536642,"6,880.50",NORFOLK AND SUFFOLK NHS FOUNDATION TRUST,TRUST (OTHER),Mental Health Commissioning,Mental Health Commissioning,Professional Fees and Hired Services
Cambridgeshire County Council,07-Apr-21,51301536702,"15,902.95",CAMBRIDGESHIRE AND PETERBOROUGH NHS FOUNDATION TRUST,TRUST (OTHER),Integrated Community Equipment Service,ICES (Pool),Staffing Recharges - External
Cambridgeshire County Council,07-Apr-21,51301536701,"18,533.55",CAMBRIDGESHIRE AND PETERBOROUGH NHS FOUNDATION TRUST,TRUST (OTHER),Integrated Community Equipment Service,ICES (Pool),Staffing Recharges - External
Cambridgeshire County Council,07-Apr-21,51301545886,"20,601.21",TOTAL GAS AND POWER,TRADE SUPPLIER,Signals,Signals Works,Street Light Energy
Cambridgeshire County Council,07-Apr-21,51301536690,"24,360.00",CAMBRIDGESHIRE AND PETERBOROUGH NHS FOUNDATION TRUST,TRUST (OTHER),Youth Offending Service - High Risk,Safer Relationships Team,Staffing Recharges - External
Cambridgeshire County Council,07-Apr-21,51301545458,"208,934.14",TOTAL GAS AND POWER,TRADE SUPPLIER,Street Lighting,Street Lighting Energy,Street Light Energy
Cambridgeshire County Council,07-Apr-21,51301550982,"280,788.24",VIVA ARTS AND COMMUNITY GROUP,LOCAL CLUBS & GROUPS,Cambridgeshire Community Capital Fund,Cambridgeshire Community Capital Fund,Expenditure on Grants
Cambridgeshire County Council,07-Apr-21,51301550616,"370,000.00",NHS CAMBRIDGESHIRE&PETERBOROUGH CCG,CARE ESTABLISHMENT,Better Care Fund,Better Care Fund Commissioning,Health Authority Payments
Cambridgeshire County Council,08-Apr-21,51301550961,-869.28,LGSS LAW LTD,TRADE SUPPLIER,Legal Proceedings,Legal Proceedings,External Legal Fees
Cambridgeshire County Council,08-Apr-21,51301551076,524.80,Redacted Personal Data ,INDIVIDUAL,LD - Fenland Locality - Cost of Care,LD - Fenland  - Care,Day Care
Cambridgeshire County Council,08-Apr-21,51301551140,525.00,Redacted Personal Data ,INDIVIDUAL,Clinicians,Clinical Services,Staff Training & Development
Cambridgeshire County Council,08-Apr-21,51301551049,541.38,LGSS LAW LTD,TRADE SUPPLIER,Corporate Offices,Eastfield House,External Legal Fees
Cambridgeshire County Council,08-Apr-21,51301551030,600.00,CAMBRIDGE NETWORK LTD,TRADE SUPPLIER,GCP - Communications,GCP - Strategic Communicatations,Subscriptions
Cambridgeshire County Council,08-Apr-21,51301551006,601.80,Redacted Personal Data ,PARENT/GUARDIAN,Adoption Allowances,Adoption Allowances,Childcare Costs
Cambridgeshire County Council,08-Apr-21,51301551004,621.86,Redacted Personal Data ,PARENT/GUARDIAN,Adoption Allowances,Adoption Allowances,Childcare Costs
Cambridgeshire County Council,08-Apr-21,51301551070,665.24,Redacted Personal Data ,INDIVIDUAL,LD - Hunts Locality - Cost of Care,LD - Huntingdonshire - Care,Day Care
Cambridgeshire County Council,08-Apr-21,51301544226,775.20,ROLAND FLETCHER,SOLETRADER,Highways - Rights of Way,Highways - Rights of Way,ROW Maintenance
Cambridgeshire County Council,08-Apr-21,51301551051,804.36,LGSS LAW LTD,TRADE SUPPLIER,Capital Receipts Expenses,Capital Receipts Expenses,External Legal Fees
Cambridgeshire County Council,08-Apr-21,51301551099,961.80,Redacted Personal Data ,INDIVIDUAL,Children's Disability Direct Payments,CSC Direct Payments,Direct Payments
Cambridgeshire County Council,08-Apr-21,51301551035,"1,550.40",Centennial Property Ltd T/A The Housing Network,COMPANY,Safeguarding East & South Cambs and Cambridge,C&F Safeguarding ESCC - No Recourse to Public Funds,Living support grants
Cambridgeshire County Council,08-Apr-21,51301551082,"1,600.00",Redacted Personal Data ,INDIVIDUAL,Children's Disability Direct Payments,CSC Direct Payments,Direct Payments
Cambridgeshire County Council,08-Apr-21,51301537316,"1,600.27",AVAILL HEALTHCARE,CARE ESTABLISHMENT,IHPS - South Accommodation Services,IHPS Jasmine House,Agency Staff
Cambridgeshire County Council,08-Apr-21,51301536630,"1,678.63",CAMBRIDGE CITY COUNCIL,OTHER PUBLIC BODIES,GCP - Communications,GCP - Strategic Communicatations,Staffing Recharges - External
Cambridgeshire County Council,08-Apr-21,51301551134,"1,845.83",Redacted Personal Data ,INDIVIDUAL,Children's Disability Direct Payments,CSC Direct Payments,Direct Payments
Cambridgeshire County Council,08-Apr-21,51301547792,"1,920.00",WATERMAN ASPEN LTD,TRADE SUPPLIER,Highways Development Management,Highways Development Management,Professional Fees and Hired Services
Cambridgeshire County Council,08-Apr-21,51301547771,"2,037.00",WATERMAN ASPEN LTD,TRADE SUPPLIER,Highways Development Management,Highways Development Management,Professional Fees and Hired Services
Cambridgeshire County Council,08-Apr-21,51301547750,"2,095.20",WATERMAN ASPEN LTD,TRADE SUPPLIER,Highways Development Management,Highways Development Management,Professional Fees and Hired Services
Cambridgeshire County Council,08-Apr-21,51301551007,"2,186.64",Redacted Personal Data ,FOSTER PARENT,Adoption Allowances,Adoption Allowances,Childcare Costs
Cambridgeshire County Council,08-Apr-21,51301547762,"2,328.00",WATERMAN ASPEN LTD,TRADE SUPPLIER,Highways Development Management,Highways Development Management,Professional Fees and Hired Services
Cambridgeshire County Council,08-Apr-21,51301547767,"2,328.00",WATERMAN ASPEN LTD,TRADE SUPPLIER,Highways Development Management,Highways Development Management,Professional Fees and Hired Services
Cambridgeshire County Council,08-Apr-21,51301547782,"2,328.00",WATERMAN ASPEN LTD,TRADE SUPPLIER,Highways Development Management,Highways Development Management,Professional Fees and Hired Services
Cambridgeshire County Council,08-Apr-21,51301551072,"2,478.76",Redacted Personal Data ,PARENT/GUARDIAN,LD - East Locality - Cost of Care,LD - East Cambs - Care,Residential Care
Cambridgeshire County Council,08-Apr-21,51301551067,"2,478.76",Redacted Personal Data ,PARENT/GUARDIAN,LD - East Locality - Cost of Care,LD - East Cambs - Care,Residential Care
Cambridgeshire County Council,08-Apr-21,51301551062,"2,478.76",Redacted Personal Data ,INDIVIDUAL,Shared Lives,Shared Lives - Countywide,Residential Care
Cambridgeshire County Council,08-Apr-21,51301551063,"2,478.76",Redacted Personal Data ,INDIVIDUAL,LD - Hunts Locality - Cost of Care,LD - Huntingdonshire - Care,Residential Care
Cambridgeshire County Council,08-Apr-21,51301551075,"2,478.76",Redacted Personal Data ,FOSTER PARENT,LD - Fenland Locality - Cost of Care,LD - Fenland  - Care,Residential Care
Cambridgeshire County Council,08-Apr-21,51301551065,"2,478.76",Redacted Personal Data ,INDIVIDUAL,Autism and Adult Support - Cost of Care,Autism and Adult Support - Care,Residential Care
Cambridgeshire County Council,08-Apr-21,51301551110,"3,000.00",HMCTS,OTHER PUBLIC BODIES,Parking Enforcement,Civil Parking Enforcement,Court Costs
Cambridgeshire County Council,08-Apr-21,51301551098,"3,032.40",EXTERION MEDIA UK LIMITED,TRADE SUPPLIER,Fostering,Fostering Transformation,Advertising / Publicity (non Recruitment)
Cambridgeshire County Council,08-Apr-21,51301551043,"3,135.08",ANGLIAN WATER SERVICES LIMITED,COMPANY,Grafham Water,Grafham Water Centre,Water charges
Cambridgeshire County Council,08-Apr-21,51301550292,"4,001.66",Cordell & Co Solicitors,COMPANY,Insurance Fund,Liability,Insurance Claims Paid
Cambridgeshire County Council,08-Apr-21,51301535959,"4,249.80",MOTT MACDONALD LTD,TRADE SUPPLIER,GCP - Cambridge South East (A1307),GCP - Cambridge South East (A1307),Construction - External Professional Fees
Cambridgeshire County Council,08-Apr-21,51301551111,"5,000.00",HMCTS,OTHER PUBLIC BODIES,Parking Enforcement,Bus Route Enforcement,Court Costs
Cambridgeshire County Council,08-Apr-21,51301551041,"9,675.00",Sugarman Group,EDUCATION,Out of School Tuition,Out of School Provision - Education and Settings,Independent School Placements
Cambridgeshire County Council,08-Apr-21,51301551027,"33,080.85",NHS Pensions,TRADE SUPPLIER,Reablement - Misc & HQ,Reablement - Misc & HQ,Payments to Other Establishments
Cambridgeshire County Council,08-Apr-21,51301551144,"1,408,045.92",R G CARTER CAMBRIDGE LTD,COMPANY,Shire Hall Relocation,Shire Hall Relocation,Construction - External Professional Fees
Cambridgeshire County Council,09-Apr-21,51301545077,"-8,622.00",ATKINS LTD,COMPANY,TIPF - Strategy & Scheme Dev,TIPF - Strategy & Scheme Dev,Construction - External Professional Fees
Cambridgeshire County Council,09-Apr-21,51301551050,"-2,399.94",WCL UK LTD,TRADE SUPPLIER,ICT Service,ICT Service Sales,Materials for resale
Cambridgeshire County Council,09-Apr-21,51301551329,"-1,416.08",ASKHAM VILLAGE COMMUNITY LTD,CARE ESTABLISHMENT,Physical Disablity - Cost of Care,Countywide PD Service - Care,Nursing Care
Cambridgeshire County Council,09-Apr-21,51301551329,"-1,416.08",ASKHAM VILLAGE COMMUNITY LTD,CARE ESTABLISHMENT,Physical Disablity - Cost of Care,Countywide PD Service - Care,Nursing Care
Cambridgeshire County Council,09-Apr-21,51301551308,"-1,200.00",CARE UK LIMITED,CARE ESTABLISHMENT,OP - East Cambs Locality - Cost of Care,East Cambs - O P Team - Care,Residential Care
Cambridgeshire County Council,09-Apr-21,51301551308,"-1,200.00",CARE UK LIMITED,CARE ESTABLISHMENT,OP - East Cambs Locality - Cost of Care,East Cambs - O P Team - Care,Residential Care
Cambridgeshire County Council,09-Apr-21,51301551308,"-1,200.00",CARE UK LIMITED,CARE ESTABLISHMENT,OP - East Cambs Locality - Cost of Care,East Cambs - O P Team - Care,Residential Care
Cambridgeshire County Council,09-Apr-21,51301551308,"-1,028.57",CARE UK LIMITED,CARE ESTABLISHMENT,OP - East Cambs Locality - Cost of Care,East Cambs - O P Team - Care,Residential Care
Cambridgeshire County Council,09-Apr-21,51301551331,"-1,016.08",ASKHAM VILLAGE COMMUNITY LTD,CARE ESTABLISHMENT,OP - East Cambs Locality - Cost of Care,East Cambs - O P Team - Care,Nursing Care
Cambridgeshire County Council,09-Apr-21,51301551331,"-1,016.08",ASKHAM VILLAGE COMMUNITY LTD,CARE ESTABLISHMENT,OP - East Cambs Locality - Cost of Care,East Cambs - O P Team - Care,Nursing Care
Cambridgeshire County Council,09-Apr-21,51301551331,"-1,016.08",ASKHAM VILLAGE COMMUNITY LTD,CARE ESTABLISHMENT,OP - East Cambs Locality - Cost of Care,East Cambs - O P Team - Care,Nursing Care
Cambridgeshire County Council,09-Apr-21,51301551317,-806.64,ORCHARD HOUSE NURSING HOME,CARE ESTABLISHMENT,OP - Fenland Locality - Cost of Care,Older People - Fenland - Care,Nursing Care
Cambridgeshire County Council,09-Apr-21,51301551317,-806.64,ORCHARD HOUSE NURSING HOME,CARE ESTABLISHMENT,OP - Fenland Locality - Cost of Care,Older People - Fenland - Care,Nursing Care
Cambridgeshire County Council,09-Apr-21,51301551317,-806.64,ORCHARD HOUSE NURSING HOME,CARE ESTABLISHMENT,OP - Fenland Locality - Cost of Care,Older People - Fenland - Care,Nursing Care
Cambridgeshire County Council,09-Apr-21,51301551318,-750.00,ETHELDRED HOUSE,CARE ESTABLISHMENT,OP - East Cambs Locality - Cost of Care,East Cambs - O P Team - Care,Residential Care
Cambridgeshire County Council,09-Apr-21,51301551318,-750.00,ETHELDRED HOUSE,CARE ESTABLISHMENT,OP - East Cambs Locality - Cost of Care,East Cambs - O P Team - Care,Residential Care
Cambridgeshire County Council,09-Apr-21,51301551318,-750.00,ETHELDRED HOUSE,CARE ESTABLISHMENT,OP - East Cambs Locality - Cost of Care,East Cambs - O P Team - Care,Residential Care
Cambridgeshire County Council,09-Apr-21,51301551318,-750.00,ETHELDRED HOUSE,CARE ESTABLISHMENT,OP - East Cambs Locality - Cost of Care,East Cambs - O P Team - Care,Residential Care
Cambridgeshire County Council,09-Apr-21,51301551318,-750.00,ETHELDRED HOUSE,CARE ESTABLISHMENT,OP - East Cambs Locality - Cost of Care,East Cambs - O P Team - Care,Residential Care
Cambridgeshire County Council,09-Apr-21,51301551318,-750.00,ETHELDRED HOUSE,CARE ESTABLISHMENT,OP - East Cambs Locality - Cost of Care,East Cambs - O P Team - Care,Residential Care
Cambridgeshire County Council,09-Apr-21,51301551318,-750.00,ETHELDRED HOUSE,CARE ESTABLISHMENT,OP - East Cambs Locality - Cost of Care,East Cambs - O P Team - Care,Residential Care
Cambridgeshire County Council,09-Apr-21,51301551318,-750.00,ETHELDRED HOUSE,CARE ESTABLISHMENT,OP - East Cambs Locality - Cost of Care,East Cambs - O P Team - Care,Residential Care
Cambridgeshire County Council,09-Apr-21,51301551318,-750.00,ETHELDRED HOUSE,CARE ESTABLISHMENT,OP - East Cambs Locality - Cost of Care,East Cambs - O P Team - Care,Residential Care
Cambridgeshire County Council,09-Apr-21,51301551318,-750.00,ETHELDRED HOUSE,CARE ESTABLISHMENT,OP - East Cambs Locality - Cost of Care,East Cambs - O P Team - Care,Residential Care
Cambridgeshire County Council,09-Apr-21,51301551324,-750.00,HATLEY COURT HAVEN LTD,CARE ESTABLISHMENT,OPMH - City & South,Older People Mental Health City & South,Residential Care
Cambridgeshire County Council,09-Apr-21,51301551324,-750.00,HATLEY COURT HAVEN LTD,CARE ESTABLISHMENT,OPMH - City & South,Older People Mental Health City & South,Residential Care
Cambridgeshire County Council,09-Apr-21,51301551324,-750.00,HATLEY COURT HAVEN LTD,CARE ESTABLISHMENT,OPMH - City & South,Older People Mental Health City & South,Residential Care
Cambridgeshire County Council,09-Apr-21,51301551324,-750.00,HATLEY COURT HAVEN LTD,CARE ESTABLISHMENT,OPMH - City & South,Older People Mental Health City & South,Residential Care
Cambridgeshire County Council,09-Apr-21,51301551324,-750.00,HATLEY COURT HAVEN LTD,CARE ESTABLISHMENT,OPMH - City & South,Older People Mental Health City & South,Residential Care
Cambridgeshire County Council,09-Apr-21,51301551324,-750.00,HATLEY COURT HAVEN LTD,CARE ESTABLISHMENT,OPMH - City & South,Older People Mental Health City & South,Residential Care
Cambridgeshire County Council,09-Apr-21,51301551324,-750.00,HATLEY COURT HAVEN LTD,CARE ESTABLISHMENT,OPMH - City & South,Older People Mental Health City & South,Residential Care
Cambridgeshire County Council,09-Apr-21,51301551324,-750.00,HATLEY COURT HAVEN LTD,CARE ESTABLISHMENT,OPMH - City & South,Older People Mental Health City & South,Residential Care
Cambridgeshire County Council,09-Apr-21,51301551331,-725.77,ASKHAM VILLAGE COMMUNITY LTD,CARE ESTABLISHMENT,OP - East Cambs Locality - Cost of Care,East Cambs - O P Team - Care,Nursing Care
Cambridgeshire County Council,09-Apr-21,65300016507,-717.60,ROLAND FLETCHER,SOLETRADER,Highways - Rights of Way,Highways - Rights of Way,Highways - Bridges
Cambridgeshire County Council,09-Apr-21,51301551385,-716.08,ABBEY HEALTHCARE (HUNTINGDON) LTD,CARE ESTABLISHMENT,OP - Hunts Locality - Cost of Care,Hunts OP Team - Care,Nursing Care
Cambridgeshire County Council,09-Apr-21,51301551385,-716.08,ABBEY HEALTHCARE (HUNTINGDON) LTD,CARE ESTABLISHMENT,OP - Hunts Locality - Cost of Care,Hunts OP Team - Care,Nursing Care
Cambridgeshire County Council,09-Apr-21,51301551385,-716.08,ABBEY HEALTHCARE (HUNTINGDON) LTD,CARE ESTABLISHMENT,OP - Hunts Locality - Cost of Care,Hunts OP Team - Care,Nursing Care
Cambridgeshire County Council,09-Apr-21,51301551385,-716.08,ABBEY HEALTHCARE (HUNTINGDON) LTD,CARE ESTABLISHMENT,OP - Hunts Locality - Cost of Care,Hunts OP Team - Care,Nursing Care
Cambridgeshire County Council,09-Apr-21,51301551385,-716.08,ABBEY HEALTHCARE (HUNTINGDON) LTD,CARE ESTABLISHMENT,OP - Hunts Locality - Cost of Care,Hunts OP Team - Care,Nursing Care
Cambridgeshire County Council,09-Apr-21,51301551385,-716.08,ABBEY HEALTHCARE (HUNTINGDON) LTD,CARE ESTABLISHMENT,OP - Hunts Locality - Cost of Care,Hunts OP Team - Care,Nursing Care
Cambridgeshire County Council,09-Apr-21,51301551385,-716.08,ABBEY HEALTHCARE (HUNTINGDON) LTD,CARE ESTABLISHMENT,OP - Hunts Locality - Cost of Care,Hunts OP Team - Care,Nursing Care
Cambridgeshire County Council,09-Apr-21,51301551385,-716.08,ABBEY HEALTHCARE (HUNTINGDON) LTD,CARE ESTABLISHMENT,OP - Hunts Locality - Cost of Care,Hunts OP Team - Care,Nursing Care
Cambridgeshire County Council,09-Apr-21,51301551385,-716.08,ABBEY HEALTHCARE (HUNTINGDON) LTD,CARE ESTABLISHMENT,OP - Hunts Locality - Cost of Care,Hunts OP Team - Care,Nursing Care
Cambridgeshire County Council,09-Apr-21,51301551385,-716.08,ABBEY HEALTHCARE (HUNTINGDON) LTD,CARE ESTABLISHMENT,OP - Hunts Locality - Cost of Care,Hunts OP Team - Care,Nursing Care
Cambridgeshire County Council,09-Apr-21,51301551383,-714.55,THE ELMS NURSING HOME,CARE ESTABLISHMENT,OP - Fenland Locality - Cost of Care,Older People - Fenland - Care,Nursing Care
Cambridgeshire County Council,09-Apr-21,51301551383,-714.55,THE ELMS NURSING HOME,CARE ESTABLISHMENT,OP - Fenland Locality - Cost of Care,Older People - Fenland - Care,Nursing Care
Cambridgeshire County Council,09-Apr-21,51301551383,-714.55,THE ELMS NURSING HOME,CARE ESTABLISHMENT,OP - Fenland Locality - Cost of Care,Older People - Fenland - Care,Nursing Care
Cambridgeshire County Council,09-Apr-21,51301551383,-714.55,THE ELMS NURSING HOME,CARE ESTABLISHMENT,OP - Fenland Locality - Cost of Care,Older People - Fenland - Care,Nursing Care
Cambridgeshire County Council,09-Apr-21,51301551383,-714.55,THE ELMS NURSING HOME,CARE ESTABLISHMENT,OP - Fenland Locality - Cost of Care,Older People - Fenland - Care,Nursing Care
Cambridgeshire County Council,09-Apr-21,51301551336,-700.00,THE HILLINGS LIMITED,CARE ESTABLISHMENT,OP - City & South Locality - Cost of Care,Older People - City & South - Care,Residential Care
Cambridgeshire County Council,09-Apr-21,51301551336,-700.00,THE HILLINGS LIMITED,CARE ESTABLISHMENT,OP - City & South Locality - Cost of Care,Older People - City & South - Care,Residential Care
Cambridgeshire County Council,09-Apr-21,51301551336,-700.00,THE HILLINGS LIMITED,CARE ESTABLISHMENT,OP - City & South Locality - Cost of Care,Older People - City & South - Care,Residential Care
Cambridgeshire County Council,09-Apr-21,51301551340,-700.00,THE HILLINGS LIMITED,CARE ESTABLISHMENT,OP - Hunts Locality - Cost of Care,Hunts OP Team - Care,Residential Care
Cambridgeshire County Council,09-Apr-21,51301551338,-675.00,Glenholme Senior Living (Vera James House) limited,CARE ESTABLISHMENT,OP - East Cambs Locality - Cost of Care,East Cambs - O P Team - Care,Residential Care
Cambridgeshire County Council,09-Apr-21,51301551338,-675.00,Glenholme Senior Living (Vera James House) limited,CARE ESTABLISHMENT,OP - East Cambs Locality - Cost of Care,East Cambs - O P Team - Care,Residential Care
Cambridgeshire County Council,09-Apr-21,51301551383,-666.08,THE ELMS NURSING HOME,CARE ESTABLISHMENT,OP - Fenland Locality - Cost of Care,Older People - Fenland - Care,Nursing Care
Cambridgeshire County Council,09-Apr-21,51301551383,-666.08,THE ELMS NURSING HOME,CARE ESTABLISHMENT,OP - Fenland Locality - Cost of Care,Older People - Fenland - Care,Nursing Care
Cambridgeshire County Council,09-Apr-21,51301551383,-666.08,THE ELMS NURSING HOME,CARE ESTABLISHMENT,OP - Fenland Locality - Cost of Care,Older People - Fenland - Care,Nursing Care
Cambridgeshire County Council,09-Apr-21,51301551383,-666.08,THE ELMS NURSING HOME,CARE ESTABLISHMENT,OP - Fenland Locality - Cost of Care,Older People - Fenland - Care,Nursing Care
Cambridgeshire County Council,09-Apr-21,51301551383,-666.08,THE ELMS NURSING HOME,CARE ESTABLISHMENT,OP - Fenland Locality - Cost of Care,Older People - Fenland - Care,Nursing Care
Cambridgeshire County Council,09-Apr-21,51301551383,-666.08,THE ELMS NURSING HOME,CARE ESTABLISHMENT,OP - Fenland Locality - Cost of Care,Older People - Fenland - Care,Nursing Care
Cambridgeshire County Council,09-Apr-21,51301551383,-666.08,THE ELMS NURSING HOME,CARE ESTABLISHMENT,OP - Fenland Locality - Cost of Care,Older People - Fenland - Care,Nursing Care
Cambridgeshire County Council,09-Apr-21,51301551383,-666.08,THE ELMS NURSING HOME,CARE ESTABLISHMENT,OP - Fenland Locality - Cost of Care,Older People - Fenland - Care,Nursing Care
Cambridgeshire County Council,09-Apr-21,51301551383,-666.08,THE ELMS NURSING HOME,CARE ESTABLISHMENT,OP - Fenland Locality - Cost of Care,Older People - Fenland - Care,Nursing Care
Cambridgeshire County Council,09-Apr-21,51301551383,-666.08,THE ELMS NURSING HOME,CARE ESTABLISHMENT,OP - Fenland Locality - Cost of Care,Older People - Fenland - Care,Nursing Care
Cambridgeshire County Council,09-Apr-21,51301551383,-666.08,THE ELMS NURSING HOME,CARE ESTABLISHMENT,OP - Fenland Locality - Cost of Care,Older People - Fenland - Care,Nursing Care
Cambridgeshire County Council,09-Apr-21,51301551383,-666.08,THE ELMS NURSING HOME,CARE ESTABLISHMENT,OP - Fenland Locality - Cost of Care,Older People - Fenland - Care,Nursing Care
Cambridgeshire County Council,09-Apr-21,51301551383,-666.08,THE ELMS NURSING HOME,CARE ESTABLISHMENT,OP - Fenland Locality - Cost of Care,Older People - Fenland - Care,Nursing Care
Cambridgeshire County Council,09-Apr-21,51301551383,-666.08,THE ELMS NURSING HOME,CARE ESTABLISHMENT,OP - Fenland Locality - Cost of Care,Older People - Fenland - Care,Nursing Care
Cambridgeshire County Council,09-Apr-21,51301551383,-666.08,THE ELMS NURSING HOME,CARE ESTABLISHMENT,OP - Fenland Locality - Cost of Care,Older People - Fenland - Care,Nursing Care
Cambridgeshire County Council,09-Apr-21,51301551383,-666.08,THE ELMS NURSING HOME,CARE ESTABLISHMENT,OP - Fenland Locality - Cost of Care,Older People - Fenland - Care,Nursing Care
Cambridgeshire County Council,09-Apr-21,51301551383,-666.08,THE ELMS NURSING HOME,CARE ESTABLISHMENT,OP - Fenland Locality - Cost of Care,Older People - Fenland - Care,Nursing Care
Cambridgeshire County Council,09-Apr-21,51301551383,-666.08,THE ELMS NURSING HOME,CARE ESTABLISHMENT,OP - Fenland Locality - Cost of Care,Older People - Fenland - Care,Nursing Care
Cambridgeshire County Council,09-Apr-21,51301551383,-666.08,THE ELMS NURSING HOME,CARE ESTABLISHMENT,OP - Fenland Locality - Cost of Care,Older People - Fenland - Care,Nursing Care
Cambridgeshire County Council,09-Apr-21,51301551383,-666.08,THE ELMS NURSING HOME,CARE ESTABLISHMENT,OP - Fenland Locality - Cost of Care,Older People - Fenland - Care,Nursing Care
Cambridgeshire County Council,09-Apr-21,51301551383,-666.08,THE ELMS NURSING HOME,CARE ESTABLISHMENT,OP - Fenland Locality - Cost of Care,Older People - Fenland - Care,Nursing Care
Cambridgeshire County Council,09-Apr-21,51301551383,-666.08,THE ELMS NURSING HOME,CARE ESTABLISHMENT,OP - Fenland Locality - Cost of Care,Older People - Fenland - Care,Nursing Care
Cambridgeshire County Council,09-Apr-21,51301551383,-666.08,THE ELMS NURSING HOME,CARE ESTABLISHMENT,OP - Fenland Locality - Cost of Care,Older People - Fenland - Care,Nursing Care
Cambridgeshire County Council,09-Apr-21,51301551383,-666.08,THE ELMS NURSING HOME,CARE ESTABLISHMENT,OP - Fenland Locality - Cost of Care,Older People - Fenland - Care,Nursing Care
Cambridgeshire County Council,09-Apr-21,51301551309,-654.51,OAKLANDS CARE HOME,CARE ESTABLISHMENT,OPMH - City & South,Older People Mental Health City & South,Nursing Care
Cambridgeshire County Council,09-Apr-21,51301551309,-654.51,OAKLANDS CARE HOME,CARE ESTABLISHMENT,OPMH - City & South,Older People Mental Health City & South,Nursing Care
Cambridgeshire County Council,09-Apr-21,51301551309,-654.51,OAKLANDS CARE HOME,CARE ESTABLISHMENT,OPMH - City & South,Older People Mental Health City & South,Nursing Care
Cambridgeshire County Council,09-Apr-21,51301551309,-654.51,OAKLANDS CARE HOME,CARE ESTABLISHMENT,OPMH - City & South,Older People Mental Health City & South,Nursing Care
Cambridgeshire County Council,09-Apr-21,51301551309,-654.51,OAKLANDS CARE HOME,CARE ESTABLISHMENT,OPMH - City & South,Older People Mental Health City & South,Nursing Care
Cambridgeshire County Council,09-Apr-21,51301551309,-654.51,OAKLANDS CARE HOME,CARE ESTABLISHMENT,OPMH - City & South,Older People Mental Health City & South,Nursing Care
Cambridgeshire County Council,09-Apr-21,51301551309,-654.51,OAKLANDS CARE HOME,CARE ESTABLISHMENT,OPMH - City & South,Older People Mental Health City & South,Nursing Care
Cambridgeshire County Council,09-Apr-21,51301551309,-654.51,OAKLANDS CARE HOME,CARE ESTABLISHMENT,OPMH - City & South,Older People Mental Health City & South,Nursing Care
Cambridgeshire County Council,09-Apr-21,51301551387,-650.00,K RAVIVARUMAN T/A FAIR HAVEN CARE HOME,CARE ESTABLISHMENT,OP - East Cambs Locality - Cost of Care,East Cambs - O P Team - Care,Residential Care
Cambridgeshire County Council,09-Apr-21,51301551387,-650.00,K RAVIVARUMAN T/A FAIR HAVEN CARE HOME,CARE ESTABLISHMENT,OP - East Cambs Locality - Cost of Care,East Cambs - O P Team - Care,Residential Care
Cambridgeshire County Council,09-Apr-21,51301551387,-650.00,K RAVIVARUMAN T/A FAIR HAVEN CARE HOME,CARE ESTABLISHMENT,OP - East Cambs Locality - Cost of Care,East Cambs - O P Team - Care,Residential Care
Cambridgeshire County Council,09-Apr-21,51301551387,-650.00,K RAVIVARUMAN T/A FAIR HAVEN CARE HOME,CARE ESTABLISHMENT,OP - East Cambs Locality - Cost of Care,East Cambs - O P Team - Care,Residential Care
Cambridgeshire County Council,09-Apr-21,51301551387,-650.00,K RAVIVARUMAN T/A FAIR HAVEN CARE HOME,CARE ESTABLISHMENT,OP - East Cambs Locality - Cost of Care,East Cambs - O P Team - Care,Residential Care
Cambridgeshire County Council,09-Apr-21,51301551387,-650.00,K RAVIVARUMAN T/A FAIR HAVEN CARE HOME,CARE ESTABLISHMENT,OP - East Cambs Locality - Cost of Care,East Cambs - O P Team - Care,Residential Care
Cambridgeshire County Council,09-Apr-21,51301551381,-648.90,BOXTREE COTTAGE CAMBRIDGE LIMITED T/A BOXTREE COTTAGE RESIDENTIAL HOME,CARE ESTABLISHMENT,AMH - City South,Cambridge South Mental Health,Residential Care
Cambridgeshire County Council,09-Apr-21,51301551381,-648.90,BOXTREE COTTAGE CAMBRIDGE LIMITED T/A BOXTREE COTTAGE RESIDENTIAL HOME,CARE ESTABLISHMENT,AMH - City South,Cambridge South Mental Health,Residential Care
Cambridgeshire County Council,09-Apr-21,51301551381,-648.90,BOXTREE COTTAGE CAMBRIDGE LIMITED T/A BOXTREE COTTAGE RESIDENTIAL HOME,CARE ESTABLISHMENT,AMH - City South,Cambridge South Mental Health,Residential Care
Cambridgeshire County Council,09-Apr-21,51301551381,-648.90,BOXTREE COTTAGE CAMBRIDGE LIMITED T/A BOXTREE COTTAGE RESIDENTIAL HOME,CARE ESTABLISHMENT,AMH - City South,Cambridge South Mental Health,Residential Care
Cambridgeshire County Council,09-Apr-21,51301551381,-648.90,BOXTREE COTTAGE CAMBRIDGE LIMITED T/A BOXTREE COTTAGE RESIDENTIAL HOME,CARE ESTABLISHMENT,AMH - City South,Cambridge South Mental Health,Residential Care
Cambridgeshire County Council,09-Apr-21,51301551381,-648.90,BOXTREE COTTAGE CAMBRIDGE LIMITED T/A BOXTREE COTTAGE RESIDENTIAL HOME,CARE ESTABLISHMENT,AMH - City South,Cambridge South Mental Health,Residential Care
Cambridgeshire County Council,09-Apr-21,51301551381,-648.90,BOXTREE COTTAGE CAMBRIDGE LIMITED T/A BOXTREE COTTAGE RESIDENTIAL HOME,CARE ESTABLISHMENT,AMH - City South,Cambridge South Mental Health,Residential Care
Cambridgeshire County Council,09-Apr-21,51301551381,-648.90,BOXTREE COTTAGE CAMBRIDGE LIMITED T/A BOXTREE COTTAGE RESIDENTIAL HOME,CARE ESTABLISHMENT,AMH - City South,Cambridge South Mental Health,Residential Care
Cambridgeshire County Council,09-Apr-21,51301551381,-648.90,BOXTREE COTTAGE CAMBRIDGE LIMITED T/A BOXTREE COTTAGE RESIDENTIAL HOME,CARE ESTABLISHMENT,AMH - City South,Cambridge South Mental Health,Residential Care
Cambridgeshire County Council,09-Apr-21,51301551381,-648.90,BOXTREE COTTAGE CAMBRIDGE LIMITED T/A BOXTREE COTTAGE RESIDENTIAL HOME,CARE ESTABLISHMENT,AMH - City South,Cambridge South Mental Health,Residential Care
Cambridgeshire County Council,09-Apr-21,51301551381,-648.90,BOXTREE COTTAGE CAMBRIDGE LIMITED T/A BOXTREE COTTAGE RESIDENTIAL HOME,CARE ESTABLISHMENT,AMH - City South,Cambridge South Mental Health,Residential Care
Cambridgeshire County Council,09-Apr-21,51301551381,-648.90,BOXTREE COTTAGE CAMBRIDGE LIMITED T/A BOXTREE COTTAGE RESIDENTIAL HOME,CARE ESTABLISHMENT,AMH - City South,Cambridge South Mental Health,Residential Care
Cambridgeshire County Council,09-Apr-21,51301551381,-648.90,BOXTREE COTTAGE CAMBRIDGE LIMITED T/A BOXTREE COTTAGE RESIDENTIAL HOME,CARE ESTABLISHMENT,AMH - City South,Cambridge South Mental Health,Residential Care
Cambridgeshire County Council,09-Apr-21,51301551381,-648.90,BOXTREE COTTAGE CAMBRIDGE LIMITED T/A BOXTREE COTTAGE RESIDENTIAL HOME,CARE ESTABLISHMENT,AMH - City South,Cambridge South Mental Health,Residential Care
Cambridgeshire County Council,09-Apr-21,51301551381,-648.90,BOXTREE COTTAGE CAMBRIDGE LIMITED T/A BOXTREE COTTAGE RESIDENTIAL HOME,CARE ESTABLISHMENT,AMH - City South,Cambridge South Mental Health,Residential Care
Cambridgeshire County Council,09-Apr-21,51301551381,-648.90,BOXTREE COTTAGE CAMBRIDGE LIMITED T/A BOXTREE COTTAGE RESIDENTIAL HOME,CARE ESTABLISHMENT,AMH - City South,Cambridge South Mental Health,Residential Care
Cambridgeshire County Council,09-Apr-21,51301551381,-648.90,BOXTREE COTTAGE CAMBRIDGE LIMITED T/A BOXTREE COTTAGE RESIDENTIAL HOME,CARE ESTABLISHMENT,AMH - City South,Cambridge South Mental Health,Residential Care
Cambridgeshire County Council,09-Apr-21,51301551381,-648.90,BOXTREE COTTAGE CAMBRIDGE LIMITED T/A BOXTREE COTTAGE RESIDENTIAL HOME,CARE ESTABLISHMENT,AMH - City South,Cambridge South Mental Health,Residential Care
Cambridgeshire County Council,09-Apr-21,51301551381,-648.90,BOXTREE COTTAGE CAMBRIDGE LIMITED T/A BOXTREE COTTAGE RESIDENTIAL HOME,CARE ESTABLISHMENT,AMH - City South,Cambridge South Mental Health,Residential Care
Cambridgeshire County Council,09-Apr-21,51301551381,-648.90,BOXTREE COTTAGE CAMBRIDGE LIMITED T/A BOXTREE COTTAGE RESIDENTIAL HOME,CARE ESTABLISHMENT,AMH - City South,Cambridge South Mental Health,Residential Care
Cambridgeshire County Council,09-Apr-21,51301551381,-648.90,BOXTREE COTTAGE CAMBRIDGE LIMITED T/A BOXTREE COTTAGE RESIDENTIAL HOME,CARE ESTABLISHMENT,AMH - City South,Cambridge South Mental Health,Residential Care
Cambridgeshire County Council,09-Apr-21,51301551381,-648.90,BOXTREE COTTAGE CAMBRIDGE LIMITED T/A BOXTREE COTTAGE RESIDENTIAL HOME,CARE ESTABLISHMENT,AMH - City South,Cambridge South Mental Health,Residential Care
Cambridgeshire County Council,09-Apr-21,51301551381,-648.90,BOXTREE COTTAGE CAMBRIDGE LIMITED T/A BOXTREE COTTAGE RESIDENTIAL HOME,CARE ESTABLISHMENT,AMH - City South,Cambridge South Mental Health,Residential Care
Cambridgeshire County Council,09-Apr-21,51301551381,-648.90,BOXTREE COTTAGE CAMBRIDGE LIMITED T/A BOXTREE COTTAGE RESIDENTIAL HOME,CARE ESTABLISHMENT,AMH - City South,Cambridge South Mental Health,Residential Care
Cambridgeshire County Council,09-Apr-21,51301551381,-648.90,BOXTREE COTTAGE CAMBRIDGE LIMITED T/A BOXTREE COTTAGE RESIDENTIAL HOME,CARE ESTABLISHMENT,AMH - City South,Cambridge South Mental Health,Residential Care
Cambridgeshire County Council,09-Apr-21,51301551381,-648.90,BOXTREE COTTAGE CAMBRIDGE LIMITED T/A BOXTREE COTTAGE RESIDENTIAL HOME,CARE ESTABLISHMENT,AMH - City South,Cambridge South Mental Health,Residential Care
Cambridgeshire County Council,09-Apr-21,51301551381,-648.90,BOXTREE COTTAGE CAMBRIDGE LIMITED T/A BOXTREE COTTAGE RESIDENTIAL HOME,CARE ESTABLISHMENT,AMH - City South,Cambridge South Mental Health,Residential Care
Cambridgeshire County Council,09-Apr-21,51301551381,-648.90,BOXTREE COTTAGE CAMBRIDGE LIMITED T/A BOXTREE COTTAGE RESIDENTIAL HOME,CARE ESTABLISHMENT,AMH - City South,Cambridge South Mental Health,Residential Care
Cambridgeshire County Council,09-Apr-21,51301551381,-648.90,BOXTREE COTTAGE CAMBRIDGE LIMITED T/A BOXTREE COTTAGE RESIDENTIAL HOME,CARE ESTABLISHMENT,AMH - City South,Cambridge South Mental Health,Residential Care
Cambridgeshire County Council,09-Apr-21,51301551381,-648.90,BOXTREE COTTAGE CAMBRIDGE LIMITED T/A BOXTREE COTTAGE RESIDENTIAL HOME,CARE ESTABLISHMENT,AMH - City South,Cambridge South Mental Health,Residential Care
Cambridgeshire County Council,09-Apr-21,51301551381,-648.90,BOXTREE COTTAGE CAMBRIDGE LIMITED T/A BOXTREE COTTAGE RESIDENTIAL HOME,CARE ESTABLISHMENT,AMH - City South,Cambridge South Mental Health,Residential Care
Cambridgeshire County Council,09-Apr-21,51301551381,-648.90,BOXTREE COTTAGE CAMBRIDGE LIMITED T/A BOXTREE COTTAGE RESIDENTIAL HOME,CARE ESTABLISHMENT,AMH - City South,Cambridge South Mental Health,Residential Care
Cambridgeshire County Council,09-Apr-21,51301551381,-648.90,BOXTREE COTTAGE CAMBRIDGE LIMITED T/A BOXTREE COTTAGE RESIDENTIAL HOME,CARE ESTABLISHMENT,AMH - City South,Cambridge South Mental Health,Residential Care
Cambridgeshire County Council,09-Apr-21,51301551381,-648.90,BOXTREE COTTAGE CAMBRIDGE LIMITED T/A BOXTREE COTTAGE RESIDENTIAL HOME,CARE ESTABLISHMENT,AMH - City South,Cambridge South Mental Health,Residential Care
Cambridgeshire County Council,09-Apr-21,51301551381,-648.90,BOXTREE COTTAGE CAMBRIDGE LIMITED T/A BOXTREE COTTAGE RESIDENTIAL HOME,CARE ESTABLISHMENT,AMH - City South,Cambridge South Mental Health,Residential Care
Cambridgeshire County Council,09-Apr-21,51301551381,-648.90,BOXTREE COTTAGE CAMBRIDGE LIMITED T/A BOXTREE COTTAGE RESIDENTIAL HOME,CARE ESTABLISHMENT,AMH - City South,Cambridge South Mental Health,Residential Care
Cambridgeshire County Council,09-Apr-21,51301551381,-648.90,BOXTREE COTTAGE CAMBRIDGE LIMITED T/A BOXTREE COTTAGE RESIDENTIAL HOME,CARE ESTABLISHMENT,AMH - City South,Cambridge South Mental Health,Residential Care
Cambridgeshire County Council,09-Apr-21,51301551381,-648.90,BOXTREE COTTAGE CAMBRIDGE LIMITED T/A BOXTREE COTTAGE RESIDENTIAL HOME,CARE ESTABLISHMENT,AMH - City South,Cambridge South Mental Health,Residential Care
Cambridgeshire County Council,09-Apr-21,51301551381,-648.90,BOXTREE COTTAGE CAMBRIDGE LIMITED T/A BOXTREE COTTAGE RESIDENTIAL HOME,CARE ESTABLISHMENT,AMH - City South,Cambridge South Mental Health,Residential Care
Cambridgeshire County Council,09-Apr-21,51301551381,-648.90,BOXTREE COTTAGE CAMBRIDGE LIMITED T/A BOXTREE COTTAGE RESIDENTIAL HOME,CARE ESTABLISHMENT,AMH - City South,Cambridge South Mental Health,Residential Care
Cambridgeshire County Council,09-Apr-21,51301551381,-648.90,BOXTREE COTTAGE CAMBRIDGE LIMITED T/A BOXTREE COTTAGE RESIDENTIAL HOME,CARE ESTABLISHMENT,AMH - City South,Cambridge South Mental Health,Residential Care
Cambridgeshire County Council,09-Apr-21,51301551381,-648.90,BOXTREE COTTAGE CAMBRIDGE LIMITED T/A BOXTREE COTTAGE RESIDENTIAL HOME,CARE ESTABLISHMENT,AMH - City South,Cambridge South Mental Health,Residential Care
Cambridgeshire County Council,09-Apr-21,51301551378,-644.53,BOXTREE COTTAGE CAMBRIDGE LIMITED T/A BOXTREE COTTAGE RESIDENTIAL HOME,CARE ESTABLISHMENT,AMH - City South,Cambridge South Mental Health,Residential Care
Cambridgeshire County Council,09-Apr-21,51301551378,-644.53,BOXTREE COTTAGE CAMBRIDGE LIMITED T/A BOXTREE COTTAGE RESIDENTIAL HOME,CARE ESTABLISHMENT,AMH - City South,Cambridge South Mental Health,Residential Care
Cambridgeshire County Council,09-Apr-21,51301551378,-644.53,BOXTREE COTTAGE CAMBRIDGE LIMITED T/A BOXTREE COTTAGE RESIDENTIAL HOME,CARE ESTABLISHMENT,AMH - City South,Cambridge South Mental Health,Residential Care
Cambridgeshire County Council,09-Apr-21,51301551378,-644.53,BOXTREE COTTAGE CAMBRIDGE LIMITED T/A BOXTREE COTTAGE RESIDENTIAL HOME,CARE ESTABLISHMENT,AMH - City South,Cambridge South Mental Health,Residential Care
Cambridgeshire County Council,09-Apr-21,51301551378,-644.53,BOXTREE COTTAGE CAMBRIDGE LIMITED T/A BOXTREE COTTAGE RESIDENTIAL HOME,CARE ESTABLISHMENT,AMH - City South,Cambridge South Mental Health,Residential Care
Cambridgeshire County Council,09-Apr-21,51301551378,-644.53,BOXTREE COTTAGE CAMBRIDGE LIMITED T/A BOXTREE COTTAGE RESIDENTIAL HOME,CARE ESTABLISHMENT,AMH - City South,Cambridge South Mental Health,Residential Care
Cambridgeshire County Council,09-Apr-21,51301551378,-644.53,BOXTREE COTTAGE CAMBRIDGE LIMITED T/A BOXTREE COTTAGE RESIDENTIAL HOME,CARE ESTABLISHMENT,AMH - City South,Cambridge South Mental Health,Residential Care
Cambridgeshire County Council,09-Apr-21,51301551378,-644.53,BOXTREE COTTAGE CAMBRIDGE LIMITED T/A BOXTREE COTTAGE RESIDENTIAL HOME,CARE ESTABLISHMENT,AMH - City South,Cambridge South Mental Health,Residential Care
Cambridgeshire County Council,09-Apr-21,51301551378,-644.53,BOXTREE COTTAGE CAMBRIDGE LIMITED T/A BOXTREE COTTAGE RESIDENTIAL HOME,CARE ESTABLISHMENT,AMH - City South,Cambridge South Mental Health,Residential Care
Cambridgeshire County Council,09-Apr-21,51301551378,-644.53,BOXTREE COTTAGE CAMBRIDGE LIMITED T/A BOXTREE COTTAGE RESIDENTIAL HOME,CARE ESTABLISHMENT,AMH - City South,Cambridge South Mental Health,Residential Care
Cambridgeshire County Council,09-Apr-21,51301551378,-644.53,BOXTREE COTTAGE CAMBRIDGE LIMITED T/A BOXTREE COTTAGE RESIDENTIAL HOME,CARE ESTABLISHMENT,AMH - City South,Cambridge South Mental Health,Residential Care
Cambridgeshire County Council,09-Apr-21,51301551378,-644.53,BOXTREE COTTAGE CAMBRIDGE LIMITED T/A BOXTREE COTTAGE RESIDENTIAL HOME,CARE ESTABLISHMENT,AMH - City South,Cambridge South Mental Health,Residential Care
Cambridgeshire County Council,09-Apr-21,51301551378,-644.53,BOXTREE COTTAGE CAMBRIDGE LIMITED T/A BOXTREE COTTAGE RESIDENTIAL HOME,CARE ESTABLISHMENT,AMH - City South,Cambridge South Mental Health,Residential Care
Cambridgeshire County Council,09-Apr-21,51301551378,-644.53,BOXTREE COTTAGE CAMBRIDGE LIMITED T/A BOXTREE COTTAGE RESIDENTIAL HOME,CARE ESTABLISHMENT,AMH - City South,Cambridge South Mental Health,Residential Care
Cambridgeshire County Council,09-Apr-21,51301551378,-644.53,BOXTREE COTTAGE CAMBRIDGE LIMITED T/A BOXTREE COTTAGE RESIDENTIAL HOME,CARE ESTABLISHMENT,AMH - City South,Cambridge South Mental Health,Residential Care
Cambridgeshire County Council,09-Apr-21,51301551378,-644.53,BOXTREE COTTAGE CAMBRIDGE LIMITED T/A BOXTREE COTTAGE RESIDENTIAL HOME,CARE ESTABLISHMENT,AMH - City South,Cambridge South Mental Health,Residential Care
Cambridgeshire County Council,09-Apr-21,51301551378,-644.53,BOXTREE COTTAGE CAMBRIDGE LIMITED T/A BOXTREE COTTAGE RESIDENTIAL HOME,CARE ESTABLISHMENT,AMH - City South,Cambridge South Mental Health,Residential Care
Cambridgeshire County Council,09-Apr-21,51301551378,-644.53,BOXTREE COTTAGE CAMBRIDGE LIMITED T/A BOXTREE COTTAGE RESIDENTIAL HOME,CARE ESTABLISHMENT,AMH - City South,Cambridge South Mental Health,Residential Care
Cambridgeshire County Council,09-Apr-21,51301551378,-644.53,BOXTREE COTTAGE CAMBRIDGE LIMITED T/A BOXTREE COTTAGE RESIDENTIAL HOME,CARE ESTABLISHMENT,AMH - City South,Cambridge South Mental Health,Residential Care
Cambridgeshire County Council,09-Apr-21,51301551378,-644.53,BOXTREE COTTAGE CAMBRIDGE LIMITED T/A BOXTREE COTTAGE RESIDENTIAL HOME,CARE ESTABLISHMENT,AMH - City South,Cambridge South Mental Health,Residential Care
Cambridgeshire County Council,09-Apr-21,51301551378,-644.53,BOXTREE COTTAGE CAMBRIDGE LIMITED T/A BOXTREE COTTAGE RESIDENTIAL HOME,CARE ESTABLISHMENT,AMH - City South,Cambridge South Mental Health,Residential Care
Cambridgeshire County Council,09-Apr-21,51301551378,-644.53,BOXTREE COTTAGE CAMBRIDGE LIMITED T/A BOXTREE COTTAGE RESIDENTIAL HOME,CARE ESTABLISHMENT,AMH - City South,Cambridge South Mental Health,Residential Care
Cambridgeshire County Council,09-Apr-21,51301551378,-644.53,BOXTREE COTTAGE CAMBRIDGE LIMITED T/A BOXTREE COTTAGE RESIDENTIAL HOME,CARE ESTABLISHMENT,AMH - City South,Cambridge South Mental Health,Residential Care
Cambridgeshire County Council,09-Apr-21,51301551378,-644.53,BOXTREE COTTAGE CAMBRIDGE LIMITED T/A BOXTREE COTTAGE RESIDENTIAL HOME,CARE ESTABLISHMENT,AMH - City South,Cambridge South Mental Health,Residential Care
Cambridgeshire County Council,09-Apr-21,51301551378,-644.53,BOXTREE COTTAGE CAMBRIDGE LIMITED T/A BOXTREE COTTAGE RESIDENTIAL HOME,CARE ESTABLISHMENT,AMH - City South,Cambridge South Mental Health,Residential Care
Cambridgeshire County Council,09-Apr-21,51301551378,-644.53,BOXTREE COTTAGE CAMBRIDGE LIMITED T/A BOXTREE COTTAGE RESIDENTIAL HOME,CARE ESTABLISHMENT,AMH - City South,Cambridge South Mental Health,Residential Care
Cambridgeshire County Council,09-Apr-21,51301551378,-644.53,BOXTREE COTTAGE CAMBRIDGE LIMITED T/A BOXTREE COTTAGE RESIDENTIAL HOME,CARE ESTABLISHMENT,AMH - City South,Cambridge South Mental Health,Residential Care
Cambridgeshire County Council,09-Apr-21,51301551378,-644.53,BOXTREE COTTAGE CAMBRIDGE LIMITED T/A BOXTREE COTTAGE RESIDENTIAL HOME,CARE ESTABLISHMENT,AMH - City South,Cambridge South Mental Health,Residential Care
Cambridgeshire County Council,09-Apr-21,51301551378,-644.53,BOXTREE COTTAGE CAMBRIDGE LIMITED T/A BOXTREE COTTAGE RESIDENTIAL HOME,CARE ESTABLISHMENT,AMH - City South,Cambridge South Mental Health,Residential Care
Cambridgeshire County Council,09-Apr-21,51301551378,-644.53,BOXTREE COTTAGE CAMBRIDGE LIMITED T/A BOXTREE COTTAGE RESIDENTIAL HOME,CARE ESTABLISHMENT,AMH - City South,Cambridge South Mental Health,Residential Care
Cambridgeshire County Council,09-Apr-21,51301551378,-644.53,BOXTREE COTTAGE CAMBRIDGE LIMITED T/A BOXTREE COTTAGE RESIDENTIAL HOME,CARE ESTABLISHMENT,AMH - City South,Cambridge South Mental Health,Residential Care
Cambridgeshire County Council,09-Apr-21,51301551378,-644.53,BOXTREE COTTAGE CAMBRIDGE LIMITED T/A BOXTREE COTTAGE RESIDENTIAL HOME,CARE ESTABLISHMENT,AMH - City South,Cambridge South Mental Health,Residential Care
Cambridgeshire County Council,09-Apr-21,51301551378,-644.53,BOXTREE COTTAGE CAMBRIDGE LIMITED T/A BOXTREE COTTAGE RESIDENTIAL HOME,CARE ESTABLISHMENT,AMH - City South,Cambridge South Mental Health,Residential Care
Cambridgeshire County Council,09-Apr-21,51301551378,-644.53,BOXTREE COTTAGE CAMBRIDGE LIMITED T/A BOXTREE COTTAGE RESIDENTIAL HOME,CARE ESTABLISHMENT,AMH - City South,Cambridge South Mental Health,Residential Care
Cambridgeshire County Council,09-Apr-21,51301551378,-644.53,BOXTREE COTTAGE CAMBRIDGE LIMITED T/A BOXTREE COTTAGE RESIDENTIAL HOME,CARE ESTABLISHMENT,AMH - City South,Cambridge South Mental Health,Residential Care
Cambridgeshire County Council,09-Apr-21,51301551378,-644.53,BOXTREE COTTAGE CAMBRIDGE LIMITED T/A BOXTREE COTTAGE RESIDENTIAL HOME,CARE ESTABLISHMENT,AMH - City South,Cambridge South Mental Health,Residential Care
Cambridgeshire County Council,09-Apr-21,51301551378,-644.53,BOXTREE COTTAGE CAMBRIDGE LIMITED T/A BOXTREE COTTAGE RESIDENTIAL HOME,CARE ESTABLISHMENT,AMH - City South,Cambridge South Mental Health,Residential Care
Cambridgeshire County Council,09-Apr-21,51301551378,-644.53,BOXTREE COTTAGE CAMBRIDGE LIMITED T/A BOXTREE COTTAGE RESIDENTIAL HOME,CARE ESTABLISHMENT,AMH - City South,Cambridge South Mental Health,Residential Care
Cambridgeshire County Council,09-Apr-21,51301551378,-644.53,BOXTREE COTTAGE CAMBRIDGE LIMITED T/A BOXTREE COTTAGE RESIDENTIAL HOME,CARE ESTABLISHMENT,AMH - City South,Cambridge South Mental Health,Residential Care
Cambridgeshire County Council,09-Apr-21,51301551378,-644.53,BOXTREE COTTAGE CAMBRIDGE LIMITED T/A BOXTREE COTTAGE RESIDENTIAL HOME,CARE ESTABLISHMENT,AMH - City South,Cambridge South Mental Health,Residential Care
Cambridgeshire County Council,09-Apr-21,51301551378,-644.53,BOXTREE COTTAGE CAMBRIDGE LIMITED T/A BOXTREE COTTAGE RESIDENTIAL HOME,CARE ESTABLISHMENT,AMH - City South,Cambridge South Mental Health,Residential Care
Cambridgeshire County Council,09-Apr-21,51301551378,-644.53,BOXTREE COTTAGE CAMBRIDGE LIMITED T/A BOXTREE COTTAGE RESIDENTIAL HOME,CARE ESTABLISHMENT,AMH - City South,Cambridge South Mental Health,Residential Care
Cambridgeshire County Council,09-Apr-21,51301551379,-643.75,BOXTREE COTTAGE CAMBRIDGE LIMITED T/A BOXTREE COTTAGE RESIDENTIAL HOME,CARE ESTABLISHMENT,AMH - City South,Cambridge South Mental Health,Residential Care
Cambridgeshire County Council,09-Apr-21,51301551379,-643.75,BOXTREE COTTAGE CAMBRIDGE LIMITED T/A BOXTREE COTTAGE RESIDENTIAL HOME,CARE ESTABLISHMENT,AMH - City South,Cambridge South Mental Health,Residential Care
Cambridgeshire County Council,09-Apr-21,51301551379,-643.75,BOXTREE COTTAGE CAMBRIDGE LIMITED T/A BOXTREE COTTAGE RESIDENTIAL HOME,CARE ESTABLISHMENT,AMH - City South,Cambridge South Mental Health,Residential Care
Cambridgeshire County Council,09-Apr-21,51301551379,-643.75,BOXTREE COTTAGE CAMBRIDGE LIMITED T/A BOXTREE COTTAGE RESIDENTIAL HOME,CARE ESTABLISHMENT,AMH - City South,Cambridge South Mental Health,Residential Care
Cambridgeshire County Council,09-Apr-21,51301551379,-643.75,BOXTREE COTTAGE CAMBRIDGE LIMITED T/A BOXTREE COTTAGE RESIDENTIAL HOME,CARE ESTABLISHMENT,AMH - City South,Cambridge South Mental Health,Residential Care
Cambridgeshire County Council,09-Apr-21,51301551379,-643.75,BOXTREE COTTAGE CAMBRIDGE LIMITED T/A BOXTREE COTTAGE RESIDENTIAL HOME,CARE ESTABLISHMENT,AMH - City South,Cambridge South Mental Health,Residential Care
Cambridgeshire County Council,09-Apr-21,51301551379,-643.75,BOXTREE COTTAGE CAMBRIDGE LIMITED T/A BOXTREE COTTAGE RESIDENTIAL HOME,CARE ESTABLISHMENT,AMH - City South,Cambridge South Mental Health,Residential Care
Cambridgeshire County Council,09-Apr-21,51301551379,-643.75,BOXTREE COTTAGE CAMBRIDGE LIMITED T/A BOXTREE COTTAGE RESIDENTIAL HOME,CARE ESTABLISHMENT,AMH - City South,Cambridge South Mental Health,Residential Care
Cambridgeshire County Council,09-Apr-21,51301551379,-643.75,BOXTREE COTTAGE CAMBRIDGE LIMITED T/A BOXTREE COTTAGE RESIDENTIAL HOME,CARE ESTABLISHMENT,AMH - City South,Cambridge South Mental Health,Residential Care
Cambridgeshire County Council,09-Apr-21,51301551379,-643.75,BOXTREE COTTAGE CAMBRIDGE LIMITED T/A BOXTREE COTTAGE RESIDENTIAL HOME,CARE ESTABLISHMENT,AMH - City South,Cambridge South Mental Health,Residential Care
Cambridgeshire County Council,09-Apr-21,51301551379,-643.75,BOXTREE COTTAGE CAMBRIDGE LIMITED T/A BOXTREE COTTAGE RESIDENTIAL HOME,CARE ESTABLISHMENT,AMH - City South,Cambridge South Mental Health,Residential Care
Cambridgeshire County Council,09-Apr-21,51301551379,-643.75,BOXTREE COTTAGE CAMBRIDGE LIMITED T/A BOXTREE COTTAGE RESIDENTIAL HOME,CARE ESTABLISHMENT,AMH - City South,Cambridge South Mental Health,Residential Care
Cambridgeshire County Council,09-Apr-21,51301551379,-643.75,BOXTREE COTTAGE CAMBRIDGE LIMITED T/A BOXTREE COTTAGE RESIDENTIAL HOME,CARE ESTABLISHMENT,AMH - City South,Cambridge South Mental Health,Residential Care
Cambridgeshire County Council,09-Apr-21,51301551379,-643.75,BOXTREE COTTAGE CAMBRIDGE LIMITED T/A BOXTREE COTTAGE RESIDENTIAL HOME,CARE ESTABLISHMENT,AMH - City South,Cambridge South Mental Health,Residential Care
Cambridgeshire County Council,09-Apr-21,51301551379,-643.75,BOXTREE COTTAGE CAMBRIDGE LIMITED T/A BOXTREE COTTAGE RESIDENTIAL HOME,CARE ESTABLISHMENT,AMH - City South,Cambridge South Mental Health,Residential Care
Cambridgeshire County Council,09-Apr-21,51301551379,-643.75,BOXTREE COTTAGE CAMBRIDGE LIMITED T/A BOXTREE COTTAGE RESIDENTIAL HOME,CARE ESTABLISHMENT,AMH - City South,Cambridge South Mental Health,Residential Care
Cambridgeshire County Council,09-Apr-21,51301551379,-643.75,BOXTREE COTTAGE CAMBRIDGE LIMITED T/A BOXTREE COTTAGE RESIDENTIAL HOME,CARE ESTABLISHMENT,AMH - City South,Cambridge South Mental Health,Residential Care
Cambridgeshire County Council,09-Apr-21,51301551379,-643.75,BOXTREE COTTAGE CAMBRIDGE LIMITED T/A BOXTREE COTTAGE RESIDENTIAL HOME,CARE ESTABLISHMENT,AMH - City South,Cambridge South Mental Health,Residential Care
Cambridgeshire County Council,09-Apr-21,51301551379,-643.75,BOXTREE COTTAGE CAMBRIDGE LIMITED T/A BOXTREE COTTAGE RESIDENTIAL HOME,CARE ESTABLISHMENT,AMH - City South,Cambridge South Mental Health,Residential Care
Cambridgeshire County Council,09-Apr-21,51301551379,-643.75,BOXTREE COTTAGE CAMBRIDGE LIMITED T/A BOXTREE COTTAGE RESIDENTIAL HOME,CARE ESTABLISHMENT,AMH - City South,Cambridge South Mental Health,Residential Care
Cambridgeshire County Council,09-Apr-21,51301551379,-643.75,BOXTREE COTTAGE CAMBRIDGE LIMITED T/A BOXTREE COTTAGE RESIDENTIAL HOME,CARE ESTABLISHMENT,AMH - City South,Cambridge South Mental Health,Residential Care
Cambridgeshire County Council,09-Apr-21,51301551379,-643.75,BOXTREE COTTAGE CAMBRIDGE LIMITED T/A BOXTREE COTTAGE RESIDENTIAL HOME,CARE ESTABLISHMENT,AMH - City South,Cambridge South Mental Health,Residential Care
Cambridgeshire County Council,09-Apr-21,51301551379,-643.75,BOXTREE COTTAGE CAMBRIDGE LIMITED T/A BOXTREE COTTAGE RESIDENTIAL HOME,CARE ESTABLISHMENT,AMH - City South,Cambridge South Mental Health,Residential Care
Cambridgeshire County Council,09-Apr-21,51301551379,-643.75,BOXTREE COTTAGE CAMBRIDGE LIMITED T/A BOXTREE COTTAGE RESIDENTIAL HOME,CARE ESTABLISHMENT,AMH - City South,Cambridge South Mental Health,Residential Care
Cambridgeshire County Council,09-Apr-21,51301551379,-643.75,BOXTREE COTTAGE CAMBRIDGE LIMITED T/A BOXTREE COTTAGE RESIDENTIAL HOME,CARE ESTABLISHMENT,AMH - City South,Cambridge South Mental Health,Residential Care
Cambridgeshire County Council,09-Apr-21,51301551379,-643.75,BOXTREE COTTAGE CAMBRIDGE LIMITED T/A BOXTREE COTTAGE RESIDENTIAL HOME,CARE ESTABLISHMENT,AMH - City South,Cambridge South Mental Health,Residential Care
Cambridgeshire County Council,09-Apr-21,51301551379,-643.75,BOXTREE COTTAGE CAMBRIDGE LIMITED T/A BOXTREE COTTAGE RESIDENTIAL HOME,CARE ESTABLISHMENT,AMH - City South,Cambridge South Mental Health,Residential Care
Cambridgeshire County Council,09-Apr-21,51301551379,-643.75,BOXTREE COTTAGE CAMBRIDGE LIMITED T/A BOXTREE COTTAGE RESIDENTIAL HOME,CARE ESTABLISHMENT,AMH - City South,Cambridge South Mental Health,Residential Care
Cambridgeshire County Council,09-Apr-21,51301551379,-643.75,BOXTREE COTTAGE CAMBRIDGE LIMITED T/A BOXTREE COTTAGE RESIDENTIAL HOME,CARE ESTABLISHMENT,AMH - City South,Cambridge South Mental Health,Residential Care
Cambridgeshire County Council,09-Apr-21,51301551379,-643.75,BOXTREE COTTAGE CAMBRIDGE LIMITED T/A BOXTREE COTTAGE RESIDENTIAL HOME,CARE ESTABLISHMENT,AMH - City South,Cambridge South Mental Health,Residential Care
Cambridgeshire County Council,09-Apr-21,51301551379,-643.75,BOXTREE COTTAGE CAMBRIDGE LIMITED T/A BOXTREE COTTAGE RESIDENTIAL HOME,CARE ESTABLISHMENT,AMH - City South,Cambridge South Mental Health,Residential Care
Cambridgeshire County Council,09-Apr-21,51301551379,-643.75,BOXTREE COTTAGE CAMBRIDGE LIMITED T/A BOXTREE COTTAGE RESIDENTIAL HOME,CARE ESTABLISHMENT,AMH - City South,Cambridge South Mental Health,Residential Care
Cambridgeshire County Council,09-Apr-21,51301551379,-643.75,BOXTREE COTTAGE CAMBRIDGE LIMITED T/A BOXTREE COTTAGE RESIDENTIAL HOME,CARE ESTABLISHMENT,AMH - City South,Cambridge South Mental Health,Residential Care
Cambridgeshire County Council,09-Apr-21,51301551379,-643.75,BOXTREE COTTAGE CAMBRIDGE LIMITED T/A BOXTREE COTTAGE RESIDENTIAL HOME,CARE ESTABLISHMENT,AMH - City South,Cambridge South Mental Health,Residential Care
Cambridgeshire County Council,09-Apr-21,51301551379,-643.75,BOXTREE COTTAGE CAMBRIDGE LIMITED T/A BOXTREE COTTAGE RESIDENTIAL HOME,CARE ESTABLISHMENT,AMH - City South,Cambridge South Mental Health,Residential Care
Cambridgeshire County Council,09-Apr-21,51301551379,-643.75,BOXTREE COTTAGE CAMBRIDGE LIMITED T/A BOXTREE COTTAGE RESIDENTIAL HOME,CARE ESTABLISHMENT,AMH - City South,Cambridge South Mental Health,Residential Care
Cambridgeshire County Council,09-Apr-21,51301551379,-643.75,BOXTREE COTTAGE CAMBRIDGE LIMITED T/A BOXTREE COTTAGE RESIDENTIAL HOME,CARE ESTABLISHMENT,AMH - City South,Cambridge South Mental Health,Residential Care
Cambridgeshire County Council,09-Apr-21,51301551379,-643.75,BOXTREE COTTAGE CAMBRIDGE LIMITED T/A BOXTREE COTTAGE RESIDENTIAL HOME,CARE ESTABLISHMENT,AMH - City South,Cambridge South Mental Health,Residential Care
Cambridgeshire County Council,09-Apr-21,51301551379,-643.75,BOXTREE COTTAGE CAMBRIDGE LIMITED T/A BOXTREE COTTAGE RESIDENTIAL HOME,CARE ESTABLISHMENT,AMH - City South,Cambridge South Mental Health,Residential Care
Cambridgeshire County Council,09-Apr-21,51301551379,-643.75,BOXTREE COTTAGE CAMBRIDGE LIMITED T/A BOXTREE COTTAGE RESIDENTIAL HOME,CARE ESTABLISHMENT,AMH - City South,Cambridge South Mental Health,Residential Care
Cambridgeshire County Council,09-Apr-21,51301551379,-643.75,BOXTREE COTTAGE CAMBRIDGE LIMITED T/A BOXTREE COTTAGE RESIDENTIAL HOME,CARE ESTABLISHMENT,AMH - City South,Cambridge South Mental Health,Residential Care
Cambridgeshire County Council,09-Apr-21,51301551379,-643.75,BOXTREE COTTAGE CAMBRIDGE LIMITED T/A BOXTREE COTTAGE RESIDENTIAL HOME,CARE ESTABLISHMENT,AMH - City South,Cambridge South Mental Health,Residential Care
Cambridgeshire County Council,09-Apr-21,51301551318,-642.86,ETHELDRED HOUSE,CARE ESTABLISHMENT,OP - East Cambs Locality - Cost of Care,East Cambs - O P Team - Care,Residential Care
Cambridgeshire County Council,09-Apr-21,51301551329,-606.89,ASKHAM VILLAGE COMMUNITY LTD,CARE ESTABLISHMENT,Physical Disablity - Cost of Care,Countywide PD Service - Care,Nursing Care
Cambridgeshire County Council,09-Apr-21,51301551336,-600.00,THE HILLINGS LIMITED,CARE ESTABLISHMENT,OP - City & South Locality - Cost of Care,Older People - City & South - Care,Residential Care
Cambridgeshire County Council,09-Apr-21,51301551386,-596.08,THE ELMS NURSING HOME,CARE ESTABLISHMENT,OP - Fenland Locality - Cost of Care,Older People - Fenland - Care,Nursing Care
Cambridgeshire County Council,09-Apr-21,51301551386,-596.08,THE ELMS NURSING HOME,CARE ESTABLISHMENT,OP - Fenland Locality - Cost of Care,Older People - Fenland - Care,Nursing Care
Cambridgeshire County Council,09-Apr-21,51301551386,-596.08,THE ELMS NURSING HOME,CARE ESTABLISHMENT,OP - Fenland Locality - Cost of Care,Older People - Fenland - Care,Nursing Care
Cambridgeshire County Council,09-Apr-21,51301551386,-596.08,THE ELMS NURSING HOME,CARE ESTABLISHMENT,OP - Fenland Locality - Cost of Care,Older People - Fenland - Care,Nursing Care
Cambridgeshire County Council,09-Apr-21,51301551386,-596.08,THE ELMS NURSING HOME,CARE ESTABLISHMENT,OP - Fenland Locality - Cost of Care,Older People - Fenland - Care,Nursing Care
Cambridgeshire County Council,09-Apr-21,51301551386,-596.08,THE ELMS NURSING HOME,CARE ESTABLISHMENT,OP - Fenland Locality - Cost of Care,Older People - Fenland - Care,Nursing Care
Cambridgeshire County Council,09-Apr-21,51301551386,-596.08,THE ELMS NURSING HOME,CARE ESTABLISHMENT,OP - Fenland Locality - Cost of Care,Older People - Fenland - Care,Nursing Care
Cambridgeshire County Council,09-Apr-21,51301551386,-596.08,THE ELMS NURSING HOME,CARE ESTABLISHMENT,OP - Fenland Locality - Cost of Care,Older People - Fenland - Care,Nursing Care
Cambridgeshire County Council,09-Apr-21,51301551386,-596.08,THE ELMS NURSING HOME,CARE ESTABLISHMENT,OP - Fenland Locality - Cost of Care,Older People - Fenland - Care,Nursing Care
Cambridgeshire County Council,09-Apr-21,51301551432,511.36,Redacted Personal Data ,PARENT/GUARDIAN,Home to School Transport - Special,Home to School Transport Special - Primary,Home to School - Contract
Cambridgeshire County Council,09-Apr-21,51301551319,514.29,AISLING LODGE (MD CARE HOMES),CARE ESTABLISHMENT,OP - Hunts Locality - Cost of Care,Hunts OP Team - Care,Residential Care
Cambridgeshire County Council,09-Apr-21,51301551331,514.29,ASKHAM VILLAGE COMMUNITY LTD,CARE ESTABLISHMENT,OP - East Cambs Locality - Cost of Care,East Cambs - O P Team - Care,Nursing Care
Cambridgeshire County Council,09-Apr-21,51301551309,531.60,OAKLANDS CARE HOME,CARE ESTABLISHMENT,OPMH - City & South,Older People Mental Health City & South,Nursing Care
Cambridgeshire County Council,09-Apr-21,51301551309,531.60,OAKLANDS CARE HOME,CARE ESTABLISHMENT,OPMH - City & South,Older People Mental Health City & South,Nursing Care
Cambridgeshire County Council,09-Apr-21,51301551309,531.60,OAKLANDS CARE HOME,CARE ESTABLISHMENT,OPMH - City & South,Older People Mental Health City & South,Nursing Care
Cambridgeshire County Council,09-Apr-21,51301551309,531.60,OAKLANDS CARE HOME,CARE ESTABLISHMENT,OPMH - City & South,Older People Mental Health City & South,Nursing Care
Cambridgeshire County Council,09-Apr-21,51301551309,531.60,OAKLANDS CARE HOME,CARE ESTABLISHMENT,OPMH - City & South,Older People Mental Health City & South,Nursing Care
Cambridgeshire County Council,09-Apr-21,51301551309,531.60,OAKLANDS CARE HOME,CARE ESTABLISHMENT,OPMH - City & South,Older People Mental Health City & South,Nursing Care
Cambridgeshire County Council,09-Apr-21,51301551309,531.60,OAKLANDS CARE HOME,CARE ESTABLISHMENT,OPMH - City & South,Older People Mental Health City & South,Nursing Care
Cambridgeshire County Council,09-Apr-21,51301551309,531.60,OAKLANDS CARE HOME,CARE ESTABLISHMENT,OPMH - City & South,Older People Mental Health City & South,Nursing Care
Cambridgeshire County Council,09-Apr-21,51301551298,535.50,Alpha Health and Social Care Services Ltd,CARE ESTABLISHMENT,OP - Fenland Locality - Cost of Care,Older People - Fenland - Care,Domiciliary Care
Cambridgeshire County Council,09-Apr-21,51301551298,535.50,Alpha Health and Social Care Services Ltd,CARE ESTABLISHMENT,OP - Fenland Locality - Cost of Care,Older People - Fenland - Care,Domiciliary Care
Cambridgeshire County Council,09-Apr-21,51301551298,535.50,Alpha Health and Social Care Services Ltd,CARE ESTABLISHMENT,OP - Fenland Locality - Cost of Care,Older People - Fenland - Care,Domiciliary Care
Cambridgeshire County Council,09-Apr-21,51301551300,540.00,Redacted Personal Data ,INDIVIDUAL,OP - Hunts Locality - Cost of Care,Hunts OP Team - Care,Direct Payments
Cambridgeshire County Council,09-Apr-21,51301551300,540.00,Redacted Personal Data ,INDIVIDUAL,OP - Hunts Locality - Cost of Care,Hunts OP Team - Care,Direct Payments
Cambridgeshire County Council,09-Apr-21,51301551300,540.00,Redacted Personal Data ,INDIVIDUAL,OP - Hunts Locality - Cost of Care,Hunts OP Team - Care,Direct Payments
Cambridgeshire County Council,09-Apr-21,51301551300,540.00,Redacted Personal Data ,INDIVIDUAL,OP - Hunts Locality - Cost of Care,Hunts OP Team - Care,Direct Payments
Cambridgeshire County Council,09-Apr-21,51301551300,540.00,Redacted Personal Data ,INDIVIDUAL,OP - Hunts Locality - Cost of Care,Hunts OP Team - Care,Direct Payments
Cambridgeshire County Council,09-Apr-21,51301551300,540.00,Redacted Personal Data ,INDIVIDUAL,OP - Hunts Locality - Cost of Care,Hunts OP Team - Care,Direct Payments
Cambridgeshire County Council,09-Apr-21,51301551300,540.00,Redacted Personal Data ,INDIVIDUAL,OP - Hunts Locality - Cost of Care,Hunts OP Team - Care,Direct Payments
Cambridgeshire County Council,09-Apr-21,51301551300,540.00,Redacted Personal Data ,INDIVIDUAL,OP - Hunts Locality - Cost of Care,Hunts OP Team - Care,Direct Payments
Cambridgeshire County Council,09-Apr-21,51301551300,540.00,Redacted Personal Data ,INDIVIDUAL,OP - Hunts Locality - Cost of Care,Hunts OP Team - Care,Direct Payments
Cambridgeshire County Council,09-Apr-21,51301551300,540.00,Redacted Personal Data ,INDIVIDUAL,OP - Hunts Locality - Cost of Care,Hunts OP Team - Care,Direct Payments
Cambridgeshire County Council,09-Apr-21,51301551300,540.00,Redacted Personal Data ,INDIVIDUAL,OP - Hunts Locality - Cost of Care,Hunts OP Team - Care,Direct Payments
Cambridgeshire County Council,09-Apr-21,51301551300,540.00,Redacted Personal Data ,INDIVIDUAL,OP - Hunts Locality - Cost of Care,Hunts OP Team - Care,Direct Payments
Cambridgeshire County Council,09-Apr-21,51301551300,540.00,Redacted Personal Data ,INDIVIDUAL,OP - Hunts Locality - Cost of Care,Hunts OP Team - Care,Direct Payments
Cambridgeshire County Council,09-Apr-21,51301551300,540.00,Redacted Personal Data ,INDIVIDUAL,OP - Hunts Locality - Cost of Care,Hunts OP Team - Care,Direct Payments
Cambridgeshire County Council,09-Apr-21,51301551300,540.00,Redacted Personal Data ,INDIVIDUAL,OP - Hunts Locality - Cost of Care,Hunts OP Team - Care,Direct Payments
Cambridgeshire County Council,09-Apr-21,51301551300,540.00,Redacted Personal Data ,INDIVIDUAL,OP - Hunts Locality - Cost of Care,Hunts OP Team - Care,Direct Payments
Cambridgeshire County Council,09-Apr-21,51301551300,540.00,Redacted Personal Data ,INDIVIDUAL,OP - Hunts Locality - Cost of Care,Hunts OP Team - Care,Direct Payments
Cambridgeshire County Council,09-Apr-21,51301551300,540.00,Redacted Personal Data ,INDIVIDUAL,OP - Hunts Locality - Cost of Care,Hunts OP Team - Care,Direct Payments
Cambridgeshire County Council,09-Apr-21,51301551300,540.00,Redacted Personal Data ,INDIVIDUAL,OP - Hunts Locality - Cost of Care,Hunts OP Team - Care,Direct Payments
Cambridgeshire County Council,09-Apr-21,51301551201,542.00,Redacted Personal Data ,INDIVIDUAL,Registrars,Registrars General,Non Staff expenses
Cambridgeshire County Council,09-Apr-21,51301551399,547.20,WERRINGTON LODGE CARE HOME,CARE ESTABLISHMENT,OP - Fenland Locality - Cost of Care,Older People - Fenland - Care,Nursing Care
Cambridgeshire County Council,09-Apr-21,51301551459,550.34,Redacted Personal Data ,INDIVIDUAL,Home to School Transport - Special,Home to School Transport Special - Special School,Home to School - Contract
Cambridgeshire County Council,09-Apr-21,51301551403,557.14,KENEYDON HOUSE RESIDENTIAL CARE HOME,CARE ESTABLISHMENT,OP - Fenland Locality - Cost of Care,Older People - Fenland - Care,Residential Care
Cambridgeshire County Council,09-Apr-21,51301551355,558.69,WINSTON HOUSE(2CARE),CARE ESTABLISHMENT,AMH - City South,Cambridge South Mental Health,Residential Care
Cambridgeshire County Council,09-Apr-21,51301551477,574.45,OverDrive Global Limited,COMPANY,Libraries - Stock & Distribution,Support - Stock & Distribution,Books and Multimedia Supplies
Cambridgeshire County Council,09-Apr-21,51301551350,591.43,ETHELDRED HOUSE,CARE ESTABLISHMENT,OP - City & South Locality - Cost of Care,Older People - City & South - Care,Residential Care
Cambridgeshire County Council,09-Apr-21,51301551390,596.08,THE ELMS NURSING HOME,CARE ESTABLISHMENT,OP - Fenland Locality - Cost of Care,Older People - Fenland - Care,Nursing Care
Cambridgeshire County Council,09-Apr-21,51301551390,596.08,THE ELMS NURSING HOME,CARE ESTABLISHMENT,OP - Fenland Locality - Cost of Care,Older People - Fenland - Care,Nursing Care
Cambridgeshire County Council,09-Apr-21,51301551390,596.08,THE ELMS NURSING HOME,CARE ESTABLISHMENT,OP - Fenland Locality - Cost of Care,Older People - Fenland - Care,Nursing Care
Cambridgeshire County Council,09-Apr-21,51301551390,596.08,THE ELMS NURSING HOME,CARE ESTABLISHMENT,OP - Fenland Locality - Cost of Care,Older People - Fenland - Care,Nursing Care
Cambridgeshire County Council,09-Apr-21,51301551390,596.08,THE ELMS NURSING HOME,CARE ESTABLISHMENT,OP - Fenland Locality - Cost of Care,Older People - Fenland - Care,Nursing Care
Cambridgeshire County Council,09-Apr-21,51301551390,596.08,THE ELMS NURSING HOME,CARE ESTABLISHMENT,OP - Fenland Locality - Cost of Care,Older People - Fenland - Care,Nursing Care
Cambridgeshire County Council,09-Apr-21,51301551390,596.08,THE ELMS NURSING HOME,CARE ESTABLISHMENT,OP - Fenland Locality - Cost of Care,Older People - Fenland - Care,Nursing Care
Cambridgeshire County Council,09-Apr-21,51301551390,596.08,THE ELMS NURSING HOME,CARE ESTABLISHMENT,OP - Fenland Locality - Cost of Care,Older People - Fenland - Care,Nursing Care
Cambridgeshire County Council,09-Apr-21,51301551390,596.08,THE ELMS NURSING HOME,CARE ESTABLISHMENT,OP - Fenland Locality - Cost of Care,Older People - Fenland - Care,Nursing Care
Cambridgeshire County Council,09-Apr-21,51301551375,600.00,THE HILLINGS LIMITED,CARE ESTABLISHMENT,OP - City & South Locality - Cost of Care,Older People - City & South - Care,Residential Care
Cambridgeshire County Council,09-Apr-21,51301545912,600.00,Reading Agricultural Consultants Ltd,TRADE SUPPLIER,"County Planning, Minerals & Waste","County Planning, Minerals & Waste",Consultancy
Cambridgeshire County Council,09-Apr-21,51301551319,600.00,AISLING LODGE (MD CARE HOMES),CARE ESTABLISHMENT,OP - Hunts Locality - Cost of Care,Hunts OP Team - Care,Residential Care
Cambridgeshire County Council,09-Apr-21,51301551319,600.00,AISLING LODGE (MD CARE HOMES),CARE ESTABLISHMENT,OP - Hunts Locality - Cost of Care,Hunts OP Team - Care,Residential Care
Cambridgeshire County Council,09-Apr-21,51301551319,600.00,AISLING LODGE (MD CARE HOMES),CARE ESTABLISHMENT,OP - Hunts Locality - Cost of Care,Hunts OP Team - Care,Residential Care
Cambridgeshire County Council,09-Apr-21,51301551319,600.00,AISLING LODGE (MD CARE HOMES),CARE ESTABLISHMENT,OP - Hunts Locality - Cost of Care,Hunts OP Team - Care,Residential Care
Cambridgeshire County Council,09-Apr-21,51301551319,600.00,AISLING LODGE (MD CARE HOMES),CARE ESTABLISHMENT,OP - Hunts Locality - Cost of Care,Hunts OP Team - Care,Residential Care
Cambridgeshire County Council,09-Apr-21,51301551319,600.00,AISLING LODGE (MD CARE HOMES),CARE ESTABLISHMENT,OP - Hunts Locality - Cost of Care,Hunts OP Team - Care,Residential Care
Cambridgeshire County Council,09-Apr-21,51301551319,600.00,AISLING LODGE (MD CARE HOMES),CARE ESTABLISHMENT,OP - Hunts Locality - Cost of Care,Hunts OP Team - Care,Residential Care
Cambridgeshire County Council,09-Apr-21,51301551319,600.00,AISLING LODGE (MD CARE HOMES),CARE ESTABLISHMENT,OP - Hunts Locality - Cost of Care,Hunts OP Team - Care,Residential Care
Cambridgeshire County Council,09-Apr-21,51301551319,600.00,AISLING LODGE (MD CARE HOMES),CARE ESTABLISHMENT,OP - Hunts Locality - Cost of Care,Hunts OP Team - Care,Residential Care
Cambridgeshire County Council,09-Apr-21,51301551319,600.00,AISLING LODGE (MD CARE HOMES),CARE ESTABLISHMENT,OP - Hunts Locality - Cost of Care,Hunts OP Team - Care,Residential Care
Cambridgeshire County Council,09-Apr-21,51301551319,600.00,AISLING LODGE (MD CARE HOMES),CARE ESTABLISHMENT,OP - Hunts Locality - Cost of Care,Hunts OP Team - Care,Residential Care
Cambridgeshire County Council,09-Apr-21,51301551319,600.00,AISLING LODGE (MD CARE HOMES),CARE ESTABLISHMENT,OP - Hunts Locality - Cost of Care,Hunts OP Team - Care,Residential Care
Cambridgeshire County Council,09-Apr-21,51301551319,600.00,AISLING LODGE (MD CARE HOMES),CARE ESTABLISHMENT,OP - Hunts Locality - Cost of Care,Hunts OP Team - Care,Residential Care
Cambridgeshire County Council,09-Apr-21,51301551319,600.00,AISLING LODGE (MD CARE HOMES),CARE ESTABLISHMENT,OP - Hunts Locality - Cost of Care,Hunts OP Team - Care,Residential Care
Cambridgeshire County Council,09-Apr-21,51301551319,600.00,AISLING LODGE (MD CARE HOMES),CARE ESTABLISHMENT,OP - Hunts Locality - Cost of Care,Hunts OP Team - Care,Residential Care
Cambridgeshire County Council,09-Apr-21,51301551319,600.00,AISLING LODGE (MD CARE HOMES),CARE ESTABLISHMENT,OP - Hunts Locality - Cost of Care,Hunts OP Team - Care,Residential Care
Cambridgeshire County Council,09-Apr-21,51301551319,600.00,AISLING LODGE (MD CARE HOMES),CARE ESTABLISHMENT,OP - Hunts Locality - Cost of Care,Hunts OP Team - Care,Residential Care
Cambridgeshire County Council,09-Apr-21,51301551319,600.00,AISLING LODGE (MD CARE HOMES),CARE ESTABLISHMENT,OP - Hunts Locality - Cost of Care,Hunts OP Team - Care,Residential Care
Cambridgeshire County Council,09-Apr-21,51301551319,600.00,AISLING LODGE (MD CARE HOMES),CARE ESTABLISHMENT,OP - Hunts Locality - Cost of Care,Hunts OP Team - Care,Residential Care
Cambridgeshire County Council,09-Apr-21,51301551319,600.00,AISLING LODGE (MD CARE HOMES),CARE ESTABLISHMENT,OP - Hunts Locality - Cost of Care,Hunts OP Team - Care,Residential Care
Cambridgeshire County Council,09-Apr-21,51301551319,600.00,AISLING LODGE (MD CARE HOMES),CARE ESTABLISHMENT,OP - Hunts Locality - Cost of Care,Hunts OP Team - Care,Residential Care
Cambridgeshire County Council,09-Apr-21,51301551319,600.00,AISLING LODGE (MD CARE HOMES),CARE ESTABLISHMENT,OP - Hunts Locality - Cost of Care,Hunts OP Team - Care,Residential Care
Cambridgeshire County Council,09-Apr-21,51301551358,600.00,Redacted Personal Data ,INDIVIDUAL,OP - Hunts Locality - Cost of Care,Hunts OP Team - Care,Residential Care
Cambridgeshire County Council,09-Apr-21,51301551360,600.00,NELSON LODGE,CARE ESTABLISHMENT,OP - Hunts Locality - Cost of Care,Hunts OP Team - Care,Residential Care
Cambridgeshire County Council,09-Apr-21,51301551404,600.00,WERRINGTON LODGE CARE HOME,CARE ESTABLISHMENT,OP - East Cambs Locality - Cost of Care,East Cambs - O P Team - Care,Residential Care
Cambridgeshire County Council,09-Apr-21,51301551400,603.94,WOODLANDS CARE CENTRE,CARE ESTABLISHMENT,OPMH - City & South,Older People Mental Health City & South,Residential Care
Cambridgeshire County Council,09-Apr-21,51301546145,605.00,SOPHIA WAREHAM,EDUCATION,SEND Specialist Services - Education Psychology,SEND Specialist Services - Education Psychology,Professional Fees and Hired Services
Cambridgeshire County Council,09-Apr-21,51301551212,620.87,Redacted Personal Data ,INDIVIDUAL,Children's Disability Direct Payments,CSC Direct Payments,Direct Payments
Cambridgeshire County Council,09-Apr-21,51301551316,625.00,ALIWAL HEALTHCARE LTD,CARE ESTABLISHMENT,OP - Fenland Locality - Cost of Care,Older People - Fenland - Care,Residential Care
Cambridgeshire County Council,09-Apr-21,51301551316,625.00,ALIWAL HEALTHCARE LTD,CARE ESTABLISHMENT,OP - Fenland Locality - Cost of Care,Older People - Fenland - Care,Residential Care
Cambridgeshire County Council,09-Apr-21,51301551316,625.00,ALIWAL HEALTHCARE LTD,CARE ESTABLISHMENT,OP - Fenland Locality - Cost of Care,Older People - Fenland - Care,Residential Care
Cambridgeshire County Council,09-Apr-21,51301551316,625.00,ALIWAL HEALTHCARE LTD,CARE ESTABLISHMENT,OP - Fenland Locality - Cost of Care,Older People - Fenland - Care,Residential Care
Cambridgeshire County Council,09-Apr-21,51301551316,625.00,ALIWAL HEALTHCARE LTD,CARE ESTABLISHMENT,OP - Fenland Locality - Cost of Care,Older People - Fenland - Care,Residential Care
Cambridgeshire County Council,09-Apr-21,51301551316,625.00,ALIWAL HEALTHCARE LTD,CARE ESTABLISHMENT,OP - Fenland Locality - Cost of Care,Older People - Fenland - Care,Residential Care
Cambridgeshire County Council,09-Apr-21,51301551316,625.00,ALIWAL HEALTHCARE LTD,CARE ESTABLISHMENT,OP - Fenland Locality - Cost of Care,Older People - Fenland - Care,Residential Care
Cambridgeshire County Council,09-Apr-21,51301551316,625.00,ALIWAL HEALTHCARE LTD,CARE ESTABLISHMENT,OP - Fenland Locality - Cost of Care,Older People - Fenland - Care,Residential Care
Cambridgeshire County Council,09-Apr-21,51301551316,625.00,ALIWAL HEALTHCARE LTD,CARE ESTABLISHMENT,OP - Fenland Locality - Cost of Care,Older People - Fenland - Care,Residential Care
Cambridgeshire County Council,09-Apr-21,51301551316,625.00,ALIWAL HEALTHCARE LTD,CARE ESTABLISHMENT,OP - Fenland Locality - Cost of Care,Older People - Fenland - Care,Residential Care
Cambridgeshire County Council,09-Apr-21,51301551316,625.00,ALIWAL HEALTHCARE LTD,CARE ESTABLISHMENT,OP - Fenland Locality - Cost of Care,Older People - Fenland - Care,Residential Care
Cambridgeshire County Council,09-Apr-21,51301551316,625.00,ALIWAL HEALTHCARE LTD,CARE ESTABLISHMENT,OP - Fenland Locality - Cost of Care,Older People - Fenland - Care,Residential Care
Cambridgeshire County Council,09-Apr-21,51301551316,625.00,ALIWAL HEALTHCARE LTD,CARE ESTABLISHMENT,OP - Fenland Locality - Cost of Care,Older People - Fenland - Care,Residential Care
Cambridgeshire County Council,09-Apr-21,51301551316,625.00,ALIWAL HEALTHCARE LTD,CARE ESTABLISHMENT,OP - Fenland Locality - Cost of Care,Older People - Fenland - Care,Residential Care
Cambridgeshire County Council,09-Apr-21,51301551316,625.00,ALIWAL HEALTHCARE LTD,CARE ESTABLISHMENT,OP - Fenland Locality - Cost of Care,Older People - Fenland - Care,Residential Care
Cambridgeshire County Council,09-Apr-21,51301551316,625.00,ALIWAL HEALTHCARE LTD,CARE ESTABLISHMENT,OP - Fenland Locality - Cost of Care,Older People - Fenland - Care,Residential Care
Cambridgeshire County Council,09-Apr-21,51301551316,625.00,ALIWAL HEALTHCARE LTD,CARE ESTABLISHMENT,OP - Fenland Locality - Cost of Care,Older People - Fenland - Care,Residential Care
Cambridgeshire County Council,09-Apr-21,51301551316,625.00,ALIWAL HEALTHCARE LTD,CARE ESTABLISHMENT,OP - Fenland Locality - Cost of Care,Older People - Fenland - Care,Residential Care
Cambridgeshire County Council,09-Apr-21,51301551316,625.00,ALIWAL HEALTHCARE LTD,CARE ESTABLISHMENT,OP - Fenland Locality - Cost of Care,Older People - Fenland - Care,Residential Care
Cambridgeshire County Council,09-Apr-21,51301551316,625.00,ALIWAL HEALTHCARE LTD,CARE ESTABLISHMENT,OP - Fenland Locality - Cost of Care,Older People - Fenland - Care,Residential Care
Cambridgeshire County Council,09-Apr-21,51301551316,625.00,ALIWAL HEALTHCARE LTD,CARE ESTABLISHMENT,OP - Fenland Locality - Cost of Care,Older People - Fenland - Care,Residential Care
Cambridgeshire County Council,09-Apr-21,51301551316,625.00,ALIWAL HEALTHCARE LTD,CARE ESTABLISHMENT,OP - Fenland Locality - Cost of Care,Older People - Fenland - Care,Residential Care
Cambridgeshire County Council,09-Apr-21,51301551316,625.00,ALIWAL HEALTHCARE LTD,CARE ESTABLISHMENT,OP - Fenland Locality - Cost of Care,Older People - Fenland - Care,Residential Care
Cambridgeshire County Council,09-Apr-21,51301551316,625.00,ALIWAL HEALTHCARE LTD,CARE ESTABLISHMENT,OP - Fenland Locality - Cost of Care,Older People - Fenland - Care,Residential Care
Cambridgeshire County Council,09-Apr-21,51301551316,625.00,ALIWAL HEALTHCARE LTD,CARE ESTABLISHMENT,OP - Fenland Locality - Cost of Care,Older People - Fenland - Care,Residential Care
Cambridgeshire County Council,09-Apr-21,51301551316,625.00,ALIWAL HEALTHCARE LTD,CARE ESTABLISHMENT,OP - Fenland Locality - Cost of Care,Older People - Fenland - Care,Residential Care
Cambridgeshire County Council,09-Apr-21,51301551316,625.00,ALIWAL HEALTHCARE LTD,CARE ESTABLISHMENT,OP - Fenland Locality - Cost of Care,Older People - Fenland - Care,Residential Care
Cambridgeshire County Council,09-Apr-21,51301551316,625.00,ALIWAL HEALTHCARE LTD,CARE ESTABLISHMENT,OP - Fenland Locality - Cost of Care,Older People - Fenland - Care,Residential Care
Cambridgeshire County Council,09-Apr-21,51301551316,625.00,ALIWAL HEALTHCARE LTD,CARE ESTABLISHMENT,OP - Fenland Locality - Cost of Care,Older People - Fenland - Care,Residential Care
Cambridgeshire County Council,09-Apr-21,51301551316,625.00,ALIWAL HEALTHCARE LTD,CARE ESTABLISHMENT,OP - Fenland Locality - Cost of Care,Older People - Fenland - Care,Residential Care
Cambridgeshire County Council,09-Apr-21,51301551316,625.00,ALIWAL HEALTHCARE LTD,CARE ESTABLISHMENT,OP - Fenland Locality - Cost of Care,Older People - Fenland - Care,Residential Care
Cambridgeshire County Council,09-Apr-21,51301551316,625.00,ALIWAL HEALTHCARE LTD,CARE ESTABLISHMENT,OP - Fenland Locality - Cost of Care,Older People - Fenland - Care,Residential Care
Cambridgeshire County Council,09-Apr-21,51301551316,625.00,ALIWAL HEALTHCARE LTD,CARE ESTABLISHMENT,OP - Fenland Locality - Cost of Care,Older People - Fenland - Care,Residential Care
Cambridgeshire County Council,09-Apr-21,51301551316,625.00,ALIWAL HEALTHCARE LTD,CARE ESTABLISHMENT,OP - Fenland Locality - Cost of Care,Older People - Fenland - Care,Residential Care
Cambridgeshire County Council,09-Apr-21,51301551316,625.00,ALIWAL HEALTHCARE LTD,CARE ESTABLISHMENT,OP - Fenland Locality - Cost of Care,Older People - Fenland - Care,Residential Care
Cambridgeshire County Council,09-Apr-21,51301551316,625.00,ALIWAL HEALTHCARE LTD,CARE ESTABLISHMENT,OP - Fenland Locality - Cost of Care,Older People - Fenland - Care,Residential Care
Cambridgeshire County Council,09-Apr-21,51301551316,625.00,ALIWAL HEALTHCARE LTD,CARE ESTABLISHMENT,OP - Fenland Locality - Cost of Care,Older People - Fenland - Care,Residential Care
Cambridgeshire County Council,09-Apr-21,51301551316,625.00,ALIWAL HEALTHCARE LTD,CARE ESTABLISHMENT,OP - Fenland Locality - Cost of Care,Older People - Fenland - Care,Residential Care
Cambridgeshire County Council,09-Apr-21,51301551316,625.00,ALIWAL HEALTHCARE LTD,CARE ESTABLISHMENT,OP - Fenland Locality - Cost of Care,Older People - Fenland - Care,Residential Care
Cambridgeshire County Council,09-Apr-21,51301551316,625.00,ALIWAL HEALTHCARE LTD,CARE ESTABLISHMENT,OP - Fenland Locality - Cost of Care,Older People - Fenland - Care,Residential Care
Cambridgeshire County Council,09-Apr-21,51301551316,625.00,ALIWAL HEALTHCARE LTD,CARE ESTABLISHMENT,OP - Fenland Locality - Cost of Care,Older People - Fenland - Care,Residential Care
Cambridgeshire County Council,09-Apr-21,51301551316,625.00,ALIWAL HEALTHCARE LTD,CARE ESTABLISHMENT,OP - Fenland Locality - Cost of Care,Older People - Fenland - Care,Residential Care
Cambridgeshire County Council,09-Apr-21,51301551316,625.00,ALIWAL HEALTHCARE LTD,CARE ESTABLISHMENT,OP - Fenland Locality - Cost of Care,Older People - Fenland - Care,Residential Care
Cambridgeshire County Council,09-Apr-21,51301551378,644.53,BOXTREE COTTAGE CAMBRIDGE LIMITED T/A BOXTREE COTTAGE RESIDENTIAL HOME,CARE ESTABLISHMENT,AMH - City South,Cambridge South Mental Health,Residential Care
Cambridgeshire County Council,09-Apr-21,51301551378,644.53,BOXTREE COTTAGE CAMBRIDGE LIMITED T/A BOXTREE COTTAGE RESIDENTIAL HOME,CARE ESTABLISHMENT,AMH - City South,Cambridge South Mental Health,Residential Care
Cambridgeshire County Council,09-Apr-21,51301551378,644.53,BOXTREE COTTAGE CAMBRIDGE LIMITED T/A BOXTREE COTTAGE RESIDENTIAL HOME,CARE ESTABLISHMENT,AMH - City South,Cambridge South Mental Health,Residential Care
Cambridgeshire County Council,09-Apr-21,51301551363,650.00,HOME MEADOW LTD,CARE ESTABLISHMENT,OP - City & South Locality - Cost of Care,Older People - City & South - Care,Residential Care
Cambridgeshire County Council,09-Apr-21,51301551363,650.00,HOME MEADOW LTD,CARE ESTABLISHMENT,OP - City & South Locality - Cost of Care,Older People - City & South - Care,Residential Care
Cambridgeshire County Council,09-Apr-21,51301551363,650.00,HOME MEADOW LTD,CARE ESTABLISHMENT,OP - City & South Locality - Cost of Care,Older People - City & South - Care,Residential Care
Cambridgeshire County Council,09-Apr-21,51301551363,650.00,HOME MEADOW LTD,CARE ESTABLISHMENT,OP - City & South Locality - Cost of Care,Older People - City & South - Care,Residential Care
Cambridgeshire County Council,09-Apr-21,51301551363,650.00,HOME MEADOW LTD,CARE ESTABLISHMENT,OP - City & South Locality - Cost of Care,Older People - City & South - Care,Residential Care
Cambridgeshire County Council,09-Apr-21,51301551363,650.00,HOME MEADOW LTD,CARE ESTABLISHMENT,OP - City & South Locality - Cost of Care,Older People - City & South - Care,Residential Care
Cambridgeshire County Council,09-Apr-21,51301551363,650.00,HOME MEADOW LTD,CARE ESTABLISHMENT,OP - City & South Locality - Cost of Care,Older People - City & South - Care,Residential Care
Cambridgeshire County Council,09-Apr-21,51301551358,650.00,Redacted Personal Data ,INDIVIDUAL,OP - Hunts Locality - Cost of Care,Hunts OP Team - Care,Residential Care
Cambridgeshire County Council,09-Apr-21,51301551358,650.00,Redacted Personal Data ,INDIVIDUAL,OP - Hunts Locality - Cost of Care,Hunts OP Team - Care,Residential Care
Cambridgeshire County Council,09-Apr-21,51301551358,650.00,Redacted Personal Data ,INDIVIDUAL,OP - Hunts Locality - Cost of Care,Hunts OP Team - Care,Residential Care
Cambridgeshire County Council,09-Apr-21,51301551358,650.00,Redacted Personal Data ,INDIVIDUAL,OP - Hunts Locality - Cost of Care,Hunts OP Team - Care,Residential Care
Cambridgeshire County Council,09-Apr-21,51301551391,650.00,KENEYDON HOUSE RESIDENTIAL CARE HOME,CARE ESTABLISHMENT,OP - Fenland Locality - Cost of Care,Older People - Fenland - Care,Residential Care
Cambridgeshire County Council,09-Apr-21,51301551391,650.00,KENEYDON HOUSE RESIDENTIAL CARE HOME,CARE ESTABLISHMENT,OP - Fenland Locality - Cost of Care,Older People - Fenland - Care,Residential Care
Cambridgeshire County Council,09-Apr-21,51301551391,650.00,KENEYDON HOUSE RESIDENTIAL CARE HOME,CARE ESTABLISHMENT,OP - Fenland Locality - Cost of Care,Older People - Fenland - Care,Residential Care
Cambridgeshire County Council,09-Apr-21,51301551391,650.00,KENEYDON HOUSE RESIDENTIAL CARE HOME,CARE ESTABLISHMENT,OP - Fenland Locality - Cost of Care,Older People - Fenland - Care,Residential Care
Cambridgeshire County Council,09-Apr-21,51301551391,650.00,KENEYDON HOUSE RESIDENTIAL CARE HOME,CARE ESTABLISHMENT,OP - Fenland Locality - Cost of Care,Older People - Fenland - Care,Residential Care
Cambridgeshire County Council,09-Apr-21,51301551391,650.00,KENEYDON HOUSE RESIDENTIAL CARE HOME,CARE ESTABLISHMENT,OP - Fenland Locality - Cost of Care,Older People - Fenland - Care,Residential Care
Cambridgeshire County Council,09-Apr-21,51301551391,650.00,KENEYDON HOUSE RESIDENTIAL CARE HOME,CARE ESTABLISHMENT,OP - Fenland Locality - Cost of Care,Older People - Fenland - Care,Residential Care
Cambridgeshire County Council,09-Apr-21,51301551391,650.00,KENEYDON HOUSE RESIDENTIAL CARE HOME,CARE ESTABLISHMENT,OP - Fenland Locality - Cost of Care,Older People - Fenland - Care,Residential Care
Cambridgeshire County Council,09-Apr-21,51301551391,650.00,KENEYDON HOUSE RESIDENTIAL CARE HOME,CARE ESTABLISHMENT,OP - Fenland Locality - Cost of Care,Older People - Fenland - Care,Residential Care
Cambridgeshire County Council,09-Apr-21,51301551403,650.00,KENEYDON HOUSE RESIDENTIAL CARE HOME,CARE ESTABLISHMENT,OP - Fenland Locality - Cost of Care,Older People - Fenland - Care,Residential Care
Cambridgeshire County Council,09-Apr-21,51301551403,650.00,KENEYDON HOUSE RESIDENTIAL CARE HOME,CARE ESTABLISHMENT,OP - Fenland Locality - Cost of Care,Older People - Fenland - Care,Residential Care
Cambridgeshire County Council,09-Apr-21,51301551403,650.00,KENEYDON HOUSE RESIDENTIAL CARE HOME,CARE ESTABLISHMENT,OP - Fenland Locality - Cost of Care,Older People - Fenland - Care,Residential Care
Cambridgeshire County Council,09-Apr-21,51301551403,650.00,KENEYDON HOUSE RESIDENTIAL CARE HOME,CARE ESTABLISHMENT,OP - Fenland Locality - Cost of Care,Older People - Fenland - Care,Residential Care
Cambridgeshire County Council,09-Apr-21,51301551403,650.00,KENEYDON HOUSE RESIDENTIAL CARE HOME,CARE ESTABLISHMENT,OP - Fenland Locality - Cost of Care,Older People - Fenland - Care,Residential Care
Cambridgeshire County Council,09-Apr-21,51301551403,650.00,KENEYDON HOUSE RESIDENTIAL CARE HOME,CARE ESTABLISHMENT,OP - Fenland Locality - Cost of Care,Older People - Fenland - Care,Residential Care
Cambridgeshire County Council,09-Apr-21,51301551403,650.00,KENEYDON HOUSE RESIDENTIAL CARE HOME,CARE ESTABLISHMENT,OP - Fenland Locality - Cost of Care,Older People - Fenland - Care,Residential Care
Cambridgeshire County Council,09-Apr-21,51301551398,650.00,LANGLEY LODGE RESIDENTIAL CARE HOME,CARE ESTABLISHMENT,OP - Fenland Locality - Cost of Care,Older People - Fenland - Care,Residential Care
Cambridgeshire County Council,09-Apr-21,51301551398,650.00,LANGLEY LODGE RESIDENTIAL CARE HOME,CARE ESTABLISHMENT,OP - Fenland Locality - Cost of Care,Older People - Fenland - Care,Residential Care
Cambridgeshire County Council,09-Apr-21,51301551398,650.00,LANGLEY LODGE RESIDENTIAL CARE HOME,CARE ESTABLISHMENT,OP - Fenland Locality - Cost of Care,Older People - Fenland - Care,Residential Care
Cambridgeshire County Council,09-Apr-21,51301551398,650.00,LANGLEY LODGE RESIDENTIAL CARE HOME,CARE ESTABLISHMENT,OP - Fenland Locality - Cost of Care,Older People - Fenland - Care,Residential Care
Cambridgeshire County Council,09-Apr-21,51301551398,650.00,LANGLEY LODGE RESIDENTIAL CARE HOME,CARE ESTABLISHMENT,OP - Fenland Locality - Cost of Care,Older People - Fenland - Care,Residential Care
Cambridgeshire County Council,09-Apr-21,51301551398,650.00,LANGLEY LODGE RESIDENTIAL CARE HOME,CARE ESTABLISHMENT,OP - Fenland Locality - Cost of Care,Older People - Fenland - Care,Residential Care
Cambridgeshire County Council,09-Apr-21,51301551398,650.00,LANGLEY LODGE RESIDENTIAL CARE HOME,CARE ESTABLISHMENT,OP - Fenland Locality - Cost of Care,Older People - Fenland - Care,Residential Care
Cambridgeshire County Council,09-Apr-21,51301551355,651.81,WINSTON HOUSE(2CARE),CARE ESTABLISHMENT,AMH - City South,Cambridge South Mental Health,Residential Care
Cambridgeshire County Council,09-Apr-21,51301551355,651.81,WINSTON HOUSE(2CARE),CARE ESTABLISHMENT,AMH - City South,Cambridge South Mental Health,Residential Care
Cambridgeshire County Council,09-Apr-21,51301551355,651.81,WINSTON HOUSE(2CARE),CARE ESTABLISHMENT,AMH - City South,Cambridge South Mental Health,Residential Care
Cambridgeshire County Council,09-Apr-21,51301551368,666.08,CROMWELL HOUSE HEALTH CARE,CARE ESTABLISHMENT,OP - Hunts Locality - Cost of Care,Hunts OP Team - Care,Nursing Care
Cambridgeshire County Council,09-Apr-21,51301551383,666.08,THE ELMS NURSING HOME,CARE ESTABLISHMENT,OP - Fenland Locality - Cost of Care,Older People - Fenland - Care,Nursing Care
Cambridgeshire County Council,09-Apr-21,51301551383,666.08,THE ELMS NURSING HOME,CARE ESTABLISHMENT,OP - Fenland Locality - Cost of Care,Older People - Fenland - Care,Nursing Care
Cambridgeshire County Council,09-Apr-21,51301551383,666.08,THE ELMS NURSING HOME,CARE ESTABLISHMENT,OP - Fenland Locality - Cost of Care,Older People - Fenland - Care,Nursing Care
Cambridgeshire County Council,09-Apr-21,51301551383,666.08,THE ELMS NURSING HOME,CARE ESTABLISHMENT,OP - Fenland Locality - Cost of Care,Older People - Fenland - Care,Nursing Care
Cambridgeshire County Council,09-Apr-21,51301551383,666.08,THE ELMS NURSING HOME,CARE ESTABLISHMENT,OP - Fenland Locality - Cost of Care,Older People - Fenland - Care,Nursing Care
Cambridgeshire County Council,09-Apr-21,51301551383,666.08,THE ELMS NURSING HOME,CARE ESTABLISHMENT,OP - Fenland Locality - Cost of Care,Older People - Fenland - Care,Nursing Care
Cambridgeshire County Council,09-Apr-21,51301551383,666.08,THE ELMS NURSING HOME,CARE ESTABLISHMENT,OP - Fenland Locality - Cost of Care,Older People - Fenland - Care,Nursing Care
Cambridgeshire County Council,09-Apr-21,51301551383,666.08,THE ELMS NURSING HOME,CARE ESTABLISHMENT,OP - Fenland Locality - Cost of Care,Older People - Fenland - Care,Nursing Care
Cambridgeshire County Council,09-Apr-21,51301551383,666.08,THE ELMS NURSING HOME,CARE ESTABLISHMENT,OP - Fenland Locality - Cost of Care,Older People - Fenland - Care,Nursing Care
Cambridgeshire County Council,09-Apr-21,51301551383,666.08,THE ELMS NURSING HOME,CARE ESTABLISHMENT,OP - Fenland Locality - Cost of Care,Older People - Fenland - Care,Nursing Care
Cambridgeshire County Council,09-Apr-21,51301551383,666.08,THE ELMS NURSING HOME,CARE ESTABLISHMENT,OP - Fenland Locality - Cost of Care,Older People - Fenland - Care,Nursing Care
Cambridgeshire County Council,09-Apr-21,51301551383,666.08,THE ELMS NURSING HOME,CARE ESTABLISHMENT,OP - Fenland Locality - Cost of Care,Older People - Fenland - Care,Nursing Care
Cambridgeshire County Council,09-Apr-21,51301551383,666.08,THE ELMS NURSING HOME,CARE ESTABLISHMENT,OP - Fenland Locality - Cost of Care,Older People - Fenland - Care,Nursing Care
Cambridgeshire County Council,09-Apr-21,51301551383,666.08,THE ELMS NURSING HOME,CARE ESTABLISHMENT,OP - Fenland Locality - Cost of Care,Older People - Fenland - Care,Nursing Care
Cambridgeshire County Council,09-Apr-21,51301551383,666.08,THE ELMS NURSING HOME,CARE ESTABLISHMENT,OP - Fenland Locality - Cost of Care,Older People - Fenland - Care,Nursing Care
Cambridgeshire County Council,09-Apr-21,51301551383,666.08,THE ELMS NURSING HOME,CARE ESTABLISHMENT,OP - Fenland Locality - Cost of Care,Older People - Fenland - Care,Nursing Care
Cambridgeshire County Council,09-Apr-21,51301551383,666.08,THE ELMS NURSING HOME,CARE ESTABLISHMENT,OP - Fenland Locality - Cost of Care,Older People - Fenland - Care,Nursing Care
Cambridgeshire County Council,09-Apr-21,51301551383,666.08,THE ELMS NURSING HOME,CARE ESTABLISHMENT,OP - Fenland Locality - Cost of Care,Older People - Fenland - Care,Nursing Care
Cambridgeshire County Council,09-Apr-21,51301551383,666.08,THE ELMS NURSING HOME,CARE ESTABLISHMENT,OP - Fenland Locality - Cost of Care,Older People - Fenland - Care,Nursing Care
Cambridgeshire County Council,09-Apr-21,51301551383,666.08,THE ELMS NURSING HOME,CARE ESTABLISHMENT,OP - Fenland Locality - Cost of Care,Older People - Fenland - Care,Nursing Care
Cambridgeshire County Council,09-Apr-21,51301551383,666.08,THE ELMS NURSING HOME,CARE ESTABLISHMENT,OP - Fenland Locality - Cost of Care,Older People - Fenland - Care,Nursing Care
Cambridgeshire County Council,09-Apr-21,51301551383,666.08,THE ELMS NURSING HOME,CARE ESTABLISHMENT,OP - Fenland Locality - Cost of Care,Older People - Fenland - Care,Nursing Care
Cambridgeshire County Council,09-Apr-21,51301551383,666.08,THE ELMS NURSING HOME,CARE ESTABLISHMENT,OP - Fenland Locality - Cost of Care,Older People - Fenland - Care,Nursing Care
